{"text_format":"1","workbook":"xlsx","n_sheets":33,"sheets":["CIA","TPC","TVOU","TLIBROS","TCOMPROB","TDOC","TPAGO","TCLIEN","TPROVEE","TBCOS","TBCOSCIA","TOTROS","VOUDIARIO","BDDIARIO","BDASTODIARIO","CONSDIARIO1","LDIARIO","CONSULMAYOR","LMAYOR","BDRVENTA","BDASTOVENTA","BDRCOMPRA","BDASTOCOMPRA","BDCAJA","BDASTOCAJA","BDBANCO","BDASTOBANCO","CONSULHT","HT","BG","ER","Hoja1","ae"],"not_rendered":{"charts":0,"images":23,"macros":1,"external_links":0,"defined_names":26,"comments":0,"pivot_tables":0},"unopened":[],"bounds":{"document_bytes":16777216,"sheet_cells":100000,"rows_first":2000,"rows_last":500,"rows_between":2000,"halvings":0,"cell_chars":16384,"cell_head_chars":4096},"cells_cut":0,"cells_raw":0,"read":"whole","date_system":"1900"}

{"sheet":"CIA","index":0,"n_rows":13,"n_cols":12,"rows_kept":13,"cut":false,"hidden":true,"merged":[[0,0,0,2]]}
["EMPRESA"]
["NOMBRE","ARCHIVO EXCEL EIRL",null,null,null,"ENERO",null,null,"NUEVOS SOLES",null,null,"INGRESO"]
["RUC",20123456789,null,null,null,"FEBRERO",null,null,"DÓLARES AMERICANOS",null,null,"EGRESO"]
["PERIODO",2013,null,null,null,"MARZO"]
["MES","ENERO",null,null,null,"ABRIL"]
["IGV",0.18,null,null,null,"MAYO"]
[null,null,null,null,null,"JUNIO"]
[null,null,null,null,null,"JULIO"]
[null,null,null,null,null,"AGOSTO"]
[null,null,null,null,null,"SEPTIEMBRE"]
[null,null,null,null,null,"OCTUBRE"]
[null,null,null,null,null,"NOVIEMBRE"]
[null,null,null,null,null,"DICIEMBRE"]

{"sheet":"TPC","index":1,"n_rows":3144,"n_cols":6,"rows_kept":3144,"cut":false,"hidden":true,"merged":[]}
["PLAN DE CUENTAS"]
["x"]
["CTA","REGISTRO","NOMBRE","AMAR. DEB.","AMAR. HAB.","GRUPO"]
[10,null,"EFECTIVO Y EQUIVALENTES DE EFECTIVO"]
[101,10100,"Caja",null,null,1]
[102,10200,"Fondos fijos",null,null,1]
[103,10300,"Efectivo en Tránsito",null,null,1]
[104,null,"Cuentas corrientes en instituciones financieras"]
[1041,10410,"Cuentas corrientes operativas",null,null,1]
[1042,10420,"Cuentas corrientes para fines específicos",null,null,1]
[105,null,"Otros equivalentes de efectivo"]
[1051,10510,"Otros equivalentes de efectivo",null,null,1]
[106,null,"Depósitos en instituciones financieras"]
[1061,10610,"Depósitos de ahorro",null,null,1]
[1062,10620,"Depósitos a plazo",null,null,1]
[107,null,"Fondos sujetos a restricción"]
[1071,10710,"Fondos Sujetos a Restricción",null,null,1]
[11,null,"INVERSIONES FINANCIERAS"]
[111,null,"Inversiones mantenidas para negociación"]
[1111,null,"Valores emitidos o garantizados por el Estado"]
[11111,11111,"Costo",null,null,1]
[11112,11112,"Valor Razonable",null,null,1]
[1112,null,"Valores emitidos por el sistema financiero"]
[11121,11121,"Costo",null,null,1]
[11122,11122,"Valor Razonable",null,null,1]
[1113,null,"Valores emitidos por empresa"]
[11131,11131,"Costo",null,null,1]
[11132,11132,"Valor Razonable",null,null,1]
[1114,null,"Otros títulos representativos de deuda"]
[11141,11141,"Costo",null,null,1]
[11142,11142,"Valor Razonable",null,null,1]
[1115,null,"Participaciones en entidades"]
[11151,11151,"Costo",null,null,1]
[11152,11152,"Valor Razonable",null,null,1]
[112,null,"Inversiones disponibles para la venta"]
[1121,null,"Valores emitidos o garantizados por el Estado"]
[11211,11211,"Costo",null,null,1]
[11212,11212,"Valor Razonable",null,null,1]
[1122,null,"Valores emitidos por el sistema financiero"]
[11221,11221,"Costo",null,null,1]
[11222,11222,"Valor Razonable",null,null,1]
[1123,null,"Valores emitidos por empresas"]
[11231,11231,"Costo",null,null,1]
[11232,11232,"Valor Razonable",null,null,1]
[1124,null,"Otros títulos representativos de deuda"]
[11241,11241,"Costo",null,null,1]
[11242,11242,"Valor Razonable",null,null,1]
[113,null,"Activos financieros - Acuerdo de compra"]
[1131,null,"Inversiones mantenidas para negociación – Acuerdo de compra"]
[11311,11311,"Costo",null,null,1]
[11312,11312,"Valor Razonable",null,null,1]
[1132,null,"Inversiones disponibles para la venta – Acuerdo de compra"]
[11321,11321,"Costo",null,null,1]
[11322,11322,"Valor Razonable",null,null,1]
[12,null,"CUENTAS POR COBRAR COMERCIALES – TERCEROS"]
[121,null,"Facturas, boletas y otros comprobantes por cobrar"]
[1211,12110,"No emitidas",null,null,1]
[1212,12120,"Emitidas en cartera",null,null,1]
[1213,12130,"En cobranza",null,null,1]
[1214,12140,"En descuento",null,null,1]
[122,12200,"Anticipos de clientes",null,null,1]
[123,null,"Letras por cobrar"]
[1231,12310,"En cartera",null,null,1]
[1232,12320,"En cobranza",null,null,1]
[1233,12330,"En descuento",null,null,1]
[13,null,"CUENTAS POR COBRAR COMERCIALES – RELACIONADAS"]
[131,null,"Facturas, boletas y otros comprobantes por cobrar"]
[1311,null,"No emitidas"]
[13111,13111,"Matriz",null,null,1]
[13112,13112,"Subsidiarias",null,null,1]
[13113,13113,"Asociadas",null,null,1]
[13114,13114,"Sucursales",null,null,1]
[13115,13115,"Otros",null,null,1]
[1312,null,"Emitidas en cartera"]
[13121,13121,"Matriz",null,null,1]
[13122,13122,"Subsidiarias",null,null,1]
[13123,13123,"Asociadas",null,null,1]
[13124,13124,"Sucursales",null,null,1]
[13125,13125,"Otros",null,null,1]
[1313,null,"En cobranza"]
[13131,13131,"Matriz",null,null,1]
[13132,13132,"Subsidiarias",null,null,1]
[13133,13133,"Asociadas",null,null,1]
[13134,13134,"Sucursales",null,null,1]
[13135,13135,"Otros",null,null,1]
[1314,null,"En descuento"]
[13141,13141,"Matriz",null,null,1]
[13142,13142,"Subsidiarias",null,null,1]
[13143,13143,"Asociadas",null,null,1]
[13144,13144,"Sucursales",null,null,1]
[13145,13145,"Otros",null,null,1]
[132,null,"Anticipos recibidos"]
[1321,null,"Anticipos recibidos"]
[13211,13211,"Matriz",null,null,1]
[13212,13212,"Subsidiarias",null,null,1]
[13213,13213,"Asociadas",null,null,1]
[13214,13214,"Sucursales",null,null,1]
[13215,13215,"Otros",null,null,1]
[133,null,"Letras por cobrar"]
[1331,null,"En cartera"]
[13311,13311,"Matriz",null,null,1]
[13312,13312,"Subsidiarias",null,null,1]
[13313,13313,"Asociadas",null,null,1]
[13314,13314,"Sucursales",null,null,1]
[13315,13315,"Otros",null,null,1]
[1332,null,"En cobranza"]
[13321,13321,"Matriz",null,null,1]
[13322,13322,"Subsidiarias",null,null,1]
[13323,13323,"Asociadas",null,null,1]
[13324,13324,"Sucursales",null,null,1]
[13325,13325,"Otros",null,null,1]
[1333,null,"En descuento"]
[13331,13331,"Matriz",null,null,1]
[13332,13332,"Subsidiarias",null,null,1]
[13333,13333,"Asociadas",null,null,1]
[13334,13334,"Sucursales",null,null,1]
[13335,13335,"Otros",null,null,1]
[14,null,"CUENTAS POR COBRAR AL PERSONAL, A LOS ACCIONISTAS (SOCIOS), DIRECTORES Y GERENTES"]
[141,null,"Personal"]
[1411,14110,"Préstamos",null,null,1]
[1412,14120,"Adelanto de remuneraciones",null,null,1]
[1413,14130,"Entregas a rendir cuenta",null,null,1]
[1419,14190,"Otras cuentas por cobrar al personal",null,null,1]
[142,null,"Accionistas (o socios)"]
[1421,14210,"Suscripciones por cobrar a socios o accionistas",null,null,1]
[1422,14220,"Préstamos",null,null,1]
[143,null,"Directores"]
[1431,14310,"Préstamos",null,null,1]
[1432,14320,"Adelanto de dietas",null,null,1]
[1433,14330,"Entregas a rendir cuenta",null,null,1]
[144,null,"Gerentes"]
[1441,14410,"Préstamos",null,null,1]
[1442,14420,"Adelanto de remuneraciones",null,null,1]
[1443,14430,"Entregas a rendir cuenta",null,null,1]
[148,14800,"Diversas",null,null,1]
[16,null,"CUENTAS POR COBRAR DIVERSAS - TERCEROS"]
[161,null,"Préstamos"]
[1611,16110,"Con garantía",null,null,1]
[1612,16120,"Sin garantía",null,null,1]
[162,null,"Reclamaciones a terceros"]
[1621,16210,"Compañías aseguradoras",null,null,1]
[1622,16220,"Transportadoras",null,null,1]
[1623,16230,"Servicios públicos",null,null,1]
[1624,16240,"Tributos",null,null,1]
[1629,16290,"Otras",null,null,1]
[163,null,"Intereses, regalías y dividendos"]
[1631,16310,"Intereses",null,null,1]
[1632,16320,"Regalías",null,null,1]
[1633,16330,"Dividendos",null,null,1]
[164,null,"Depósitos otorgados en garantía"]
[1641,16410,"Préstamos de instituciones financieras",null,null,1]
[1642,16420,"Préstamos de instituciones no financieras",null,null,1]
[1644,16440,"Depósitos en garantía por alquileres",null,null,1]
[1649,16490,"Otros depósitos en garantía",null,null,1]
[165,null,"Venta de activo inmovilizado"]
[1651,16510,"Inversión mobiliaria",null,null,1]
[1652,16520,"Inversión inmobiliaria",null,null,1]
[1653,16530,"Inmuebles, maquinaria y equipo",null,null,1]
[1654,16540,"Intangibles",null,null,1]
[1655,16550,"Activos biológicos",null,null,1]
[166,null,"Activos por instrumentos financieros"]
[1661,16610,"Instrumentos financieros primarios",null,null,1]
[1662,null,"Instrumentos financieros derivados"]
[16621,16621,"Cartera de negociación",null,null,1]
[16622,16622,"Instrumentos de cobertura",null,null,1]
[168,null,"Otras cuentas por cobrar diversas"]
[1681,16810,"Entregas a rendir cuenta a terceros",null,null,1]
[1689,16890,"Otras cuentas por cobrar diversas",null,null,1]
[17,null,"CUENTAS POR COBRAR DIVERSAS - RELACIONADAS"]
[171,null,"Préstamos"]
[1711,null,"Con garantía"]
[17111,17111,"Matriz",null,null,1]
[17112,17112,"Subsidiarias",null,null,1]
[17113,17113,"Asociadas",null,null,1]
[17114,17114,"Sucursales",null,null,1]
[17115,17115,"Otros",null,null,1]
[1712,null,"Sin garantía"]
[17121,17121,"Matriz",null,null,1]
[17122,17122,"Subsidiarias",null,null,1]
[17123,17123,"Asociadas",null,null,1]
[17124,17124,"Sucursales",null,null,1]
[17125,17125,"Otros",null,null,1]
[173,null,"Intereses, regalías y dividendos"]
[1731,null,"Intereses"]
[17311,17311,"Matriz",null,null,1]
[17312,17312,"Subsidiarias",null,null,1]
[17313,17313,"Asociadas",null,null,1]
[17314,17314,"Sucursales",null,null,1]
[17315,17315,"Otros",null,null,1]
[1732,null,"Regalías"]
[17321,17321,"Matriz",null,null,1]
[17322,17322,"Subsidiarias",null,null,1]
[17323,17323,"Asociadas",null,null,1]
[17324,17324,"Sucursales",null,null,1]
[17325,17325,"Otros",null,null,1]
[1733,null,"Dividendos"]
[17331,17331,"Matriz",null,null,1]
[17332,17332,"Subsidiarias",null,null,1]
[17333,17333,"Asociadas",null,null,1]
[17334,17334,"Otros",null,null,1]
[174,17400,"Depósitos otorgados en garantía",null,null,1]
[175,null,"Venta de activo inmovilizado"]
[1751,17510,"Inversión mobiliaria",null,null,1]
[1752,17520,"Inversión inmobiliaria",null,null,1]
[1753,17530,"Inmuebles, maquinaria y equipo",null,null,1]
[1754,17540,"Intangibles",null,null,1]
[1755,17550,"Activos biológicos",null,null,1]
[176,17600,"Activos por instrumentos financieros",null,null,1]
[178,17800,"Otras cuentas por cobrar diversas",null,null,1]
[18,null,"SERVICIOS Y OTROS CONTRATADOS POR ANTICIPADO"]
[181,18100,"Costos financieros",null,null,1]
[182,18200,"Seguros",null,null,1]
[183,18300,"Alquileres",null,null,1]
[184,18400,"Primas pagadas por opciones",null,null,1]
[185,18500,"Mantenimiento de activos inmovilizados",null,null,1]
[189,18900,"Otros gastos contratados por anticipado",null,null,1]
[19,null,"ESTIMACIÓN DE CUENTAS DE COBRANZA DUDOSA"]
[191,null,"Cuentas por cobrar comerciales - Terceros"]
[1911,19110,"Facturas, boletas y otros comprobantes por cobrar",null,null,1]
[1913,19130,"Letras por cobrar",null,null,1]
[192,null,"Cuentas por cobrar comerciales - Relacionadas"]
[1921,19210,"Facturas, boletas y otros comprobantes por cobrar",null,null,1]
[1922,19220,"Letras por cobrar",null,null,1]
[193,null,"Cuentas por cobrar al personal, a los accionistas (socios), directores y gerentes"]
[1931,19310,"Personal",null,null,1]
[1932,19320,"Accionistas (o socios)",null,null,1]
[1933,19330,"Directores",null,null,1]
[1934,19340,"Gerentes",null,null,1]
[1938,19380,"Diversas",null,null,1]
[194,null,"Cuentas por cobrar diversas - Terceros"]
[1941,19410,"Préstamos",null,null,1]
[1942,19420,"Reclamaciones a terceros",null,null,1]
[1943,19430,"Intereses, regalías y dividendos",null,null,1]
[1944,19440,"Depósitos otorgados en garantía",null,null,1]
[1945,19450,"Venta de activo inmovilizado",null,null,1]
[1946,19460,"Activos por instrumentos financieros",null,null,1]
[1949,19490,"Otras cuentas por cobrar diversas",null,null,1]
[195,null,"Cuentas por cobrar diversas – Relacionadas"]
[1951,19510,"Préstamos",null,null,1]
[1953,19530,"Intereses, regalías y dividendos",null,null,1]
[1954,19540,"Depósitos otorgados en garantía",null,null,1]
[1955,19550,"Venta de activo inmovilizado",null,null,1]
[1956,19560,"Activos por instrumentos financieros",null,null,1]
[1958,19580,"Otras cuentas por cobrar diversas",null,null,1]
[20,null,"MERCADERÍAS"]
[201,null,"Mercaderías manufacturadas"]
[2011,null,"Mercaderías manufacturadas"]
[20111,20111,"Costo",null,null,1]
[20112,20112,"Valor razonable",null,null,1]
[202,20200,"Mercaderías de extracción",null,null,1]
[203,null,"Mercaderías agropecuarias y piscícolas"]
[2031,20310,"De origen animal",null,null,1]
[2032,20320,"De origen vegetal",null,null,1]
[204,20400,"Mercaderías inmuebles",null,null,1]
[208,20800,"Otras mercaderías",null,null,1]
[21,null,"PRODUCTOS TERMINADOS"]
[211,21100,"Productos manufacturados",null,null,1]
[212,21200,"Productos de extracción terminados",null,null,1]
[213,null,"Productos agropecuarios y piscícolas terminados"]
[2131,null,"De origen animal"]
[21311,21311,"Costo",null,null,1]
[21312,21312,"Valor razonable",null,null,1]
[2132,null,"De origen vegetal"]
[21321,21321,"Costo",null,null,1]
[21322,21322,"Valor razonable",null,null,1]
[214,21400,"Productos inmuebles",null,null,1]
[215,21500,"Existencias de servicios terminados",null,null,1]
[217,21700,"Otros productos terminados",null,null,1]
[218,21800,"Costos de financiación – Productos terminados",null,null,1]
[22,null,"SUBPRODUCTOS, DESECHOS Y DESPERDICIOS"]
[221,22100,"Subproductos",null,null,1]
[222,22200,"Desechos y desperdicios",null,null,1]
[23,null,"PRODUCTOS EN PROCESO"]
[231,23100,"Productos en proceso de manufactura",null,null,1]
[232,23200,"Productos extraídos en proceso de transformación",null,null,1]
[233,null,"Productos agropecuarios y piscícolas en proceso"]
[2331,null,"De origen animal"]
[23311,23311,"Costo",null,null,1]
[23312,23312,"Valor razonable",null,null,1]
[2332,null,"De origen vegetal"]
[23321,23321,"Costo",null,null,1]
[23322,23322,"Valor razonable",null,null,1]
[234,23400,"Productos inmuebles en proceso",null,null,1]
[235,23500,"Existencias de servicios en proceso",null,null,1]
[237,23700,"Otros productos en proceso",null,null,1]
[238,23800,"Costos de financiación – Productos en proceso",null,null,1]
[24,null,"MATERIAS PRIMAS"]
[241,24100,"Materias primas para productos manufacturados",null,null,1]
[242,24200,"Materias primas para productos de extracción",null,null,1]
[243,24300,"Materias primas para productos agropecuarios y piscícolas",null,null,1]
[244,24400,"Materias primas para productos inmuebles",null,null,1]
[25,null,"MATERIALES AUXILIARES, SUMINISTROS Y REPUESTOS"]
[251,25100,"Materiales auxiliares",null,null,1]
[252,null,"Suministros"]
[2521,25210,"Combustibles",null,null,1]
[2522,25220,"Lubricantes",null,null,1]
[2523,25230,"Energía",null,null,1]
[2524,25240,"Otros suministros",null,null,1]
[253,25300,"Repuestos",null,null,1]
[26,null,"ENVASES Y EMBALAJES"]
[261,26100,"Envases",null,null,1]
[262,26200,"Embalajes",null,null,1]
[27,null,"ACTIVOS NO CORRIENTES MANTENIDOS PARA LA VENTA"]
[271,null,"Inversiones inmobiliarias"]
[2711,null,"Terrenos"]
[27111,27111,"Valor razonable",null,null,1]
[27112,27112,"Costo",null,null,1]
[27113,27113,"Revaluación",null,null,1]
[2712,null,"Edificaciones"]
[27121,27121,"Valor razonable",null,null,1]
[27122,27122,"Costo",null,null,1]
[27123,27123,"Revaluación",null,null,1]
[27124,27124,"Costos de financiación",null,null,1]
[272,27200,"Inmuebles, maquinaria y equipo",null,null,1]
[2721,null,"Terrenos"]
[27211,27211,"Valor razonable",null,null,1]
[27212,27212,"Costo",null,null,1]
[27213,27213,"Revaluación",null,null,1]
[2722,null,"Edificaciones"]
[27221,27221,"Costo de adquisición o construcción",null,null,1]
[27222,27222,"Revaluación",null,null,1]
[27223,27223,"Costo de financiación",null,null,1]
[2723,null,"Maquinarias y equipos de explotación"]
[27231,27231,"Costo de adquisición o construcción",null,null,1]
[27232,27232,"Revaluación",null,null,1]
[27233,27233,"Costo de financiación",null,null,1]
[2724,null,"Equipo de transporte"]
[27241,27241,"Costo",null,null,1]
[27242,27242,"Revaluación",null,null,1]
[2725,null,"Muebles y enseres"]
[27251,27251,"Costo",null,null,1]
[27252,27252,"Revaluación",null,null,1]
[2726,null,"Equipos diversos"]
[27261,27261,"Costo",null,null,1]
[27262,27262,"Revaluación",null,null,1]
[2727,null,"Herramientas y unidades de reemplazo"]
[27271,27271,"Costo",null,null,1]
[27272,27272,"Revaluación",null,null,1]
[273,null,"Intangibles"]
[2731,null,"Concesiones, licencias y derechos"]
[27311,27311,"Costo",null,null,1]
[27312,27312,"Revaluación",null,null,1]
[2732,null,"Patentes y propiedad industrial"]
[27321,27321,"Costo",null,null,1]
[27322,27322,"Revaluación",null,null,1]
[2733,null,"Programas de computadora (software)"]
[27331,27331,"Costo",null,null,1]
[27332,27332,"Revaluación",null,null,1]
[2734,null,"Costos de exploración y desarrollo"]
[27341,27341,"Costo",null,null,1]
[27342,27342,"Revaluación",null,null,1]
[2735,null,"Fórmulas, diseños y prototipos"]
[27351,27351,"Costo",null,null,1]
[27352,27352,"Revaluación",null,null,1]
[2736,null,"Reservas de recursos extraíbles"]
[27361,27361,"Costo",null,null,1]
[27362,27362,"Revaluación",null,null,1]
[2739,null,"Otros activos intangibles"]
[27391,27391,"Costo",null,null,1]
[27392,27392,"Revaluación",null,null,1]
[274,null,"Activos biológicos"]
[2741,null,"Activos biológicos en producción"]
[27411,27411,"Valor razonable",null,null,1]
[27412,27412,"Costo",null,null,1]
[27413,27413,"Costos de financiación",null,null,1]
[2742,null,"Activos biológicos en desarrollo"]
[27421,27421,"Valor razonable",null,null,1]
[27422,27422,"Costo",null,null,1]
[27423,27423,"Costos de financiación",null,null,1]
[275,null,"Depreciación acumulada – Inversión inmobiliaria"]
[2752,null,"Edificaciones"]
[27521,27521,"Valor razonable",null,null,1]
[27522,27522,"Costo",null,null,1]
[27523,27523,"Revaluación",null,null,1]
[276,null,"Depreciación acumulada – Inmuebles, maquinaria y equipo"]
[2762,null,"Edificaciones"]
[27621,27621,"Costo de adquisición o construcción",null,null,1]
[27622,27622,"Revaluación",null,null,1]
[27623,27623,"Costo de financiación",null,null,1]
[2763,null,"Maquinarias y equipos de explotación"]
[27631,27631,"Costo de adquisición o construcción",null,null,1]
[27632,27632,"Revaluación",null,null,1]
[27633,27633,"Costo de financiación",null,null,1]
[2764,null,"Equipo de transporte"]
[27641,27641,"Costo",null,null,1]
[27642,27642,"Revaluación",null,null,1]
[2765,null,"Muebles y enseres"]
[27651,27651,"Costo",null,null,1]
[27652,27652,"Revaluación",null,null,1]
[2766,null,"Equipos diversos"]
[27661,27661,"Costo",null,null,1]
[27662,27662,"Revaluación",null,null,1]
[2767,null,"Herramientas y unidades de reemplazo"]
[27671,27671,"Costo",null,null,1]
[27672,27672,"Revaluación",null,null,1]
[277,27700,"Amortización acumulada – Intangibles",null,null,1]
[2771,null,"Concesiones, licencias y derechos"]
[27711,27711,"Costo",null,null,1]
[27712,27712,"Revaluación",null,null,1]
[2772,null,"Patentes y propiedad industrial"]
[27721,27721,"Costo",null,null,1]
[27722,27722,"Revaluación",null,null,1]
[2773,null,"Programas de computadora (software)"]
[27731,27731,"Costo",null,null,1]
[27732,27732,"Revaluación",null,null,1]
[2774,null,"Costos de exploración y desarrollo"]
[27741,27741,"Costo",null,null,1]
[27742,27742,"Revaluación",null,null,1]
[2775,null,"Fórmulas, diseños y prototipos"]
[27751,27751,"Costo",null,null,1]
[27752,27752,"Revaluación",null,null,1]
[2776,null,"Reservas de recursos extraíbles"]
[27761,27761,"Costo",null,null,1]
[27762,27762,"Revaluación",null,null,1]
[2779,null,"Otros activos intangibles"]
[27791,27791,"Costo",null,null,1]
[27792,27792,"Revaluación",null,null,1]
[278,null,"Depreciación acumulada – Activos biológicos"]
[2781,null,"Activos biológicos en producción"]
[27812,27812,"Costo",null,null,1]
[2782,null,"Activos biológicos en desarrollo"]
[27822,27822,"Costo",null,null,1]
[279,null,"Desvalorización acumulada"]
[2791,null,"Inversión inmobiliaria"]
[27911,27911,"Terrenos",null,null,1]
[27912,27912,"Edificaciones",null,null,1]
[2793,null,"Inmuebles, maquinaria y equipo"]
[27931,27931,"Terrenos",null,null,1]
[27932,27932,"Edificaciones",null,null,1]
[27933,27933,"Maquinarias y equipos de explotación",null,null,1]
[27934,27934,"Equipo de transporte",null,null,1]
[27935,27935,"Muebles y enseres",null,null,1]
[27936,27936,"Equipos diversos",null,null,1]
[27937,27937,"Herramientas y unidades de reemplazo",null,null,1]
[2794,null,"Intangibles"]
[27941,27941,"Concesiones, licencias y otros derechos",null,null,1]
[27942,27942,"Patentes y propiedad industrial",null,null,1]
[27943,27943,"Programas de computadora (software)",null,null,1]
[27944,27944,"Costos de exploración y desarrollo",null,null,1]
[27945,27945,"Fórmulas, diseños y prototipos",null,null,1]
[27946,27946,"Reservas de recursos extraíbles",null,null,1]
[27949,27949,"Fórmulas, diseños y prototipos",null,null,1]
[2795,null,"Activos biológicos"]
[27951,27951,"Activos biológicos en producción",null,null,1]
[27952,27952,"Activos biológicos en desarrollo",null,null,1]
[28,null,"EXISTENCIAS POR RECIBIR"]
[281,28100,"Mercaderías",null,null,1]
[284,28400,"Materias primas",null,null,1]
[285,28500,"Materiales auxiliares, suministros y repuestos",null,null,1]
[286,28600,"Envases y embalajes",null,null,1]
[29,null,"DESVALORIZACIÓN DE EXISTENCIAS"]
[291,null,"Mercaderías"]
[2911,29110,"Mercaderías manufacturadas",null,null,1]
[2912,29120,"Mercaderías de extracción",null,null,1]
[2913,29130,"Mercaderías agropecuarias y piscícolas",null,null,1]
[2914,29140,"Mercaderías inmuebles",null,null,1]
[2918,29180,"Otras mercaderías",null,null,1]
[292,null,"Productos terminados"]
[2921,29210,"Productos manufacturados",null,null,1]
[2922,29220,"Productos de extracción terminados",null,null,1]
[2923,29230,"Productos agropecuarios y piscícolas terminados",null,null,1]
[2924,29240,"Productos inmuebles",null,null,1]
[2925,29250,"Existencias de servicios terminados",null,null,1]
[2927,29270,"Otros productos terminados",null,null,1]
[2928,29280,"Costos de financiación – Productos terminados",null,null,1]
[293,null,"Subproductos, desechos y desperdicios"]
[2931,29310,"Subproductos",null,null,1]
[2932,29320,"Desechos y desperdicios",null,null,1]
[294,null,"Productos en proceso"]
[2941,29410,"Productos en proceso de manufactura",null,null,1]
[2942,29420,"Productos extraídos en proceso de transformación",null,null,1]
[2943,29430,"Productos agropecuarios y piscícolas en proceso",null,null,1]
[2944,29440,"Productos inmuebles en proceso",null,null,1]
[2945,29450,"Existencias de servicios en proceso",null,null,1]
[2947,29470,"Otros productos en proceso",null,null,1]
[2948,29480,"Costos de financiación – Productos en proceso",null,null,1]
[295,null,"Materias primas"]
[2951,29510,"Materias primas para productos manufacturados",null,null,1]
[2952,29520,"Materias primas para productos de extracción",null,null,1]
[2953,29530,"Materias primas para productos agropecuarios y piscícolas",null,null,1]
[2954,29540,"Materias primas para productos inmuebles",null,null,1]
[296,null,"Materiales auxiliares, suministros y repuestos"]
[2961,29610,"Materiales auxiliares",null,null,1]
[2962,29620,"Suministros",null,null,1]
[2963,29630,"Repuestos",null,null,1]
[297,null,"Envases y embalajes"]
[2971,29710,"Envases",null,null,1]
[2972,29720,"Embalajes",null,null,1]
[298,null,"Existencias por recibir"]
[2981,29810,"Mercaderías",null,null,1]
[2982,29820,"Materias primas",null,null,1]
[2983,29830,"Materiales auxiliares, suministros y repuestos",null,null,1]
[2984,29840,"Envases y embalajes",null,null,1]
[30,null,"INVERSIONES MOBILIARIAS"]
[301,null,"Inversiones a ser mantenidas hasta el vencimiento"]
[3011,null,"Instrumentos financieros representativos de deuda"]
[30111,30111,"Valores emitidos o garantizados por el Estado",null,null,1]
[30112,30112,"Valores emitidos por el sistema financiero",null,null,1]
[30113,30113,"Valores emitidos por las empresas",null,null,1]
[30114,30114,"Valores emitidos por otras entidades",null,null,1]
[302,null,"Instrumentos financieros representativos de derecho patrimonial"]
[3021,30210,"Certificados de suscripción preferente",null,null,1]
[3022,null,"Acciones representativas de capital social - Comunes"]
[30221,30221,"Costo",null,null,1]
[30222,30222,"Valor razonable",null,null,1]
[30223,30223,"Participación patrimonial",null,null,1]
[3023,null,"Acciones representativas de capital social - Preferentes"]
[30231,30231,"Costo",null,null,1]
[30232,30232,"Valor razonable",null,null,1]
[30233,30233,"Participación patrimonial",null,null,1]
[3024,null,"Acciones de inversión"]
[30241,30241,"Costo",null,null,1]
[30242,30242,"Valor razonable",null,null,1]
[30243,30243,"Participación patrimonial",null,null,1]
[3025,null,"Certificados de participación de fondos de inversión"]
[30251,30251,"Costo",null,null,1]
[30252,30252,"Valor razonable",null,null,1]
[3026,null,"Certificados de participación de fondos mutuos"]
[30261,30261,"Costo",null,null,1]
[30262,30262,"Valor razonable",null,null,1]
[3027,null,"Participaciones en asociaciones en participación y consorcios"]
[30271,30271,"Costo",null,null,1]
[30272,30272,"Valor razonable",null,null,1]
[30273,30273,"Participación patrimonial",null,null,1]
[3028,null,"Otros títulos representativos de patrimonio"]
[30281,30281,"Costo",null,null,1]
[30282,30282,"Valor razonable",null,null,1]
[308,null,"Inversiones mobiliarias – Acuerdos de compra"]
[3081,30810,"Inversiones a ser mantenidas hasta el vencimiento – Acuerdo de compra",null,null,1]
[3082,30820,"Instrumentos financieros representativos de derecho patrimonial – Acuerdo de compra",null,null,1]
[31,null,"INVERSIONES INMOBILIARIAS"]
[311,null,"Terrenos"]
[3111,null,"Urbanos"]
[31111,31111,"Valor razonable",null,null,1]
[31112,31112,"Costo",null,null,1]
[31113,31113,"Revaluación",null,null,1]
[3112,null,"Rurales"]
[31121,31121,"Valor razonable",null,null,1]
[31122,31122,"Costo",null,null,1]
[31123,31123,"Revaluación",null,null,1]
[312,null,"Edificaciones"]
[3121,null,"Edificaciones"]
[31211,31211,"Valor razonable",null,null,1]
[31212,31212,"Costo",null,null,1]
[31213,31213,"Revaluación",null,null,1]
[31214,31214,"Costos de financiación – Inversiones inmobiliarias",null,null,1]
[32,null,"ACTIVOS ADQUIRIDOS EN ARRENDAMIENTO FINANCIERO"]
[321,null,"Inversiones inmobiliarias"]
[3211,32110,"Terrenos",null,null,1]
[3212,32120,"Edificaciones",null,null,1]
[322,null,"Inmuebles, maquinaria y equipo"]
[3221,32210,"Terrenos",null,null,1]
[3222,32220,"Edificaciones",null,null,1]
[3223,32230,"Maquinarias y equipos de explotación",null,null,1]
[3224,32240,"Equipo de transporte",null,null,1]
[3225,32250,"Muebles y enseres",null,null,1]
[3226,32260,"Equipos diversos",null,null,1]
[3227,32270,"Herramientas y unidades de reemplazo",null,null,1]
[33,null,"INMUEBLES, MAQUINARIA Y EQUIPO"]
[331,null,"Terrenos"]
[3311,null,"Terrenos"]
[33111,33111,"Costo",null,null,1]
[33112,33112,"Revaluación",null,null,1]
[332,null,"Edificaciones"]
[3321,null,"Edificaciones administrativas"]
[33211,33211,"Costo de adquisición o construcción",null,null,1]
[33212,33212,"Revaluación",null,null,1]
[33213,33213,"Costo de financiación - Edificaciones",null,null,1]
[3322,null,"Almacenes"]
[33221,33221,"Costo de adquisición o construcción",null,null,1]
[33222,33222,"Revaluación",null,null,1]
[33223,33223,"Costo de financiación - Almacenes",null,null,1]
[3323,null,"Edificaciones para producción"]
[33231,33231,"Costo de adquisición o construcción",null,null,1]
[33232,33232,"Revaluación",null,null,1]
[33233,33233,"Costo de financiación – Edificaciones para producción",null,null,1]
[3324,null,"Instalaciones"]
[33241,33241,"Costo de adquisición o construcción",null,null,1]
[33242,33242,"Revaluación",null,null,1]
[33243,33243,"Costo de financiación – Instalaciones",null,null,1]
[333,null,"Maquinarias y equipos de explotación"]
[3331,null,"Maquinarias y equipos de explotación"]
[33311,33311,"Costo de adquisición o construcción",null,null,1]
[33312,33312,"Revaluación",null,null,1]
[33313,33313,"Costo de financiación – Maquinarias y equipos de explotación",null,null,1]
[334,null,"Unidades de transporte"]
[3341,null,"Vehículos motorizados"]
[33411,33411,"Costo",null,null,1]
[33412,33412,"Revaluación",null,null,1]
[3342,null,"Vehículos no motorizados"]
[33421,33421,"Costo",null,null,1]
[33422,33422,"Revaluación",null,null,1]
[335,null,"Muebles y enseres"]
[3351,null,"Muebles"]
[33511,33511,"Costo",null,null,1]
[33512,33512,"Revaluación",null,null,1]
[3352,null,"Enseres"]
[33521,33521,"Costo",null,null,1]
[33522,33522,"Revaluación",null,null,1]
[336,null,"Equipos diversos"]
[3361,null,"Equipo para procesamiento de información (de cómputo)"]
[33611,33611,"Costo",null,null,1]
[33612,33612,"Revaluación",null,null,1]
[3362,null,"Equipo de comunicación"]
[33621,33621,"Costo",null,null,1]
[33622,33622,"Revaluación",null,null,1]
[3363,null,"Equipo de seguridad"]
[33631,33631,"Costo",null,null,1]
[33632,33632,"Revaluación",null,null,1]
[3369,null,"Otros equipos"]
[33691,33691,"Costo",null,null,1]
[33692,33692,"Revaluación",null,null,1]
[337,null,"Herramientas y unidades de reemplazo"]
[3371,null,"Herramientas"]
[33711,33711,"Costo",null,null,1]
[33712,33712,"Revaluación",null,null,1]
[3372,null,"Unidades de reemplazo"]
[33721,33721,"Costo",null,null,1]
[33722,33722,"Revaluación",null,null,1]
[338,null,"Unidades por recibir"]
[3381,null,"Maquinarias y equipos de explotación"]
[3382,33820,"Equipo de transporte",null,null,1]
[3383,33830,"Muebles y enseres",null,null,1]
[3386,33860,"Equipos diversos",null,null,1]
[3387,33870,"Herramientas y unidades de reemplazo",null,null,1]
[339,null,"Construcciones y obras en curso"]
[3391,33910,"Adaptación de terrenos",null,null,1]
[3392,33920,"Construcciones en curso",null,null,1]
[3393,33930,"Maquinaria en montaje",null,null,1]
[3394,33940,"Inversión inmobiliaria en curso",null,null,1]
[3397,null,"Costo de financiación – Inversiones inmobiliarias"]
[33971,33971,"Costo de financiación - Edificaciones",null,null,1]
[3398,null,"Costo de financiación – Inmuebles, maquinaria y equipo"]
[33981,33981,"Costo de financiación – Edificaciones",null,null,1]
[33982,33982,"Costo de financiación – Maquinarias y equipos de explotación",null,null,1]
[3399,33990,"Otros activos en curso",null,null,1]
[34,null,"INTANGIBLES"]
[341,null,"Concesiones, licencias y otros derechos"]
[3411,null,"Concesiones"]
[34111,34111,"Costo",null,null,1]
[34112,34112,"Revaluación",null,null,1]
[3412,null,"Licencias"]
[34121,34121,"Costo",null,null,1]
[34122,34122,"Revaluación",null,null,1]
[3419,null,"Otros derechos"]
[34191,34191,"Costo",null,null,1]
[34192,34192,"Revaluación",null,null,1]
[342,null,"Patentes y propiedad industrial"]
[3421,null,"Patentes"]
[34211,34211,"Costo",null,null,1]
[34212,34212,"Revaluación",null,null,1]
[3422,null,"Marcas"]
[34221,34221,"Costo",null,null,1]
[34222,34222,"Revaluación",null,null,1]
[343,null,"Programas de computadora (software)"]
[3431,null,"Aplicaciones informáticas"]
[34311,34311,"Costo",null,null,1]
[34312,34312,"Revaluación",null,null,1]
[344,null,"Costos de exploración y desarrollo"]
[3441,null,"Costos de exploración"]
[34411,34411,"Costo",null,null,1]
[34412,34412,"Revaluación",null,null,1]
[34413,34413,"Costo de financiación",null,null,1]
[3442,null,"Costos de desarrollo"]
[34421,34421,"Costo",null,null,1]
[34422,34422,"Revaluación",null,null,1]
[34423,34423,"Costo de financiación",null,null,1]
[345,null,"Fórmulas, diseños y prototipos"]
[3451,null,"Fórmulas"]
[34511,34511,"Costo",null,null,1]
[34512,34512,"Revaluación",null,null,1]
[3452,null,"Diseños y prototipos"]
[34521,34521,"Costo",null,null,1]
[34522,34522,"Revaluación",null,null,1]
[346,null,"Reservas de recursos extraíbles"]
[3461,null,"Minerales"]
[34611,34611,"Costo",null,null,1]
[34612,34612,"Revaluación",null,null,1]
[3462,null,"Petróleo y gas"]
[34621,34621,"Costo",null,null,1]
[34622,34622,"Revaluación",null,null,1]
[3463,null,"Madera"]
[34631,34631,"Costo",null,null,1]
[34632,34632,"Revaluación",null,null,1]
[3469,null,"Otros recursos extraíbles"]
[34691,34691,"Costo",null,null,1]
[34692,34692,"Revaluación",null,null,1]
[347,null,"Plusvalía mercantil"]
[3471,34710,"Plusvalía mercantil",null,null,1]
[349,null,"Otros activos intangibles"]
[3491,null,"Otros activos intangibles"]
[34911,34911,"Costo",null,null,1]
[34912,34912,"Revaluación",null,null,1]
[35,null,"ACTIVOS BIOLÓGICOS"]
[351,null,"Activos biológicos en producción"]
[3511,null,"De origen animal"]
[35111,35111,"Valor razonable",null,null,1]
[35112,35112,"Costo",null,null,1]
[35113,35113,"Costo de financiación",null,null,1]
[3512,null,"De origen vegetal"]
[35121,35121,"Valor razonable",null,null,1]
[35122,35122,"Costo",null,null,1]
[35123,35123,"Costo de financiación",null,null,1]
[352,null,"Activos biológicos en desarrollo"]
[3521,null,"De origen animal"]
[35211,35211,"Valor razonable",null,null,1]
[35212,35212,"Costo",null,null,1]
[35213,35213,"Costo de financiación",null,null,1]
[3522,null,"De origen vegetal"]
[35221,35221,"Valor razonable",null,null,1]
[35222,35222,"Costo",null,null,1]
[35223,35223,"Costo de financiación",null,null,1]
[36,null,"DESVALORIZACIÓN DE ACTIVO INMOVILIZADO"]
[361,null,"Desvalorización de inversiones inmobiliarias"]
[3611,36110,"Terrenos",null,null,1]
[3612,null,"Edificaciones"]
[36121,36121,"Edificaciones - Costo de adquisición o construcción",null,null,1]
[36122,36122,"Edificaciones - Costo de financiación",null,null,1]
[363,null,"Desvalorización de inmuebles, maquinaria y equipo"]
[3631,36310,"Terrenos",null,null,1]
[3632,null,"Edificaciones"]
[36321,36321,"Edificaciones - Costo de adquisición o construcción",null,null,1]
[36322,36322,"Edificaciones - Costo de financiación",null,null,1]
[3633,null,"Maquinarias y equipos de explotación"]
[36331,36331,"Maquinarias y equipos de explotación - Costo de adquisición o construcción",null,null,1]
[36332,36332,"Maquinarias y equipos de explotación - Costo de financiación",null,null,1]
[3634,36340,"Equipo de transporte",null,null,1]
[3635,36350,"Muebles y enseres",null,null,1]
[3636,36360,"Equipos diversos",null,null,1]
[3637,36370,"Herramientas y unidades de reemplazo",null,null,1]
[364,null,"Desvalorización de intangibles"]
[3641,36410,"Concesiones, licencias y otros derechos",null,null,1]
[3642,36420,"Patentes y propiedad industrial",null,null,1]
[3643,36430,"Programas de computadora (software)",null,null,1]
[3644,null,"Costos de exploración y desarrollo"]
[36441,36441,"Costo",null,null,1]
[36442,36442,"Costo de financiación",null,null,1]
[3645,36450,"Fórmulas, diseños y prototipos",null,null,1]
[3647,36470,"Plusvalía mercantil",null,null,1]
[3649,36490,"Otros activos intangibles",null,null,1]
[365,null,"Desvalorización de activos biológicos"]
[3651,null,"Activos biológicos en producción"]
[36511,36511,"Costo",null,null,1]
[36512,36512,"Costo de financiación",null,null,1]
[3652,null,"Activos biológicos en desarrollo"]
[36521,36521,"Costo",null,null,1]
[36522,36522,"Costo de financiación",null,null,1]
[366,null,"Desvalorización de inversiones mobiliarias"]
[3661,36610,"Inversiones a ser mantenidas hasta el vencimiento",null,null,1]
[3662,36620,"Inversiones financieras representativas de derecho patrimonial",null,null,1]
[37,null,"ACTIVO DIFERIDO"]
[371,null,"Impuesto a la renta diferido"]
[3711,37110,"Impuesto a la renta diferido – Patrimonio",null,null,1]
[3712,37120,"Impuesto a la renta diferido – Resultados",null,null,1]
[372,null,"Participaciones de los trabajadores diferidas"]
[3721,37210,"Participaciones de los trabajadores diferidas – Patrimonio",null,null,1]
[3722,37220,"Participaciones de los trabajadores diferidas – Resultados",null,null,1]
[373,null,"Intereses diferidos"]
[3731,37310,"Intereses no devengados en transacciones con terceros",null,null,1]
[3732,37320,"Intereses no devengados en medición a valor descontado",null,null,1]
[38,null,"OTROS ACTIVOS"]
[381,null,"Bienes de arte y cultura"]
[3811,38110,"Obras de arte",null,null,1]
[3812,38120,"Biblioteca",null,null,1]
[3813,38130,"Otros",null,null,1]
[382,null,"Diversos"]
[3821,38210,"Monedas y joyas",null,null,1]
[3822,38220,"Bienes entregados en comodato",null,null,1]
[3823,38230,"Bienes recibidos en pago (adjudicados y realizables)",null,null,1]
[3829,38290,"Otros",null,null,1]
[39,null,"DEPRECIACIÓN, AMORTIZACIÓN Y AGOTAMIENTO ACUMULADOS"]
[391,null,"Depreciación acumulada"]
[3911,null,"Inversiones Inmobiliarias"]
[39111,39111,"Edificaciones – Costo de adquisición o construcción",null,null,1]
[39112,39112,"Edificaciones - Revaluación",null,null,1]
[39113,39113,"Edificaciones – Costo de financiación",null,null,1]
[3912,null,"Activos adquiridos en arrendamiento financiero"]
[39121,39121,"Inversiones inmobiliarias - Edificaciones",null,null,1]
[39122,39122,"Inmuebles, maquinaria y equipo - Edificaciones",null,null,1]
[39123,39123,"Inmuebles, maquinaria y equipo – Maquinarias y equipos de explotación",null,null,1]
[39124,39124,"Inmuebles, maquinaria y equipo – Equipos de transporte",null,null,1]
[39126,39126,"Inmuebles, maquinaria y equipo – Equipos diversos",null,null,1]
[3913,null,"Inmuebles, maquinaria y equipo - Costo"]
[39131,39131,"Edificaciones",null,null,1]
[39132,39132,"Maquinarias y equipos de explotación",null,null,1]
[39133,39133,"Equipo de transporte",null,null,1]
[39134,39134,"Muebles y enseres",null,null,1]
[39135,39135,"Equipos diversos",null,null,1]
[39136,39136,"Herramientas y unidades de reemplazo",null,null,1]
[3914,null,"Inmuebles, maquinaria y equipo - Revaluación"]
[39141,39141,"Edificaciones",null,null,1]
[39142,39142,"Maquinarias y equipos de explotación",null,null,1]
[39143,39143,"Equipo de transporte",null,null,1]
[39144,39144,"Muebles y enseres",null,null,1]
[39145,39145,"Equipos diversos",null,null,1]
[39146,39146,"Herramientas y unidades de reemplazo",null,null,1]
[3915,null,"Inmuebles, maquinaria y equipo – Costo de financiación"]
[39151,39151,"Edificaciones",null,null,1]
[39152,39152,"Maquinarias y equipos de explotación",null,null,1]
[3916,null,"Activos biológicos en producción – Costo"]
[39161,39161,"Activos biológicos de origen animal",null,null,1]
[39162,39162,"Activos biológicos de origen vegetal",null,null,1]
[3917,null,"Activos biológicos en producción – Costo de financiación"]
[39171,39171,"Activos biológicos de origen animal",null,null,1]
[39172,39172,"Activos biológicos de origen vegetal",null,null,1]
[392,null,"Amortización acumulada"]
[3921,null,"Intangibles - Costo"]
[39211,39211,"Concesiones, licencias y otros derechos",null,null,1]
[39212,39212,"Patentes y propiedad industrial",null,null,1]
[39213,39213,"Programas de computadora (software)",null,null,1]
[39214,39214,"Costos de exploración y desarrollo",null,null,1]
[39215,39215,"Fórmulas, diseños y prototipos",null,null,1]
[39219,39219,"Otros activos intangibles",null,null,1]
[3922,null,"Intangibles - Revaluación"]
[39221,39221,"Concesiones, licencias y otros derechos",null,null,1]
[39222,39222,"Patentes y propiedad industrial",null,null,1]
[39223,39223,"Programas de computadora (software)",null,null,1]
[39224,39224,"Costos de exploración y desarrollo",null,null,1]
[39225,39225,"Fórmulas, diseños y prototipos",null,null,1]
[39229,39229,"Otros activos intangibles",null,null,1]
[3923,null,"Intangibles – Costos de financiación"]
[39234,39234,"Costos de exploración y desarrollo",null,null,1]
[393,null,"Agotamiento acumulado"]
[3931,39310,"Agotamiento de reservas de recursos extraíbles",null,null,1]
[40,null,"TRIBUTOS, CONTRAPRESTACIONES Y APORTES AL SISTEMA DE PENSIONES Y DE SALUD POR PAGAR"]
[401,null,"Gobierno central"]
[4011,null,"Impuesto general a las ventas"]
[40111,40111,"IGV - Cuenta propia",null,null,1]
[40112,40112,"IGV - Servicios prestados por no domiciliados",null,null,1]
[40113,40113,"IGV - Régimen de percepciones",null,null,1]
[40114,40114,"IGV - Régimen de retenciones",null,null,1]
[4012,40120,"Impuesto selectivo al consumo",null,null,1]
[4015,null,"Derechos aduaneros"]
[40151,40151,"Derechos arancelarios",null,null,1]
[40152,40152,"Derechos aduaneros por ventas",null,null,1]
[4017,null,"Impuesto a la renta"]
[40171,40171,"Renta de tercera categoría",null,null,1]
[40172,40172,"Renta de cuarta categoría",null,null,1]
[40173,40173,"Renta de quinta categoría",null,null,1]
[40174,40174,"Renta de no domiciliados",null,null,1]
[40175,40175,"Otras retenciones",null,null,1]
[4018,null,"Otros impuestos y contraprestaciones"]
[40181,40181,"Impuesto a las transacciones financieras",null,null,1]
[40182,40182,"Impuesto a los juegos de casino y tragamonedas",null,null,1]
[40183,40183,"Tasas por la prestación de servicios públicos",null,null,1]
[40184,40184,"Regalías",null,null,1]
[40185,40185,"Impuesto a los dividendos",null,null,1]
[40186,40186,"Impuesto temporal a los activos netos",null,null,1]
[40189,40189,"Otros impuestos",null,null,1]
[402,40200,"Certificados tributarios",null,null,1]
[403,null,"Instituciones públicas"]
[4031,40310,"ESSALUD",null,null,1]
[4032,40320,"ONP",null,null,1]
[4033,40330,"Contribución al SENATI",null,null,1]
[4034,40340,"Contribución al SENCICO",null,null,1]
[4039,40390,"Otras instituciones",null,null,1]
[405,40500,"Gobiernos regionales",null,null,1]
[406,null,"Gobiernos locales"]
[4061,null,"Impuestos"]
[40611,40611,"Impuesto al patrimonio vehicular",null,null,1]
[40612,40612,"Impuesto a las apuestas",null,null,1]
[40613,40613,"Impuesto a los juegos",null,null,1]
[40614,40614,"Impuesto de alcabala",null,null,1]
[40615,40615,"Impuesto predial",null,null,1]
[40616,40616,"Impuesto a los espectáculos públicos no deportivos",null,null,1]
[4062,40620,"Contribuciones",null,null,1]
[4063,null,"Tasas"]
[40631,40631,"Licencia de apertura de establecimientos",null,null,1]
[40632,40632,"Transporte público",null,null,1]
[40633,40633,"Estacionamiento de vehículos",null,null,1]
[40634,40634,"Servicios públicos o arbitrios",null,null,1]
[40635,40635,"Servicios administrativos o derechos",null,null,1]
[407,40700,"Administradoras de fondos de pensiones",null,null,1]
[408,null,"Empresas prestadoras de servicios de salud"]
[4081,40810,"Cuenta propia",null,null,1]
[4082,40820,"Cuenta de terceros",null,null,1]
[409,40900,"Otros costos administrativos e intereses",null,null,1]
[41,null,"REMUNERACIONES Y PARTICIPACIONES POR PAGAR"]
[411,null,"Remuneraciones por pagar"]
[4111,41110,"Sueldos y salarios por pagar",null,null,1]
[4112,41120,"Comisiones por pagar",null,null,1]
[4113,41130,"Remuneraciones en especie por pagar",null,null,1]
[4114,41140,"Gratificaciones por pagar",null,null,1]
[4115,41150,"Vacaciones por pagar",null,null,1]
[413,41300,"Participaciones de los trabajadores por pagar",null,null,1]
[415,null,"Beneficios sociales de los trabajadores por pagar"]
[4151,41510,"Compensación por tiempo de servicios",null,null,1]
[4152,41520,"Adelanto de compensación por tiempo de servicios",null,null,1]
[4153,41530,"Pensiones y jubilaciones",null,null,1]
[419,41900,"Otras remuneraciones y participaciones por pagar",null,null,1]
[42,null,"CUENTAS POR PAGAR COMERCIALES – TERCEROS"]
[421,null,"Facturas, boletas y otros comprobantes por pagar"]
[4211,42110,"No emitidas",null,null,1]
[4212,42120,"Emitidas",null,null,1]
[422,42200,"Anticipos a proveedores",null,null,1]
[423,42300,"Letras por pagar",null,null,1]
[424,42400,"Honorarios por pagar",null,null,1]
[43,null,"CUENTAS POR PAGAR COMERCIALES – RELACIONADAS"]
[431,null,"Facturas, boletas y otros comprobantes por pagar"]
[4311,null,"No emitidas"]
[43111,43111,"Matriz",null,null,1]
[43112,43112,"Subsidiarias",null,null,1]
[43113,43113,"Asociadas",null,null,1]
[43114,43114,"Sucursales",null,null,1]
[43115,43115,"Otros",null,null,1]
[4312,null,"Emitidas"]
[43121,43121,"Matriz",null,null,1]
[43122,43122,"Subsidiarias",null,null,1]
[43123,43123,"Asociadas",null,null,1]
[43124,43124,"Sucursales",null,null,1]
[43125,43125,"Otros",null,null,1]
[432,null,"Anticipos otorgados"]
[4321,null,"Anticipos otorgados"]
[43211,43211,"Matriz",null,null,1]
[43212,43212,"Subsidiarias",null,null,1]
[43213,43213,"Asociadas",null,null,1]
[43214,43214,"Sucursales",null,null,1]
[43215,43215,"Otros",null,null,1]
[433,null,"Letras por pagar"]
[4331,null,"Letras por pagar"]
[43311,43311,"Matriz",null,null,1]
[43312,43312,"Subsidiarias",null,null,1]
[43313,43313,"Asociadas",null,null,1]
[43314,43314,"Sucursales",null,null,1]
[43315,43315,"Otros",null,null,1]
[434,null,"Honorarios por pagar"]
[4341,null,"Honorarios por pagar"]
[43411,43411,"Matriz",null,null,1]
[43412,43412,"Subsidiarias",null,null,1]
[43413,43413,"Asociadas",null,null,1]
[43414,43414,"Sucursales",null,null,1]
[43415,43415,"Otros",null,null,1]
[44,null,"CUENTAS POR PAGAR A LOS ACCIONISTAS (SOCIOS), DIRECTORES Y GERENTES"]
[441,null,"Accionistas (o socios)"]
[4411,44110,"Préstamos",null,null,1]
[4412,44120,"Dividendos",null,null,1]
[4419,44190,"Otras cuentas por pagar",null,null,1]
[442,null,"Directores"]
[4421,44210,"Dietas",null,null,1]
[4429,44290,"Otras cuentas por pagar",null,null,1]
[443,44300,"Gerentes",null,null,1]
[45,null,"OBLIGACIONES FINANCIERAS"]
[451,null,"Préstamos de instituciones financieras y otras entidades"]
[4511,45110,"Instituciones financieras",null,null,1]
[4512,45120,"Otras entidades",null,null,1]
[452,45200,"Contratos de arrendamiento financiero",null,null,1]
[453,null,"Obligaciones emitidas"]
[4531,45310,"Bonos emitidos",null,null,1]
[4532,45320,"Bonos titulizados",null,null,1]
[4533,45330,"Papeles comerciales",null,null,1]
[4539,45390,"Otras obligaciones",null,null,1]
[454,null,"Otros Instrumentos financieros por pagar"]
[4541,45410,"Letras",null,null,1]
[4542,45420,"Papeles comerciales",null,null,1]
[4543,45430,"Bonos",null,null,1]
[4544,45440,"Pagarés",null,null,1]
[4545,45450,"Facturas conformadas",null,null,1]
[4549,45490,"Otras obligaciones financieras",null,null,1]
[455,null,"Costos de financiación por pagar"]
[4551,null,"Préstamos de instituciones financieras y otras entidades"]
[45511,45511,"Instituciones financieras",null,null,1]
[45512,45512,"Otras entidades",null,null,1]
[4552,45520,"Contratos de arrendamiento financiero",null,null,1]
[4553,null,"Obligaciones emitidas"]
[45531,45531,"Bonos emitidos",null,null,1]
[45532,45532,"Bonos titulizados",null,null,1]
[45533,45533,"Papeles comerciales",null,null,1]
[45539,45539,"Otras obligaciones",null,null,1]
[4554,null,"Otros instrumentos financieros por pagar"]
[45541,45541,"Letras",null,null,1]
[45542,45542,"Papeles comerciales",null,null,1]
[45543,45543,"Bonos",null,null,1]
[45544,45544,"Pagarés",null,null,1]
[45545,45545,"Facturas conformadas",null,null,1]
[45549,45549,"Otras obligaciones financieras",null,null,1]
[456,45600,"Préstamos con compromisos de recompra",null,null,1]
[46,null,"CUENTAS POR PAGAR DIVERSAS – TERCEROS"]
[461,46100,"Reclamaciones de terceros",null,null,1]
[464,null,"Pasivos por instrumentos financieros"]
[4641,46410,"Instrumentos financieros primarios",null,null,1]
[4642,null,"Instrumentos financieros derivados"]
[46421,46421,"Cartera de negociación",null,null,1]
[46422,46422,"Instrumentos de cobertura",null,null,1]
[465,null,"Pasivos por compra de activo inmovilizado"]
[4651,46510,"Inversiones mobiliarias",null,null,1]
[4652,46520,"Inversiones inmobiliarias",null,null,1]
[4653,46530,"Activos adquiridos en arrendamiento financiero",null,null,1]
[4654,46540,"Inmuebles, maquinaria y equipo",null,null,1]
[4655,46550,"Intangibles",null,null,1]
[4656,46560,"Activos biológicos",null,null,1]
[467,46700,"Depósitos recibidos en garantía",null,null,1]
[469,null,"Otras cuentas por pagar diversas"]
[4691,46910,"Subsidios gubernamentales",null,null,1]
[4692,46920,"Donaciones condicionadas",null,null,1]
[4699,46990,"Otras cuentas por pagar",null,null,1]
[47,null,"CUENTAS POR PAGAR DIVERSAS – RELACIONADAS"]
[471,null,"Préstamos"]
[4711,47110,"Matriz",null,null,1]
[4712,47120,"Subsidiarias",null,null,1]
[4713,47130,"Asociadas",null,null,1]
[4714,47140,"Sucursales",null,null,1]
[4715,47150,"Otras",null,null,1]
[472,null,"Costos de financiación"]
[4721,47210,"Matriz",null,null,1]
[4722,47220,"Subsidiarias",null,null,1]
[4723,47230,"Asociadas",null,null,1]
[4724,47240,"Sucursales",null,null,1]
[4725,47250,"Otras",null,null,1]
[473,null,"Anticipos recibidos"]
[4731,47310,"Matriz",null,null,1]
[4732,47320,"Subsidiarias",null,null,1]
[4733,47330,"Asociadas",null,null,1]
[4734,47340,"Sucursales",null,null,1]
[4735,47350,"Otras",null,null,1]
[474,null,"Regalías"]
[4741,47410,"Matriz",null,null,1]
[4742,47420,"Subsidiarias",null,null,1]
[4743,47430,"Asociadas",null,null,1]
[4744,47440,"Sucursales",null,null,1]
[4745,47450,"Otras",null,null,1]
[475,null,"Dividendos"]
[4751,47510,"Matriz",null,null,1]
[4752,47520,"Subsidiarias",null,null,1]
[4753,47530,"Asociadas",null,null,1]
[4754,47540,"Sucursales",null,null,1]
[4755,47550,"Otras",null,null,1]
[477,null,"Pasivo por compra de activo inmovilizado"]
[4771,null,"Inversiones mobiliarias"]
[47711,47711,"Matriz",null,null,1]
[47712,47712,"Subsidiarias",null,null,1]
[47713,47713,"Asociadas",null,null,1]
[47714,47714,"Sucursales",null,null,1]
[47715,47715,"Otras",null,null,1]
[4772,null,"Inversiones inmobiliarias"]
[47721,47721,"Matriz",null,null,1]
[47722,47722,"Subsidiarias",null,null,1]
[47723,47723,"Asociadas",null,null,1]
[47724,47724,"Sucursales",null,null,1]
[47725,47725,"Otras",null,null,1]
[4773,null,"Activos adquiridos en arrendamiento financiero"]
[47731,47731,"Matriz",null,null,1]
[47732,47732,"Subsidiarias",null,null,1]
[47733,47733,"Asociadas",null,null,1]
[47734,47734,"Sucursales",null,null,1]
[47735,47735,"Otras",null,null,1]
[4774,null,"Inmuebles, maquinaria y equipo"]
[47741,47741,"Matriz",null,null,1]
[47742,47742,"Subsidiarias",null,null,1]
[47743,47743,"Asociadas",null,null,1]
[47744,47744,"Sucursales",null,null,1]
[47745,47745,"Otras",null,null,1]
[4775,null,"Intangibles"]
[47751,47751,"Matriz",null,null,1]
[47752,47752,"Subsidiarias",null,null,1]
[47753,47753,"Asociadas",null,null,1]
[47754,47754,"Sucursales",null,null,1]
[47755,47755,"Otras",null,null,1]
[4776,null,"Activos biológicos"]
[47761,47761,"Matriz",null,null,1]
[47762,47762,"Subsidiarias",null,null,1]
[47763,47763,"Asociadas",null,null,1]
[47764,47764,"Sucursales",null,null,1]
[47765,47765,"Otras",null,null,1]
[479,null,"Otras cuentas por pagar diversas"]
[4791,null,"Otras cuentas por pagar diversas"]
[47911,47911,"Matriz",null,null,1]
[47912,47912,"Subsidiarias",null,null,1]
[47913,47913,"Asociadas",null,null,1]
[47914,47914,"Sucursales",null,null,1]
[47915,47915,"Otras",null,null,1]
[48,null,"PROVISIONES"]
[481,48100,"Provisión para litigios",null,null,1]
[482,48200,"Provisión por desmantelamiento, retiro o rehabilitación del inmovilizado",null,null,1]
[483,48300,"Provisión para reestructuraciones",null,null,1]
[484,48400,"Provisión para protección y remediación del medio ambiente",null,null,1]
[485,48500,"Provisión para gastos de responsabilidad social",null,null,1]
[486,48600,"Provisión para garantías",null,null,1]
[489,48900,"Otras provisiones",null,null,1]
[49,null,"PASIVO DIFERIDO"]
[491,null,"Impuesto a la renta diferido"]
[4911,49110,"Impuesto a la renta diferido - Patrimonio",null,null,1]
[4912,49120,"Impuesto a la renta diferido - Resultados",null,null,1]
[492,null,"Participaciones de los trabajadores diferidas"]
[4921,49210,"Participaciones de los trabajadores diferidas - Patrimonio",null,null,1]
[4922,49220,"Participaciones de los trabajadores diferidas - Resultados",null,null,1]
[493,null,"Intereses diferidos"]
[4931,49310,"Intereses no devengados en transacciones con terceros",null,null,1]
[4932,49320,"Intereses no devengados en medición a valor descontado",null,null,1]
[494,49400,"Ganancia en venta con arrendamiento financiero paralelo",null,null,1]
[495,49500,"Subsidios recibidos diferidos",null,null,1]
[496,49600,"Ingresos diferidos",null,null,1]
[497,49700,"Costos diferidos",null,null,1]
[50,null,"CAPITAL"]
[501,null,"Capital social"]
[5011,50110,"Acciones",null,null,1]
[5012,50120,"Participaciones",null,null,1]
[502,50200,"Acciones en tesorería",null,null,1]
[51,null,"ACCIONES DE INVERSIÓN"]
[511,51100,"Acciones de inversión",null,null,1]
[512,51200,"Acciones de inversión en tesorería",null,null,1]
[52,null,"CAPITAL ADICIONAL"]
[521,52100,"Primas (descuento) de acciones",null,null,1]
[522,null,"Capitalizaciones en trámite"]
[5221,52210,"Aportes",null,null,1]
[5222,52220,"Reservas",null,null,1]
[5223,52230,"Acreencias",null,null,1]
[5224,52240,"Utilidades",null,null,1]
[523,52300,"Reducciones de capital pendientes de formalización",null,null,1]
[56,null,"RESULTADOS NO REALIZADOS"]
[561,56100,"Diferencia en cambio de inversiones permanentes en entidades extranjeras",null,null,1]
[562,56200,"Instrumentos financieros – Cobertura de flujo de efectivo",null,null,1]
[563,null,"Ganancia o pérdida en activos o pasivos financieros disponibles para la venta"]
[5631,56310,"Ganancia",null,null,1]
[5632,56320,"Pérdida",null,null,1]
[564,null,"Ganancia o pérdida en activos o pasivos financieros disponibles para la venta – Compra o venta convencional fecha de liquidación"]
[5641,56410,"Ganancia",null,null,1]
[5642,56420,"Pérdida",null,null,1]
[57,null,"EXCEDENTE DE REVALUACIÓN"]
[571,null,"Excedente de revaluación"]
[5711,57110,"Inversiones inmobiliarias",null,null,1]
[5712,57120,"Inmuebles, maquinaria y equipos",null,null,1]
[5713,57130,"Intangibles",null,null,1]
[572,57200,"Excedente de revaluación – Acciones liberadas recibidas",null,null,1]
[573,57300,"Participación en excedente de revaluación – Inversiones en entidades relacionadas",null,null,1]
[58,null,"RESERVAS"]
[581,58100,"Reinversión",null,null,1]
[582,58200,"Legal",null,null,1]
[583,58300,"Contractuales",null,null,1]
[584,58400,"Estatutarias",null,null,1]
[585,58500,"Facultativas",null,null,1]
[589,58900,"Otras reservas",null,null,1]
[59,null,"RESULTADOS ACUMULADOS"]
[591,null,"Utilidades no distribuidas"]
[5911,59110,"Utilidades acumuladas",null,null,1]
[5912,59120,"Ingresos de años anteriores",null,null,1]
[592,null,"Pérdidas acumuladas"]
[5921,59210,"Pérdidas acumuladas",null,null,1]
[5922,59220,"Gastos de años anteriores",null,null,1]
[60,null,"COMPRAS"]
[601,null,"Mercaderías"]
[6011,60110,"Mercaderías manufacturadas",20111,61110,3]
[6011,60110,"Mercaderías manufacturadas",20112,61110,3]
[6012,60120,"Mercaderías de extracción",20200,61120,3]
[6013,60130,"Mercaderías agropecuarias y piscícolas",20310,61130,3]
[6013,60130,"Mercaderías agropecuarias y piscícolas",20320,61130,3]
[6014,60140,"Mercaderías inmuebles",20400,61140,3]
[6018,60180,"Otras mercaderías",20800,61150,3]
[602,null,"Materias primas"]
[6021,60210,"Materias primas para productos manufacturados",24100,61210,3]
[6022,60220,"Materias primas para productos de extracción",24200,61220,3]
[6023,60230,"Materias primas para productos agropecuarios y piscícolas",24300,61230,3]
[6024,60240,"Materias primas para productos inmuebles",24400,61240,3]
[603,null,"Materiales auxiliares, suministros y repuestos"]
[6031,60310,"Materiales auxiliares",25100,61310,3]
[6032,60320,"Suministros",25210,61320,3]
[6032,60320,"Suministros",25220,61320,3]
[6032,60320,"Suministros",25230,61320,3]
[6032,60320,"Suministros",25240,61320,3]
[6033,60330,"Repuestos",25300,61330,3]
[604,null,"Envases y embalajes"]
[6041,60410,"Envases",26100,61410,3]
[6042,60420,"Embalajes",26200,61420,3]
[609,null,"Costos vinculados con las compras"]
[6091,null,"Costos vinculados con las compras de mercaderías"]
[60911,60911,"Transporte",20111,61110,3]
[60911,60911,"Transporte",20112,61110,3]
[60911,60911,"Transporte",20200,61120,3]
[60911,60911,"Transporte",20310,61130,3]
[60911,60911,"Transporte",20320,61130,3]
[60911,60911,"Transporte",20400,61140,3]
[60911,60911,"Transporte",20800,61150,3]
[60912,60912,"Seguros",20111,61110,3]
[60912,60912,"Seguros",20112,61110,3]
[60912,60912,"Seguros",20200,61120,3]
[60912,60912,"Seguros",20310,61130,3]
[60912,60912,"Seguros",20320,61130,3]
[60912,60912,"Seguros",20400,61140,3]
[60912,60912,"Seguros",20800,61150,3]
[60913,60913,"Derechos aduaneros",20111,61110,3]
[60913,60913,"Derechos aduaneros",20112,61110,3]
[60913,60913,"Derechos aduaneros",20200,61120,3]
[60913,60913,"Derechos aduaneros",20310,61130,3]
[60913,60913,"Derechos aduaneros",20320,61130,3]
[60913,60913,"Derechos aduaneros",20400,61140,3]
[60913,60913,"Derechos aduaneros",20800,61150,3]
[60914,60914,"Comisiones",20111,61110,3]
[60914,60914,"Comisiones",20112,61110,3]
[60914,60914,"Comisiones",20200,61120,3]
[60914,60914,"Comisiones",20310,61130,3]
[60914,60914,"Comisiones",20320,61130,3]
[60914,60914,"Comisiones",20400,61140,3]
[60914,60914,"Comisiones",20800,61150,3]
[60919,60919,"Otros costos vinculados con las compras de mercaderías",20111,61110,3]
[60919,60919,"Otros costos vinculados con las compras de mercaderías",20112,61110,3]
[60919,60919,"Otros costos vinculados con las compras de mercaderías",20200,61120,3]
[60919,60919,"Otros costos vinculados con las compras de mercaderías",20310,61130,3]
[60919,60919,"Otros costos vinculados con las compras de mercaderías",20320,61130,3]
[60919,60919,"Otros costos vinculados con las compras de mercaderías",20400,61140,3]
[60919,60919,"Otros costos vinculados con las compras de mercaderías",20800,61150,3]
[6092,null,"Costos vinculados con las compras de materias primas"]
[60921,60921,"Transporte",24100,61210,3]
[60921,60921,"Transporte",24200,61220,3]
[60921,60921,"Transporte",24300,61230,3]
[60921,60921,"Transporte",24400,61240,3]
[60922,60922,"Seguros",24100,61210,3]
[60922,60922,"Seguros",24200,61220,3]
[60922,60922,"Seguros",24300,61230,3]
[60922,60922,"Seguros",24400,61240,3]
[60923,60923,"Derechos aduaneros",24100,61210,3]
[60923,60923,"Derechos aduaneros",24200,61220,3]
[60923,60923,"Derechos aduaneros",24300,61230,3]
[60923,60923,"Derechos aduaneros",24400,61240,3]
[60924,60924,"Comisiones",24100,61210,3]
[60924,60924,"Comisiones",24200,61220,3]
[60924,60924,"Comisiones",24300,61230,3]
[60924,60924,"Comisiones",24400,61240,3]
[60925,60925,"Otros costos vinculados con las compras de materias primas",24100,61210,3]
[60925,60925,"Otros costos vinculados con las compras de materias primas",24200,61220,3]
[60925,60925,"Otros costos vinculados con las compras de materias primas",24300,61230,3]
[60925,60925,"Otros costos vinculados con las compras de materias primas",24400,61240,3]
[6093,null,"Costos vinculados con las compras de materiales, suministros y repuestos"]
[60931,60931,"Transporte",25100,61310,3]
[60931,60931,"Transporte",25210,61320,3]
[60931,60931,"Transporte",25220,61320,3]
[60931,60931,"Transporte",25230,61320,3]
[60931,60931,"Transporte",25240,61320,3]
[60931,60931,"Transporte",25300,61330,3]
[60932,60932,"Seguros",25100,61310,3]
[60932,60932,"Seguros",25210,61320,3]
[60932,60932,"Seguros",25220,61320,3]
[60932,60932,"Seguros",25230,61320,3]
[60932,60932,"Seguros",25240,61320,3]
[60932,60932,"Seguros",25300,61330,3]
[60933,60933,"Derechos aduaneros",25100,61310,3]
[60933,60933,"Derechos aduaneros",25210,61320,3]
[60933,60933,"Derechos aduaneros",25220,61320,3]
[60933,60933,"Derechos aduaneros",25230,61320,3]
[60933,60933,"Derechos aduaneros",25240,61320,3]
[60933,60933,"Derechos aduaneros",25300,61330,3]
[60934,60934,"Comisiones",25100,61310,3]
[60934,60934,"Comisiones",25210,61320,3]
[60934,60934,"Comisiones",25220,61320,3]
[60934,60934,"Comisiones",25230,61320,3]
[60934,60934,"Comisiones",25240,61320,3]
[60934,60934,"Comisiones",25300,61330,3]
[60935,60935,"Otros costos vinculados con las compras de materiales, suministros y repuestos",25100,61310,3]
[60935,60935,"Otros costos vinculados con las compras de materiales, suministros y repuestos",25210,61320,3]
[60935,60935,"Otros costos vinculados con las compras de materiales, suministros y repuestos",25220,61320,3]
[60935,60935,"Otros costos vinculados con las compras de materiales, suministros y repuestos",25230,61320,3]
[60935,60935,"Otros costos vinculados con las compras de materiales, suministros y repuestos",25240,61320,3]
[60935,60935,"Otros costos vinculados con las compras de materiales, suministros y repuestos",25300,61330,3]
[6094,null,"Costos vinculados con las compras de envases y embalajes"]
[60941,60941,"Transporte",26100,61410,3]
[60941,60941,"Transporte",26200,61420,3]
[60942,60942,"Seguros",26100,61410,3]
[60942,60942,"Seguros",26200,61420,3]
[60943,60943,"Derechos aduaneros",26100,61410,3]
[60943,60943,"Derechos aduaneros",26200,61420,3]
[60944,60944,"Comisiones",26100,61410,3]
[60944,60944,"Comisiones",26200,61420,3]
[60945,60945,"Otros costos vinculados con las compras de envases y embalajes",26200,61420,3]
[60945,60945,"Otros costos vinculados con las compras de envases y embalajes",26200,61420,3]
[61,null,"VARIACIÓN DE EXISTENCIAS"]
[611,null,"Mercaderías"]
[6111,61110,"Mercaderías manufacturadas",null,null,3]
[6112,61120,"Mercaderías de extracción",null,null,3]
[6113,61130,"Mercaderías agropecuarias y piscícolas",null,null,3]
[6114,61140,"Mercaderías inmuebles",null,null,3]
[6115,61150,"Otras mercaderías",null,null,3]
[612,null,"Materias primas"]
[6121,61210,"Materias primas para productos manufacturados",null,null,3]
[6122,61220,"Materias primas para productos de extracción",null,null,3]
[6123,61230,"Materias primas para productos agropecuarios y piscícolas",null,null,3]
[6124,61240,"Materias primas para productos inmuebles",null,null,3]
[613,null,"Materiales auxiliares, suministros y repuestos"]
[6131,61310,"Materiales auxiliares",null,null,3]
[6132,61320,"Suministros",null,null,3]
[6133,61330,"Repuestos",null,null,3]
[614,null,"Envases y embalajes"]
[6141,61410,"Envases",null,null,3]
[6142,61420,"Embalajes",null,null,3]
[62,null,"GASTOS DE PERSONAL, DIRECTORES Y GERENTES"]
[621,null,"Remuneraciones"]
[6211,62110,"Sueldos y salarios",null,null,3]
[6212,62120,"Comisiones",null,null,3]
[6213,62130,"Remuneraciones en especie",null,null,3]
[6214,62140,"Gratificaciones",null,null,3]
[6215,62150,"Vacaciones",null,null,3]
[622,62200,"Otras remuneraciones",null,null,3]
[623,62300,"Indemnizaciones al personal",null,null,3]
[624,62400,"Capacitación",null,null,3]
[625,62500,"Atención al personal",null,null,3]
[626,62600,"Gerentes",null,null,3]
[627,null,"Seguridad, previsión social y otras contribuciones"]
[6271,62710,"Régimen de prestaciones de salud",null,null,3]
[6272,62720,"Régimen de pensiones",null,null,3]
[6273,62730,"Seguro complementario de trabajo de riesgo, accidentes de trabajo y enfermedades profesionales",null,null,3]
[6274,62740,"Seguro de vida",null,null,3]
[6275,62750,"Seguros particulares de prestaciones de salud - EPS y otros particulares",null,null,3]
[6276,62760,"Caja de beneficios de seguridad social del pescador",null,null,3]
[6277,62770,"Contribuciones al SENCICO y el SENATI",null,null,3]
[628,62800,"Retribuciones al directorio",null,null,3]
[629,null,"Beneficios sociales de los trabajadores"]
[6291,62910,"Compensación por tiempo de servicio",null,null,3]
[6292,62920,"Pensiones y jubilaciones",null,null,3]
[6293,62930,"Otros beneficios post-empleo",null,null,3]
[63,null,"GASTOS DE SERVICIOS PRESTADOS POR TERCEROS"]
[631,null,"Transporte, correos y gastos de viaje"]
[6311,null,"Transporte"]
[63111,63111,"De carga",null,null,3]
[63112,63112,"De pasajeros",null,null,3]
[6312,63120,"Correos",null,null,3]
[6313,63130,"Alojamiento",null,null,3]
[6314,63140,"Alimentación",null,null,3]
[6315,63150,"Otros gastos de viaje",null,null,3]
[632,null,"Asesoría y consultoría"]
[6321,63210,"Administrativa",null,null,3]
[6322,63220,"Legal y tributaria",null,null,3]
[6323,63230,"Auditoría y contable",null,null,3]
[6324,63240,"Mercadotecnia",null,null,3]
[6325,63250,"Medioambiental",null,null,3]
[6326,63260,"Investigación y desarrollo",null,null,3]
[6327,63270,"Producción",null,null,3]
[6329,63290,"Otros",null,null,3]
[633,63300,"Producción encargada a terceros",null,null,3]
[634,null,"Mantenimiento y reparaciones"]
[6341,63410,"Inversión inmobiliaria",null,null,3]
[6342,63420,"Activos adquiridos en arrendamiento financiero",null,null,3]
[6343,63430,"Inmuebles, maquinaria y equipo",null,null,3]
[6344,63440,"Intangibles",null,null,3]
[6345,63450,"Activos biológicos",null,null,3]
[635,null,"Alquileres"]
[6351,63510,"Terrenos",null,null,3]
[6352,63520,"Edificaciones",null,null,3]
[6353,63530,"Maquinarias y equipos de explotación",null,null,3]
[6354,63540,"Equipo de transporte",null,null,3]
[6356,63560,"Equipos diversos",null,null,3]
[636,null,"Servicios básicos"]
[6361,63610,"Energía eléctrica",null,null,3]
[6362,63620,"Gas",null,null,3]
[6363,63630,"Agua",null,null,3]
[6364,63640,"Teléfono",null,null,3]
[6365,63650,"Internet",null,null,3]
[6366,63660,"Radio",null,null,3]
[6367,63670,"Cable",null,null,3]
[637,null,"Publicidad, publicaciones, relaciones públicas"]
[6371,63710,"Publicidad",null,null,3]
[6372,63720,"Publicaciones",null,null,3]
[6373,63730,"Relaciones públicas",null,null,3]
[638,63800,"Servicios de contratistas",null,null,3]
[639,null,"Otros servicios prestados por terceros"]
[6391,63910,"Gastos bancarios",null,null,3]
[6392,63920,"Gastos de laboratorio",null,null,3]
[64,null,"GASTOS POR TRIBUTOS"]
[641,null,"Gobierno central"]
[6411,64110,"Impuesto general a las ventas y selectivo al consumo",null,null,3]
[6412,64120,"Impuesto a las transacciones financieras",null,null,3]
[6413,64130,"Impuesto temporal a los activos netos",null,null,3]
[6414,64140,"Impuesto a los juegos de casino y máquinas tragamonedas",null,null,3]
[6415,64150,"Regalías mineras",null,null,3]
[6416,64160,"Cánones",null,null,3]
[6419,64190,"Otros",null,null,3]
[642,64200,"Gobierno regional",null,null,3]
[643,null,"Gobierno local"]
[6431,64310,"Impuesto predial",null,null,3]
[6432,64320,"Arbitrios municipales y seguridad ciudadana",null,null,3]
[6433,64330,"Impuesto al patrimonio vehicular",null,null,3]
[6434,64340,"Licencia de funcionamiento",null,null,3]
[6439,64390,"Otros",null,null,3]
[644,null,"Otros gastos por tributos"]
[6441,64410,"Contribución al SENATI",null,null,3]
[6442,64420,"Contribución al SENCICO",null,null,3]
[6443,64430,"Otros",null,null,3]
[65,null,"OTROS GASTOS DE GESTIÓN"]
[651,65100,"Seguros",null,null,3]
[652,65200,"Regalías",null,null,3]
[653,65300,"Suscripciones",null,null,3]
[654,65400,"Licencias y derechos de vigencia",null,null,3]
[655,null,"Costo neto de enajenación de activos inmovilizados y operaciones discontinuadas"]
[6551,null,"Costo neto de enajenación de activos inmovilizados"]
[65511,65511,"Inversiones inmobiliarias",null,null,3]
[65512,65512,"Activos adquiridos en arrendamiento financiero",null,null,3]
[65513,65513,"Inmuebles, maquinaria y equipo",null,null,3]
[65514,65514,"Intangibles",null,null,3]
[65515,65515,"Activos biológicos",null,null,3]
[6552,null,"Operaciones discontinuadas - Abandono de activos"]
[65521,65521,"Inversiones inmobiliarias",null,null,3]
[65522,65522,"Activos adquiridos en arrendamiento financiero",null,null,3]
[65523,65523,"Inmuebles, maquinaria y equipo",null,null,3]
[65524,65524,"Intangibles",null,null,3]
[65525,65525,"Activos biológicos",null,null,3]
[656,65600,"Suministros",null,null,3]
[658,65800,"Gestión medioambiental",null,null,3]
[659,null,"Otros gastos de gestión"]
[6591,65910,"Donaciones",null,null,3]
[6592,65920,"Sanciones administrativas",null,null,3]
[66,null,"PÉRDIDA POR MEDICIÓN DE ACTIVOS NO FINANCIEROS AL VALOR RAZONABLE"]
[661,null,"Activo realizable"]
[6611,66110,"Mercaderías",null,null,4]
[6612,66120,"Productos terminados",null,null,4]
[6613,null,"Activos no corrientes mantenidos para la venta"]
[66131,66131,"Inversión inmobiliaria",null,null,4]
[66132,66132,"Inmuebles, maquinaria y equipo",null,null,4]
[66133,66133,"Intangibles",null,null,4]
[66134,66134,"Activos biológicos",null,null,4]
[662,null,"Activo inmovilizado"]
[6621,66210,"Inversiones inmobiliarias",null,null,4]
[6622,66220,"Activos biológicos",null,null,4]
[67,null,"GASTOS FINANCIEROS"]
[671,null,"Gastos en operaciones de endeudamiento y otros"]
[6711,67110,"Préstamos de instituciones financieras y otras entidades",null,null,3]
[6712,67120,"Contratos de arrendamiento financiero",null,null,3]
[6713,67130,"Emisión y colocación de instrumentos representativos de deuda y patrimonio",null,null,3]
[6714,67140,"Documentos vendidos o descontados",null,null,3]
[672,67200,"Pérdida por instrumentos financieros derivados",null,null,3]
[673,null,"Intereses por préstamos y otras obligaciones"]
[6731,null,"Préstamos de instituciones financieras y otras entidades"]
[67311,67311,"Instituciones financieras",null,null,3]
[67312,67312,"Otras entidades",null,null,3]
[6732,67320,"Contratos de arrendamiento financiero",null,null,3]
[6733,67330,"Otros instrumentos financieros por pagar",null,null,3]
[6734,67340,"Documentos vendidos o descontados",null,null,3]
[6735,67350,"Obligaciones emitidas",null,null,3]
[6736,67360,"Obligaciones comerciales",null,null,3]
[6737,67370,"Obligaciones tributarias",null,null,3]
[674,null,"Gastos en operaciones de factoraje (factoring)"]
[6741,67410,"Gastos por menor valor",null,null,3]
[675,67500,"Descuentos concedidos por pronto pago",null,null,3]
[676,67600,"Diferencia de cambio",null,null,3]
[677,null,"Pérdida por medición de activos y pasivos financieros al valor razonable"]
[6771,67710,"Inversiones para negociación",null,null,3]
[6772,67720,"Inversiones disponibles para la venta",null,null,3]
[6773,67730,"Otros",null,null,3]
[678,null,"Participación en resultados de entidades relacionadas"]
[6781,67810,"Participación en los resultados de subsidiarias y asociadas bajo el método del valor patrimonial",null,null,3]
[6782,67820,"Participaciones en negocios conjuntos",null,null,3]
[679,null,"Otros gastos financieros"]
[6791,67910,"Primas por opciones",null,null,3]
[6792,67920,"Gastos financieros en medición a valor descontado",null,null,3]
[68,null,"VALUACIÓN Y DETERIORO DE ACTIVOS Y PROVISIONES"]
[681,null,"Depreciación"]
[6811,null,"Depreciación de inversiones inmobiliarias"]
[68111,68111,"Edificaciones - Costo",null,null,3]
[68112,68112,"Edificaciones - Revaluación",null,null,3]
[68113,68113,"Edificaciones – Costo de financiación",null,null,3]
[6812,null,"Depreciación de activos adquiridos en arrendamiento financiero – Inversiones inmobiliarias"]
[68121,68121,"Edificaciones",null,null,3]
[6813,null,"Depreciación de activos adquiridos en arrendamiento financiero - Inmuebles, maquinaria y equipo"]
[68131,68131,"Edificaciones",null,null,3]
[68132,68132,"Maquinarias y equipos de explotación",null,null,3]
[68133,68133,"Equipo de transporte",null,null,3]
[68134,68134,"Equipos diversos",null,null,3]
[6814,null,"Depreciación de inmuebles, maquinaria y equipo – Costo"]
[68141,68141,"Edificaciones",null,null,3]
[68142,68142,"Maquinarias y equipos de explotación",null,null,3]
[68143,68143,"Equipo de transporte",null,null,3]
[68144,68144,"Muebles y enseres",null,null,3]
[68145,68145,"Equipos diversos",null,null,3]
[68146,68146,"Herramientas y unidades de reemplazo",null,null,3]
[6815,null,"Depreciación de inmuebles, maquinaria y equipo – Revaluación"]
[68151,68151,"Edificaciones",null,null,3]
[68152,68152,"Maquinarias y equipos de explotación",null,null,3]
[68153,68153,"Equipo de transporte",null,null,3]
[68154,68154,"Muebles y enseres",null,null,3]
[68155,68155,"Equipos diversos",null,null,3]
[68156,68156,"Herramientas y unidades de reemplazo",null,null,3]
[6816,null,"Depreciación de inmuebles, maquinaria y equipo – Costos de financiación"]
[68161,68161,"Edificaciones",null,null,3]
[68162,68162,"Maquinarias y equipos de explotación",null,null,3]
[6817,null,"Depreciación de activos biológicos en producción – Costo"]
[68171,68171,"Activos biológicos de origen animal",null,null,3]
[68172,68172,"Activos biológicos de origen vegetal",null,null,3]
[6818,null,"Depreciación de activos biológicos en producción – Costo de financiación"]
[68181,68181,"Activos biológicos de origen animal",null,null,3]
[68182,68182,"Activos biológicos de origen vegetal",null,null,3]
[682,null,"Amortización de intangibles"]
[6821,null,"Amortización de intangibles - Costo"]
[68211,68211,"Concesiones, licencias y otros derechos",null,null,3]
[68212,68212,"Patentes y propiedad industrial",null,null,3]
[68213,68213,"Programas de computadora (software)",null,null,3]
[68214,68214,"Costos de exploración y desarrollo",null,null,3]
[68215,68215,"Fórmulas, diseños y prototipos",null,null,3]
[68219,68219,"Otros activos intangibles",null,null,3]
[6822,null,"Amortización de intangibles - Revaluación"]
[68221,68221,"Concesiones, licencias y otros derechos",null,null,3]
[68222,68222,"Patentes y propiedad industrial",null,null,3]
[68223,68223,"Programas de computadora (software)",null,null,3]
[68224,68224,"Costos de exploración y desarrollo",null,null,3]
[68225,68225,"Fórmulas, diseños y prototipos",null,null,3]
[68229,68229,"Otros activos intangibles",null,null,3]
[683,null,"Agotamiento"]
[6831,68310,"Agotamiento de recursos naturales adquiridos",null,null,3]
[684,null,"Valuación de activos"]
[6841,null,"Estimación de cuentas de cobranza dudosa"]
[68411,68411,"Cuentas por cobrar comerciales – Terceros",null,null,3]
[68412,68412,"Cuentas por cobrar comerciales – Relacionadas",null,null,3]
[68413,68413,"Cuentas por cobrar al personal, a los accionistas (socios), directores y gerentes",null,null,3]
[68414,68414,"Cuentas por cobrar diversas – Terceros",null,null,3]
[68415,68415,"Cuentas por cobrar diversas – Relacionadas",null,null,3]
[6843,null,"Desvalorización de inversiones mobiliarias"]
[68431,68431,"Inversiones a ser mantenidas hasta el vencimiento",null,null,3]
[68432,68432,"Instrumentos financieros representativos de derecho patrimonial",null,null,3]
[685,null,"Deterioro del valor de los activos"]
[6851,null,"Desvalorización de inversiones inmobiliarias"]
[68511,68511,"Edificaciones",null,null,3]
[6852,null,"Desvalorización de inmuebles maquinaria y equipo"]
[68521,68521,"Edificaciones",null,null,3]
[68522,68522,"Maquinarias y equipos de explotación",null,null,3]
[68523,68523,"Equipo de transporte",null,null,3]
[68524,68524,"Muebles y enseres",null,null,3]
[68525,68525,"Equipos diversos",null,null,3]
[68526,68526,"Herramientas y unidades de reemplazo",null,null,3]
[6853,null,"Desvalorización de intangibles"]
[68531,68531,"Concesiones, licencias y otros derechos",null,null,3]
[68532,68532,"Patentes y propiedad industrial",null,null,3]
[68533,68533,"Programas de computadora (software)",null,null,3]
[68534,68534,"Costos de exploración y desarrollo",null,null,3]
[68535,68535,"Fórmulas, diseños y prototipos",null,null,3]
[68536,68536,"Otros activos intangibles",null,null,3]
[68537,68537,"Plusvalía mercantil",null,null,3]
[6854,null,"Desvalorización de activos biológicos en producción"]
[68541,68541,"Activos biológicos de origen animal",null,null,3]
[68542,68542,"Activos biológicos de origen vegetal",null,null,3]
[686,null,"Provisiones"]
[6861,null,"Provisión para litigios"]
[68611,68611,"Provisión para litigios – Costo",null,null,3]
[68612,68612,"Provisión para litigios – Actualización financiera",null,null,3]
[6862,null,"Provisión por desmantelamiento, retiro o rehabilitación del inmovilizado"]
[68621,68621,"Provisión por desmantelamiento, retiro o rehabilitación del inmovilizado – Costo",null,null,3]
[68622,68622,"Provisión por desmantelamiento, retiro o rehabilitación del inmovilizado – Actualización financiera",null,null,3]
[6863,68630,"Provisión para reestructuraciones",null,null,3]
[6864,null,"Provisión para protección y remediación del medio ambiente"]
[68641,68641,"Provisión para protección y remediación del medio ambiente – Costo",null,null,3]
[68642,68642,"Provisión para protección y remediación del medio ambiente – Actualización financiera",null,null,3]
[6866,null,"Provisión para garantías"]
[68661,68661,"Provisión para garantías – Costo",null,null,3]
[68662,68662,"Provisión para garantías – Actualización financiera",null,null,3]
[6869,68690,"Otras provisiones",null,null,3]
[69,null,"COSTO DE VENTAS"]
[691,null,"Mercaderías"]
[6911,null,"Mercaderías manufacturadas"]
[69111,69111,"Terceros",61110,79100,2]
[69112,69112,"Relacionadas",61110,79100,2]
[6912,null,"Mercaderías de extracción"]
[69121,69121,"Terceros",61120,79100,2]
[69122,69122,"Relacionadas",61120,79100,2]
[6913,null,"Mercaderías agropecuarias y piscícolas"]
[69131,69131,"Terceros",61130,79100,2]
[69132,69132,"Relacionadas",61130,79100,2]
[6914,null,"Mercaderías inmuebles"]
[69141,69141,"Terceros",61140,79100,2]
[69142,69142,"Relacionadas",61140,79100,2]
[6915,null,"Otras mercaderías"]
[69151,69151,"Terceros",61150,79100,2]
[69152,69152,"Relacionadas",61150,79100,2]
[692,null,"Productos terminados"]
[6921,null,"Productos manufacturados"]
[69211,69211,"Terceros",71110,79100,2]
[69212,69212,"Relacionadas",71110,79100,2]
[6922,null,"Productos de extracción terminados"]
[69221,69221,"Terceros",71120,79100,2]
[69222,69222,"Relacionadas",71120,79100,2]
[6923,null,"Productos agropecuarios y piscícolas terminados"]
[69231,69231,"Terceros",71130,79100,2]
[69232,69232,"Relacionadas",71130,79100,2]
[6924,null,"Productos inmuebles terminados"]
[69241,69241,"Terceros",71140,79100,2]
[69242,69242,"Relacionadas",71140,79100,2]
[6925,null,"Existencias de servicios terminados"]
[69251,69251,"Terceros",71150,79100,2]
[69252,69252,"Relacionadas",71150,79100,2]
[6926,null,"Costos de financiación – Productos terminados"]
[69261,69261,"Terceros"]
[69262,69262,"Relacionadas"]
[6927,69270,"Costos de producción no absorbido – Productos terminados"]
[6928,69280,"Costo de ineficiencia – Productos terminados"]
[693,null,"Subproductos, desechos y desperdicios"]
[6931,null,"Subproductos"]
[69311,69311,"Terceros",71210,79100,2]
[69312,69312,"Relacionadas",71210,79100,2]
[6932,null,"Desechos y desperdicios"]
[69321,69321,"Terceros",71220,79100,2]
[69322,69322,"Relacionadas",71220,79100,2]
[694,null,"Servicios"]
[6941,69410,"Terceros"]
[6942,69420,"Relacionadas"]
[695,null,"Gastos por desvalorización de existencias"]
[6951,69510,"Mercaderías"]
[6952,69520,"Productos terminados"]
[6953,69530,"Subproductos, desechos y desperdicios"]
[6954,69540,"Productos en proceso"]
[6955,69550,"Materias primas"]
[6956,69560,"Materiales auxiliares, suministros y repuestos"]
[6957,69570,"Envases y embalajes"]
[6958,69580,"Existencias por recibir"]
[70,null,"VENTAS"]
[701,null,"Mercaderías"]
[7011,null,"Mercaderías manufacturadas"]
[70111,70111,"Terceros",null,null,4]
[70112,70112,"Relacionadas",null,null,4]
[7012,null,"Mercaderías de extracción"]
[70121,70121,"Terceros",null,null,4]
[70122,70122,"Relacionadas",null,null,4]
[7013,null,"Mercaderías agropecuarias y piscícolas"]
[70131,70131,"Terceros",null,null,4]
[70132,70132,"Relacionadas",null,null,4]
[7014,null,"Mercaderías inmuebles"]
[70141,70141,"Terceros",null,null,4]
[70142,70142,"Relacionadas",null,null,4]
[7015,null,"Mercaderías – Otras"]
[70151,70151,"Terceros",null,null,4]
[70152,70152,"Relacionadas",null,null,4]
[702,null,"Productos terminados"]
[7021,null,"Productos manufacturados"]
[70211,70211,"Terceros",null,null,4]
[70212,70212,"Relacionadas",null,null,4]
[7022,null,"Productos de extracción terminados"]
[70221,70221,"Terceros",null,null,4]
[70222,70222,"Relacionadas",null,null,4]
[7023,null,"Productos agropecuarios y piscícolas terminados"]
[70231,70231,"Terceros",null,null,4]
[70232,70232,"Relacionadas",null,null,4]
[7024,null,"Productos inmuebles terminados"]
[70241,70241,"Terceros",null,null,4]
[70242,70242,"Relacionadas",null,null,4]
[7025,null,"Existencias de servicios terminados"]
[70251,70251,"Terceros",null,null,4]
[70252,70252,"Relacionadas",null,null,4]
[703,null,"Subproductos, desechos y desperdicios"]
[7031,null,"Subproductos"]
[70311,70311,"Terceros",null,null,4]
[70312,70312,"Relacionadas",null,null,4]
[7032,null,"Desechos y desperdicios"]
[70321,70321,"Terceros",null,null,4]
[70322,70322,"Relacionadas",null,null,4]
[704,null,"Prestación de servicios"]
[7041,70410,"Terceros",null,null,4]
[7042,70420,"Relacionadas",null,null,4]
[709,null,"Devoluciones sobre ventas"]
[7091,null,"Mercaderías – Terceros"]
[70911,70911,"Mercaderías manufacturadas",null,null,4]
[70912,70912,"Mercaderías de extracción",null,null,4]
[70913,70913,"Mercaderías agropecuarias y piscícolas",null,null,4]
[70914,70914,"Mercaderías inmuebles",null,null,4]
[70915,70915,"Mercaderías – Otras",null,null,4]
[7092,null,"Mercaderías – Relacionadas"]
[70921,70921,"Mercaderías manufacturadas",null,null,4]
[70922,70922,"Mercaderías de extracción",null,null,4]
[70923,70923,"Mercaderías agropecuarias y piscícolas",null,null,4]
[70924,70924,"Mercaderías inmuebles",null,null,4]
[70925,70925,"Mercaderías – Otras",null,null,4]
[7093,null,"Productos terminados – Terceros"]
[70931,70931,"Productos manufacturados",null,null,4]
[70932,70932,"Productos de extracción terminados",null,null,4]
[70933,70933,"Productos agropecuarios y piscícolas terminados",null,null,4]
[70934,70934,"Productos inmuebles terminados",null,null,4]
[70935,70935,"Existencias de servicios terminados",null,null,4]
[7094,null,"Productos terminados – Relacionadas"]
[70941,70941,"Productos manufacturados",null,null,4]
[70942,70942,"Productos de extracción terminados",null,null,4]
[70943,70943,"Productos agropecuarios y piscícolas terminados",null,null,4]
[70944,70944,"Productos inmuebles terminados",null,null,4]
[70945,70945,"Existencias de servicios terminados",null,null,4]
[7095,null,"Subproductos, desechos y desperdicios – Terceros"]
[70951,70951,"Subproductos",null,null,4]
[70952,70952,"Desechos y desperdicios",null,null,4]
[7096,null,"Subproductos, desechos y desperdicios – Relacionadas"]
[70961,70961,"Subproductos",null,null,4]
[70962,70962,"Desechos y desperdicios",null,null,4]
[71,null,"VARIACIÓN DE LA PRODUCCIÓN ALMACENADA"]
[711,null,"Variación de productos terminados"]
[7111,71110,"Productos manufacturados"]
[7112,71120,"Productos de extracción terminados"]
[7113,71130,"Productos agropecuarios y piscícolas terminados"]
[7114,71140,"Productos inmuebles terminados"]
[7115,71150,"Existencias de servicios terminados"]
[712,null,"Variación de subproductos, desechos y desperdicios"]
[7121,71210,"Subproductos"]
[7122,71220,"Desechos y desperdicios"]
[713,null,"Variación de productos en proceso"]
[7131,71310,"Productos en proceso de manufactura"]
[7132,71320,"Productos extraídos en proceso de transformación"]
[7133,71330,"Productos agropecuarios y piscícolas en proceso"]
[7134,71340,"Productos inmuebles en proceso"]
[7135,71350,"Existencias de servicios en proceso"]
[7138,71380,"Otros productos en proceso"]
[714,null,"Variación de envases y embalajes"]
[7141,71410,"Envases"]
[7142,71420,"Embalajes"]
[715,71500,"Variación de existencias de servicios"]
[72,null,"PRODUCCIÓN DE ACTIVO INMOVILIZADO"]
[721,null,"Inversiones inmobiliarias"]
[7211,72110,"Edificaciones"]
[722,null,"Inmuebles, maquinaria y equipo"]
[7221,72210,"Edificaciones"]
[7222,72220,"Maquinarias y otros equipos de explotación"]
[7223,72230,"Equipo de transporte"]
[7224,72240,"Muebles y enseres"]
[7225,72250,"Equipos diversos"]
[723,null,"Intangibles"]
[7231,72310,"Programas de computadora (software)"]
[7232,72320,"Costos de exploración y desarrollo"]
[7233,72330,"Fórmulas, diseños y prototipos"]
[724,null,"Activos biológicos"]
[7241,72410,"Activos biológicos en desarrollo de origen animal"]
[7242,72420,"Activos biológicos en desarrollo de origen vegetal"]
[725,null,"Costos de financiación capitalizados"]
[7251,null,"Costos de financiación – Inversiones inmobiliarias"]
[72511,72511,"Edificaciones"]
[7252,null,"Costos de financiación – Inmuebles, maquinaria y equipo"]
[72521,72521,"Edificaciones"]
[72522,72522,"Maquinarias y otros equipos de explotación"]
[7253,72530,"Costos de financiación – Intangibles"]
[7254,null,"Costos de financiación – Activos biológicos en desarrollo"]
[72541,72541,"Activos biológicos de origen animal"]
[72542,72542,"Activos biológicos de origen vegetal"]
[73,null,"DESCUENTOS, REBAJAS Y BONIFICACIONES OBTENIDOS"]
[731,null,"Descuentos, rebajas y bonificaciones obtenidos"]
[7311,73110,"Terceros",null,null,4]
[7312,73120,"Relacionadas",null,null,4]
[74,null,"DESCUENTOS, REBAJAS Y BONIFICACIONES CONCEDIDOS"]
[741,null,"Descuentos, rebajas y bonificaciones concedidos"]
[7411,74110,"Terceros",null,null,4]
[7412,74120,"Relacionadas",null,null,4]
[75,null,"OTROS INGRESOS DE GESTIÓN"]
[751,75100,"Servicios en beneficio del personal",null,null,4]
[752,75200,"Comisiones y corretajes",null,null,4]
[753,75300,"Regalías",null,null,4]
[754,null,"Alquileres"]
[7541,75410,"Terrenos",null,null,4]
[7542,75420,"Edificaciones",null,null,4]
[7543,75430,"Maquinarias y equipos de explotación",null,null,4]
[7544,75440,"Equipo de transporte",null,null,4]
[7545,75450,"Equipos diversos",null,null,4]
[755,null,"Recuperación de cuentas de valuación"]
[7551,75510,"Recuperación - Cuentas de cobranza dudosa",null,null,4]
[7552,75520,"Recuperación - Desvalorización de existencias",null,null,4]
[7553,75530,"Recuperación – Desvalorización de inversiones mobiliarias",null,null,4]
[756,null,"Enajenación de activos inmovilizados"]
[7561,75610,"Inversiones mobiliarias",null,null,4]
[7562,75620,"Inversiones inmobiliarias",null,null,4]
[7563,75630,"Activos adquiridos en arrendamiento financiero",null,null,4]
[7564,75640,"Inmuebles, maquinaria y equipo",null,null,4]
[7565,75650,"Intangibles",null,null,4]
[7566,75660,"Activos biológicos",null,null,4]
[757,null,"Recuperación de deterioro de cuentas de activos inmovilizados"]
[7571,75710,"Recuperación de deterioro de inversiones inmobiliarias",null,null,4]
[7572,75720,"Recuperación de deterioro de inmuebles, maquinaria y equipo",null,null,4]
[7573,75730,"Recuperación de deterioro de intangibles",null,null,4]
[7574,75740,"Recuperación de deterioro de activos biológicos",null,null,4]
[759,null,"Otros ingresos de gestión"]
[7591,75910,"Subsidios gubernamentales",null,null,4]
[7592,75920,"Reclamos al seguro",null,null,4]
[7593,75930,"Donaciones",null,null,4]
[7599,75990,"Otros ingresos de gestión",null,null,4]
[76,null,"GANANCIA POR MEDICIÓN DE ACTIVOS NO FINANCIEROS AL VALOR RAZONABLE"]
[761,null,"Activo realizable"]
[7611,76110,"Mercaderías",null,null,4]
[7612,76120,"Productos terminados",null,null,4]
[7613,null,"Activos no corrientes mantenidos para la venta"]
[76131,76131,"Inversiones inmobiliarias",null,null,4]
[76132,76132,"Inmuebles, maquinaria y equipo",null,null,4]
[76133,76133,"Intangibles",null,null,4]
[76134,76134,"Activos biológicos",null,null,4]
[762,null,"Activo inmovilizado"]
[7621,null,"Inversiones inmobiliarias"]
[7622,76220,"Activos biológicos",null,null,4]
[77,null,"INGRESOS FINANCIEROS"]
[771,77100,"Ganancia por instrumento financiero derivado",null,null,4]
[772,null,"Rendimientos ganados"]
[7721,77210,"Depósitos en instituciones financieras",null,null,4]
[7722,77220,"Cuentas por cobrar comerciales",null,null,4]
[7723,77230,"Préstamos otorgados",null,null,4]
[7724,77240,"Inversiones a ser mantenidas hasta el vencimiento",null,null,4]
[7725,77250,"Instrumentos financieros representativos de derecho patrimonial",null,null,4]
[773,77300,"Dividendos",null,null,4]
[774,77400,"Ingresos en operaciones de factoraje (factoring)",null,null,4]
[775,77500,"Descuentos obtenidos por pronto pago",null,null,4]
[776,77600,"Diferencia en cambio",null,null,4]
[777,null,"Ganancia por medición de activos y pasivos financieros al valor razonable"]
[7771,77710,"Inversiones mantenidas para negociación",null,null,4]
[7772,77720,"Inversiones disponibles para la venta",null,null,4]
[7773,77730,"Otras",null,null,4]
[778,null,"Participación en resultados de entidades relacionadas"]
[7781,77810,"Participación en los resultados de subsidiarias y asociadas bajo el método del valor patrimonial",null,null,4]
[7782,77820,"Ingresos por participaciones en negocios conjuntos",null,null,4]
[779,null,"Otros ingresos financieros"]
[7792,77920,"Ingresos financieros en medición a valor descontado",null,null,4]
[78,null,"CARGAS CUBIERTAS POR PROVISIONES"]
[781,78100,"Cargas cubiertas por provisiones"]
[79,null,"CARGAS IMPUTABLES A CUENTAS DE COSTOS Y GASTOS"]
[791,79100,"Cargas imputables a cuentas de costos y gastos"]
[792,79200,"Gastos financieros imputables a cuentas de existencias"]
[80,null,"MARGEN COMERCIAL"]
[801,80100,"Margen comercial"]
[81,null,"PRODUCCIÓN DEL EJERCICIO"]
[811,81100,"Producción de bienes"]
[812,81200,"Producción de servicios"]
[813,81300,"Producción de activo inmovilizado"]
[82,null,"VALOR AGREGADO"]
[821,82100,"Valor agregado"]
[83,null,"EXCEDENTE BRUTO (INSUFICIENCIA BRUTA) DE EXPLOTACIÓN"]
[831,83100,"Excedente bruto (insuficiencia bruta) de explotación"]
[84,null,"RESULTADO DE EXPLOTACIÓN"]
[841,84100,"Resultado de explotación"]
[85,null,"RESULTADO ANTES DE PARTICIPACIONES E IMPUESTOS"]
[851,85100,"Resultado antes de participaciones e impuestos"]
[87,null,"PARTICIPACIONES DE LOS TRABAJADORES"]
[871,87100,"Participación de los trabajadores – Corriente"]
[872,87200,"Participación de los trabajadores – Diferida"]
[88,null,"IMPUESTO A LA RENTA"]
[881,88100,"Impuesto a la renta – Corriente"]
[882,88200,"Impuesto a la renta - Diferido"]
[89,null,"DETERMINACIÓN DEL RESULTADO DEL EJERCICIO"]
[891,89100,"Utilidad"]
[892,89200,"Pérdida"]
[90,null,"COSTO DE PRODUCCIÓN"]
[900,null,"COMPRAS"]
[9001,null,"Mercaderías"]
[90011,90011,"Mercaderías manufacturadas",60110,79100]
[90012,90012,"Mercaderías de extracción",60120,79100]
[90013,90013,"Mercaderías agropecuarias y piscícolas",60130,79100]
[90014,90014,"Mercaderías inmuebles",60140,79100]
[90018,90018,"Otras mercaderías",60180,79100]
[9002,null,"Materias primas"]
[90021,90021,"Materias primas para productos manufacturados",60210,79100]
[90022,90022,"Materias primas para productos de extracción",60220,79100]
[90023,90023,"Materias primas para productos agropecuarios y piscícolas",60230,79100]
[90024,90024,"Materias primas para productos inmuebles",60240,79100]
[9003,null,"Materiales auxiliares, suministros y repuestos"]
[90031,90031,"Materiales auxiliares",60310,79100]
[90032,90032,"Suministros",60320,79100]
[90033,90033,"Repuestos",60330,79100]
[9004,null,"Envases y embalajes"]
[90041,90041,"Envases",60410,79100]
[90042,90042,"Embalajes",60420,79100]
[9009,null,"Costos vinculados con las compras"]
[90091,null,"Costos vinculados con las compras de mercaderías"]
[90091,90091,"Transporte",60911,79100]
[90091,90091,"Seguros",60912,79100]
[90091,90091,"Derechos aduaneros",60913,79100]
[90091,90091,"Comisiones",60914,79100]
[90091,90091,"Otros costos vinculados con las compras de mercaderías",60919,79100]
[90092,null,"Costos vinculados con las compras de materias primas"]
[90092,90092,"Transporte",60921,79100]
[90092,90092,"Seguros",60922,79100]
[90092,90092,"Derechos aduaneros",60923,79100]
[90092,90092,"Comisiones",60924,79100]
[90092,90092,"Otros costos vinculados con las compras de materias primas",60925,79100]
[90093,null,"Costos vinculados con las compras de materiales, suministros y repuestos"]
[90093,90093,"Transporte",60931,79100]
[90093,90093,"Seguros",60932,79100]
[90093,90093,"Derechos aduaneros",60933,79100]
[90093,90093,"Comisiones",60934,79100]
[90093,90093,"Otros costos vinculados con las compras de materiales, suministros y repuestos",60935,79100]
[90094,null,"Costos vinculados con las compras de envases y embalajes"]
[90094,90094,"Transporte",60941,79100]
[90094,90094,"Seguros",60942,79100]
[90094,90094,"Derechos aduaneros",60943,79100]
[90094,90094,"Comisiones",60944,79100]
[90094,90094,"Otros costos vinculados con las compras de envases y embalajes",60945,79100]
[901,null,"VARIACIÓN DE EXISTENCIAS"]
[9011,null,"Mercaderías"]
[90111,90111,"Mercaderías manufacturadas",61110,79100]
[90112,90112,"Mercaderías de extracción",61120,79100]
[90113,90113,"Mercaderías agropecuarias y piscícolas",61130,79100]
[90114,90114,"Mercaderías inmuebles",61140,79100]
[90115,90115,"Otras mercaderías",61150,79100]
[9012,null,"Materias primas"]
[90121,90121,"Materias primas para productos manufacturados",61210,79100]
[90122,90122,"Materias primas para productos de extracción",61220,79100]
[90123,90123,"Materias primas para productos agropecuarios y piscícolas",61230,79100]
[90124,90124,"Materias primas para productos inmuebles",61240,79100]
[9013,null,"Materiales auxiliares, suministros y repuestos"]
[90131,90131,"Materiales auxiliares",61310,79100]
[90132,90132,"Suministros",61320,79100]
[90133,90133,"Repuestos",61330,79100]
[9014,null,"Envases y embalajes"]
[90141,90141,"Envases",61410,79100]
[90142,90142,"Embalajes",61420,79100]
[902,null,"GASTOS DE PERSONAL, DIRECTORES Y GERENTES"]
[9021,null,"Remuneraciones"]
[90211,90211,"Sueldos y salarios",62110,79100]
[90212,90212,"Comisiones",62120,79100]
[90213,90213,"Remuneraciones en especie",62130,79100]
[90214,90214,"Gratificaciones",62140,79100]
[90215,90215,"Vacaciones",62150,79100]
[90220,90220,"Otras remuneraciones",62200,79100]
[90230,90230,"Indemnizaciones al personal",62300,79100]
[90240,90240,"Capacitación",62400,79100]
[90250,90250,"Atención al personal",62500,79100]
[90260,90260,"Gerentes",62600,79100]
[9027,null,"Seguridad, previsión social y otras contribuciones"]
[90271,90271,"Régimen de prestaciones de salud",62710,79100]
[90272,90272,"Régimen de pensiones",62720,79100]
[90273,90273,"Seguro complementario de trabajo de riesgo, accidentes de trabajo y enfermedades profesionales",62730,79100]
[90274,90274,"Seguro de vida",62740,79100]
[90275,90275,"Seguros particulares de prestaciones de salud - EPS y otros particulares",62750,79100]
[90276,90276,"Caja de beneficios de seguridad social del pescador",62760,79100]
[90277,90277,"Contribuciones al SENCICO y el SENATI",62770,79100]
[90280,90280,"Retribuciones al directorio",62800,79100]
[9029,null,"Beneficios sociales de los trabajadores"]
[90291,90291,"Compensación por tiempo de servicio",62910,79100]
[90292,90292,"Pensiones y jubilaciones",62920,79100]
[90293,90293,"Otros beneficios post-empleo",62930,79100]
[903,null,"GASTOS DE SERVICIOS PRESTADOS POR TERCEROS"]
[9031,null,"Transporte, correos y gastos de viaje"]
[90311,null,"Transporte"]
[90311,90311,"De carga",63111,79100]
[90311,90311,"De pasajeros",63112,79100]
[90312,90312,"Correos",63120,79100]
[90313,90313,"Alojamiento",63130,79100]
[90314,90314,"Alimentación",63140,79100]
[90315,90315,"Otros gastos de viaje",63150,79100]
[9032,null,"Asesoría y consultoría"]
[90321,90321,"Administrativa",63210,79100]
[90322,90322,"Legal y tributaria",63220,79100]
[90323,90323,"Auditoría y contable",63230,79100]
[90324,90324,"Mercadotecnia",63240,79100]
[90325,90325,"Medioambiental",63250,79100]
[90326,90326,"Investigación y desarrollo",63260,79100]
[90327,90327,"Producción",63270,79100]
[90329,90329,"Otros",63290,79100]
[90330,90330,"Producción encargada a terceros",63300,79100]
[9034,null,"Mantenimiento y reparaciones"]
[90341,90341,"Inversión inmobiliaria",63410,79100]
[90342,90342,"Activos adquiridos en arrendamiento financiero",63420,79100]
[90343,90343,"Inmuebles, maquinaria y equipo",63430,79100]
[90344,90344,"Intangibles",63440,79100]
[90345,90345,"Activos biológicos",63450,79100]
[9035,null,"Alquileres"]
[90351,90351,"Terrenos",63510,79100]
[90352,90352,"Edificaciones",63520,79100]
[90353,90353,"Maquinarias y equipos de explotación",63530,79100]
[90354,90354,"Equipo de transporte",63540,79100]
[90356,90356,"Equipos diversos",63560,79100]
[9036,null,"Servicios básicos"]
[90361,90361,"Energía eléctrica",63610,79100]
[90362,90362,"Gas",63620,79100]
[90363,90363,"Agua",63630,79100]
[90364,90364,"Teléfono",63640,79100]
[90365,90365,"Internet",63650,79100]
[90366,90366,"Radio",63660,79100]
[90367,90367,"Cable",63670,79100]
[9037,null,"Publicidad, publicaciones, relaciones públicas"]
[90371,90371,"Publicidad",63710,79100]
[90372,90372,"Publicaciones",63720,79100]
[90372,90372,"Relaciones públicas",63730,79100]
[90380,90380,"Servicios de contratistas",63800,79100]
[9039,null,"Otros servicios prestados por terceros"]
[90391,90391,"Gastos bancarios",63910,79100]
[90392,90392,"Gastos de laboratorio",63920,79100]
[904,null,"GASTOS POR TRIBUTOS"]
[9041,null,"Gobierno central"]
[90411,90411,"Impuesto general a las ventas y selectivo al consumo",64110,79100]
[90412,90412,"Impuesto a las transacciones financieras",64120,79100]
[90413,90413,"Impuesto temporal a los activos netos",64130,79100]
[90414,90414,"Impuesto a los juegos de casino y máquinas tragamonedas",64140,79100]
[90415,90415,"Regalías mineras",64150,79100]
[90416,90416,"Cánones",64160,79100]
[90419,90419,"Otros",64190,79100]
[90420,90420,"Gobierno regional",64200,79100]
[9043,null,"Gobierno local"]
[90431,90431,"Impuesto predial",64310,79100]
[90432,90432,"Arbitrios municipales y seguridad ciudadana",64320,79100]
[90433,90433,"Impuesto al patrimonio vehicular",64330,79100]
[90434,90434,"Licencia de funcionamiento",64340,79100]
[90439,90439,"Otros",64390,79100]
[9044,null,"Otros gastos por tributos"]
[90441,90441,"Contribución al SENATI",64410,79100]
[90442,90442,"Contribución al SENCICO",64420,79100]
[90443,90443,"Otros",64430,79100]
[905,null,"OTROS GASTOS DE GESTIÓN"]
[90510,90510,"Seguros",65100,79100]
[90520,90520,"Regalías",65200,79100]
[90530,90530,"Suscripciones",65300,79100]
[90540,90540,"Licencias y derechos de vigencia",65400,79100]
[9055,null,"Costo neto de enajenación de activos inmovilizados y operaciones discontinuadas"]
[90551,null,"Costo neto de enajenación de activos inmovilizados"]
[90551,90551,"Inversiones inmobiliarias",65511,79100]
[90551,90551,"Activos adquiridos en arrendamiento financiero",65512,79100]
[90551,90551,"Inmuebles, maquinaria y equipo",65513,79100]
[90551,90551,"Intangibles",65514,79100]
[90551,90551,"Activos biológicos",65515,79100]
[90552,null,"Operaciones discontinuadas - Abandono de activos"]
[90552,90552,"Inversiones inmobiliarias",65521,79100]
[90552,90552,"Activos adquiridos en arrendamiento financiero",65522,79100]
[90552,90552,"Inmuebles, maquinaria y equipo",65523,79100]
[90552,90552,"Intangibles",65524,79100]
[90552,90552,"Activos biológicos",65525,79100]
[90560,90560,"Suministros",65600,79100]
[90580,90580,"Gestión medioambiental",65800,79100]
[9059,null,"Otros gastos de gestión"]
[90591,90591,"Donaciones",65910,79100]
[90592,90592,"Sanciones administrativas",65920,79100]
[907,null,"GASTOS FINANCIEROS"]
[9071,null,"Gastos en operaciones de endeudamiento y otros"]
[90711,90711,"Préstamos de instituciones financieras y otras entidades",67110,79100]
[90712,90712,"Contratos de arrendamiento financiero",67120,79100]
[90713,90713,"Emisión y colocación de instrumentos representativos de deuda y patrimonio",67130,79100]
[90714,90714,"Documentos vendidos o descontados",67140,79100]
[9072,90720,"Pérdida por instrumentos financieros derivados",67200,79100]
[9073,null,"Intereses por préstamos y otras obligaciones"]
[90731,null,"Préstamos de instituciones financieras y otras entidades"]
[90731,90731,"Instituciones financieras",67311,79100]
[90731,90731,"Otras entidades",67312,79100]
[90732,90732,"Contratos de arrendamiento financiero",67320,79100]
[90733,90733,"Otros instrumentos financieros por pagar",67330,79100]
[90734,90734,"Documentos vendidos o descontados",67340,79100]
[90735,90735,"Obligaciones emitidas",67350,79100]
[90736,90736,"Obligaciones comerciales",67360,79100]
[90737,90737,"Obligaciones tributarias",67370,79100]
[9074,null,"Gastos en operaciones de factoraje (factoring)"]
[90741,90741,"Gastos por menor valor",67410,79100]
[9075,90750,"Descuentos concedidos por pronto pago",67500,79100]
[9076,90760,"Diferencia de cambio",67600,79100]
[9077,null,"Pérdida por medición de activos y pasivos financieros al valor razonable"]
[90771,90771,"Inversiones para negociación",67710,79100]
[90772,90772,"Inversiones disponibles para la venta",67720,79100]
[90773,90773,"Otros",67730,79100]
[9078,null,"Participación en resultados de entidades relacionadas"]
[90781,90781,"Participación en los resultados de subsidiarias y asociadas bajo el método del valor patrimonial",67810,79100]
[90782,90782,"Participaciones en negocios conjuntos",67820,79100]
[9079,null,"Otros gastos financieros"]
[90791,90791,"Primas por opciones",67910,79100]
[90792,90792,"Gastos financieros en medición a valor descontado",67920,79100]
[908,null,"VALUACIÓN Y DETERIORO DE ACTIVOS Y PROVISIONES"]
[9081,null,"Depreciación"]
[90811,null,"Depreciación de inversiones inmobiliarias"]
[90811,90811,"Edificaciones - Costo",68111,79100]
[90811,90811,"Edificaciones - Revaluación",68112,79100]
[90811,90811,"Edificaciones – Costo de financiación",68113,79100]
[90812,null,"Depreciación de activos adquiridos en arrendamiento financiero – Inversiones inmobiliarias"]
[90812,90812,"Edificaciones",68121,79100]
[90813,null,"Depreciación de activos adquiridos en arrendamiento financiero - Inmuebles, maquinaria y equipo"]
[90813,90813,"Edificaciones",68131,79100]
[90813,90813,"Maquinarias y equipos de explotación",68132,79100]
[90813,90813,"Equipo de transporte",68133,79100]
[90813,90813,"Equipos diversos",68134,79100]
[90814,null,"Depreciación de inmuebles, maquinaria y equipo – Costo"]
[90814,90814,"Edificaciones",68141,79100]
[90814,90814,"Maquinarias y equipos de explotación",68142,79100]
[90814,90814,"Equipo de transporte",68143,79100]
[90814,90814,"Muebles y enseres",68144,79100]
[90814,90814,"Equipos diversos",68145,79100]
[90814,90814,"Herramientas y unidades de reemplazo",68146,79100]
[90815,null,"Depreciación de inmuebles, maquinaria y equipo – Revaluación"]
[90815,90815,"Edificaciones",68151,79100]
[90815,90815,"Maquinarias y equipos de explotación",68152,79100]
[90815,90815,"Equipo de transporte",68153,79100]
[90815,90815,"Muebles y enseres",68154,79100]
[90815,90815,"Equipos diversos",68155,79100]
[90815,90815,"Herramientas y unidades de reemplazo",68156,79100]
[90816,null,"Depreciación de inmuebles, maquinaria y equipo – Costos de financiación"]
[90816,90816,"Edificaciones",68161,79100]
[90816,90816,"Maquinarias y equipos de explotación",68162,79100]
[90817,null,"Depreciación de activos biológicos en producción – Costo"]
[90817,90817,"Activos biológicos de origen animal",68171,79100]
[90817,90817,"Activos biológicos de origen vegetal",68172,79100]
[90818,null,"Depreciación de activos biológicos en producción – Costo de financiación"]
[90818,90818,"Activos biológicos de origen animal",68181,79100]
[90818,90818,"Activos biológicos de origen vegetal",68182,79100]
[9082,null,"Amortización de intangibles"]
[90821,null,"Amortización de intangibles - Costo"]
[90821,90821,"Concesiones, licencias y otros derechos",68211,79100]
[90821,90821,"Patentes y propiedad industrial",68212,79100]
[90821,90821,"Programas de computadora (software)",68213,79100]
[90821,90821,"Costos de exploración y desarrollo",68214,79100]
[90821,90821,"Fórmulas, diseños y prototipos",68215,79100]
[90821,90821,"Otros activos intangibles",68219,79100]
[90822,null,"Amortización de intangibles - Revaluación"]
[90822,90822,"Concesiones, licencias y otros derechos",68221,79100]
[90822,90822,"Patentes y propiedad industrial",68222,79100]
[90822,90822,"Programas de computadora (software)",68223,79100]
[90822,90822,"Costos de exploración y desarrollo",68224,79100]
[90822,90822,"Fórmulas, diseños y prototipos",68225,79100]
[90822,90822,"Otros activos intangibles",68229,79100]
[9083,null,"Agotamiento"]
[90831,90831,"Agotamiento de recursos naturales adquiridos",68310,79100]
[9084,null,"Valuación de activos"]
[90841,null,"Estimación de cuentas de cobranza dudosa"]
[90841,90841,"Cuentas por cobrar comerciales – Terceros",68411,79100]
[90841,90841,"Cuentas por cobrar comerciales – Relacionadas",68412,79100]
[90841,90841,"Cuentas por cobrar al personal, a los accionistas (socios), directores y gerentes",68413,79100]
[90841,90841,"Cuentas por cobrar diversas – Terceros",68414,79100]
[90841,90841,"Cuentas por cobrar diversas – Relacionadas",68415,79100]
[90843,null,"Desvalorización de inversiones mobiliarias"]
[90843,90843,"Inversiones a ser mantenidas hasta el vencimiento",68431,79100]
[90843,90843,"Instrumentos financieros representativos de derecho patrimonial",68432,79100]
[9085,null,"Deterioro del valor de los activos"]
[90851,null,"Desvalorización de inversiones inmobiliarias"]
[90851,90851,"Edificaciones",68511,79100]
[90852,null,"Desvalorización de inmuebles maquinaria y equipo"]
[90852,90852,"Edificaciones",68521,79100]
[90852,90852,"Maquinarias y equipos de explotación",68522,79100]
[90852,90852,"Equipo de transporte",68523,79100]
[90852,90852,"Muebles y enseres",68524,79100]
[90852,90852,"Equipos diversos",68525,79100]
[90852,90852,"Herramientas y unidades de reemplazo",68526,79100]
[90853,null,"Desvalorización de intangibles"]
[90853,90853,"Concesiones, licencias y otros derechos",68531,79100]
[90853,90853,"Patentes y propiedad industrial",68532,79100]
[90853,90853,"Programas de computadora (software)",68533,79100]
[90853,90853,"Costos de exploración y desarrollo",68534,79100]
[90853,90853,"Fórmulas, diseños y prototipos",68535,79100]
[90853,90853,"Otros activos intangibles",68536,79100]
[90853,90853,"Plusvalía mercantil",68537,79100]
[90854,null,"Desvalorización de activos biológicos en producción"]
[90854,90854,"Activos biológicos de origen animal",68541,79100]
[90854,90854,"Activos biológicos de origen vegetal",68542,79100]
[9086,null,"Provisiones"]
[90861,null,"Provisión para litigios"]
[90861,90861,"Provisión para litigios – Costo",68611,79100]
[90861,90861,"Provisión para litigios – Actualización financiera",68612,79100]
[90862,null,"Provisión por desmantelamiento, retiro o rehabilitación del inmovilizado"]
[90862,90862,"Provisión por desmantelamiento, retiro o rehabilitación del inmovilizado – Costo",68621,79100]
[90862,90862,"Provisión por desmantelamiento, retiro o rehabilitación del inmovilizado – Actualización financiera",68622,79100]
[90863,90863,"Provisión para reestructuraciones",68630,79100]
[90864,null,"Provisión para protección y remediación del medio ambiente"]
[90864,90864,"Provisión para protección y remediación del medio ambiente – Costo",68641,79100]
[90864,90864,"Provisión para protección y remediación del medio ambiente – Actualización financiera",68642,79100]
[90866,null,"Provisión para garantías"]
[90866,90866,"Provisión para garantías – Costo",68661,79100]
[90866,90866,"Provisión para garantías – Actualización financiera",68662,79100]
[90869,90869,"Otras provisiones",68690,79100]
[91,null,"COSTO DE SERVICIOS"]
[910,"","COMPRAS"]
[9101,"","Mercaderías"]
[91011,91011,"Mercaderías manufacturadas",60110,79100,2]
[91012,91012,"Mercaderías de extracción",60120,79100,2]
[91013,91013,"Mercaderías agropecuarias y piscícolas",60130,79100,2]
[91014,91014,"Mercaderías inmuebles",60140,79100,2]
[91018,91018,"Otras mercaderías",60180,79100,2]
[9102,"","Materias primas"]
[91021,91021,"Materias primas para productos manufacturados",60210,79100,2]
[91022,91022,"Materias primas para productos de extracción",60220,79100,2]
[91023,91023,"Materias primas para productos agropecuarios y piscícolas",60230,79100,2]
[91024,91024,"Materias primas para productos inmuebles",60240,79100,2]
[9103,"","Materiales auxiliares, suministros y repuestos"]
[91031,91031,"Materiales auxiliares",60310,79100,2]
[91032,91032,"Suministros",60320,79100,2]
[91033,91033,"Repuestos",60330,79100,2]
[9104,"","Envases y embalajes"]
[91041,91041,"Envases",60410,79100,2]
[91042,91042,"Embalajes",60420,79100,2]
[9109,"","Costos vinculados con las compras"]
[91091,"","Costos vinculados con las compras de mercaderías"]
[91091,91091,"Transporte",60911,79100,2]
[91091,91091,"Seguros",60912,79100,2]
[91091,91091,"Derechos aduaneros",60913,79100,2]
[91091,91091,"Comisiones",60914,79100,2]
[91091,91091,"Otros costos vinculados con las compras de mercaderías",60919,79100,2]
[91092,"","Costos vinculados con las compras de materias primas"]
[91092,91092,"Transporte",60921,79100,2]
[91092,91092,"Seguros",60922,79100,2]
[91092,91092,"Derechos aduaneros",60923,79100,2]
[91092,91092,"Comisiones",60924,79100,2]
[91092,91092,"Otros costos vinculados con las compras de materias primas",60925,79100,2]
[91093,"","Costos vinculados con las compras de materiales, suministros y repuestos"]
[91093,91093,"Transporte",60931,79100,2]
[91093,91093,"Seguros",60932,79100,2]
[91093,91093,"Derechos aduaneros",60933,79100,2]
[91093,91093,"Comisiones",60934,79100,2]
[91093,91093,"Otros costos vinculados con las compras de materiales, suministros y repuestos",60935,79100,2]
[91094,"","Costos vinculados con las compras de envases y embalajes"]
[91094,91094,"Transporte",60941,79100,2]
[91094,91094,"Seguros",60942,79100,2]
[91094,91094,"Derechos aduaneros",60943,79100,2]
[91094,91094,"Comisiones",60944,79100,2]
[91094,91094,"Otros costos vinculados con las compras de envases y embalajes",60945,79100,2]
[911,"","VARIACIÓN DE EXISTENCIAS"]
[9111,"","Mercaderías"]
[91111,91111,"Mercaderías manufacturadas",61110,79100,2]
[91112,91112,"Mercaderías de extracción",61120,79100,2]
[91113,91113,"Mercaderías agropecuarias y piscícolas",61130,79100,2]
[91114,91114,"Mercaderías inmuebles",61140,79100,2]
[91115,91115,"Otras mercaderías",61150,79100,2]
[9112,"","Materias primas"]
[91121,91121,"Materias primas para productos manufacturados",61210,79100,2]
[91122,91122,"Materias primas para productos de extracción",61220,79100,2]
[91123,91123,"Materias primas para productos agropecuarios y piscícolas",61230,79100,2]
[91124,91124,"Materias primas para productos inmuebles",61240,79100,2]
[9113,"","Materiales auxiliares, suministros y repuestos"]
[91131,91131,"Materiales auxiliares",61310,79100,2]
[91132,91132,"Suministros",61320,79100,2]
[91133,91133,"Repuestos",61330,79100,2]
[9114,"","Envases y embalajes"]
[91141,91141,"Envases",61410,79100,2]
[91142,91142,"Embalajes",61420,79100,2]
[912,"","GASTOS DE PERSONAL, DIRECTORES Y GERENTES"]
[9121,"","Remuneraciones"]
[91211,91211,"Sueldos y salarios",62110,79100,2]
[91212,91212,"Comisiones",62120,79100,2]
[91213,91213,"Remuneraciones en especie",62130,79100,2]
[91214,91214,"Gratificaciones",62140,79100,2]
[91215,91215,"Vacaciones",62150,79100,2]
[91220,91220,"Otras remuneraciones",62200,79100,2]
[91230,91230,"Indemnizaciones al personal",62300,79100,2]
[91240,91240,"Capacitación",62400,79100,2]
[91250,91250,"Atención al personal",62500,79100,2]
[91260,91260,"Gerentes",62600,79100,2]
[9127,"","Seguridad, previsión social y otras contribuciones"]
[91271,91271,"Régimen de prestaciones de salud",62710,79100,2]
[91272,91272,"Régimen de pensiones",62720,79100,2]
[91273,91273,"Seguro complementario de trabajo de riesgo, accidentes de trabajo y enfermedades profesionales",62730,79100,2]
[91274,91274,"Seguro de vida",62740,79100,2]
[91275,91275,"Seguros particulares de prestaciones de salud - EPS y otros particulares",62750,79100,2]
[91276,91276,"Caja de beneficios de seguridad social del pescador",62760,79100,2]
[91277,91277,"Contribuciones al SENCICO y el SENATI",62770,79100,2]
[91280,91280,"Retribuciones al directorio",62800,79100,2]
[9129,"","Beneficios sociales de los trabajadores"]
[91291,91291,"Compensación por tiempo de servicio",62910,79100,2]
[91292,91292,"Pensiones y jubilaciones",62920,79100,2]
[91293,91293,"Otros beneficios post-empleo",62930,79100,2]
[913,"","GASTOS DE SERVICIOS PRESTADOS POR TERCEROS"]
[9131,"","Transporte, correos y gastos de viaje"]
[91311,"","Transporte"]
[91311,91311,"De carga",63111,79100,2]
[91311,91311,"De pasajeros",63112,79100,2]
[91312,91312,"Correos",63120,79100,2]
[91313,91313,"Alojamiento",63130,79100,2]
[91314,91314,"Alimentación",63140,79100,2]
[91315,91315,"Otros gastos de viaje",63150,79100,2]
[9132,"","Asesoría y consultoría"]
[91321,91321,"Administrativa",63210,79100,2]
[91322,91322,"Legal y tributaria",63220,79100,2]
[91323,91323,"Auditoría y contable",63230,79100,2]
[91324,91324,"Mercadotecnia",63240,79100,2]
[91325,91325,"Medioambiental",63250,79100,2]
[91326,91326,"Investigación y desarrollo",63260,79100,2]
[91327,91327,"Producción",63270,79100,2]
[91329,91329,"Otros",63290,79100,2]
[91330,91330,"Producción encargada a terceros",63300,79100,2]
[9134,"","Mantenimiento y reparaciones"]
[91341,91341,"Inversión inmobiliaria",63410,79100,2]
[91342,91342,"Activos adquiridos en arrendamiento financiero",63420,79100,2]
[91343,91343,"Inmuebles, maquinaria y equipo",63430,79100,2]
[91344,91344,"Intangibles",63440,79100,2]
[91345,91345,"Activos biológicos",63450,79100,2]
[9135,"","Alquileres"]
[91351,91351,"Terrenos",63510,79100,2]
[91352,91352,"Edificaciones",63520,79100,2]
[91353,91353,"Maquinarias y equipos de explotación",63530,79100,2]
[91354,91354,"Equipo de transporte",63540,79100,2]
[91356,91356,"Equipos diversos",63560,79100,2]
[9136,"","Servicios básicos"]
[91361,91361,"Energía eléctrica",63610,79100,2]
[91362,91362,"Gas",63620,79100,2]
[91363,91363,"Agua",63630,79100,2]
[91364,91364,"Teléfono",63640,79100,2]
[91365,91365,"Internet",63650,79100,2]
[91366,91366,"Radio",63660,79100,2]
[91367,91367,"Cable",63670,79100,2]
[9137,"","Publicidad, publicaciones, relaciones públicas"]
[91371,91371,"Publicidad",63710,79100,2]
[91372,91372,"Publicaciones",63720,79100,2]
[91372,91372,"Relaciones públicas",63730,79100,2]
[91380,91380,"Servicios de contratistas",63800,79100,2]
[9139,"","Otros servicios prestados por terceros"]
[91391,91391,"Gastos bancarios",63910,79100,2]
[91392,91392,"Gastos de laboratorio",63920,79100,2]
[914,"","GASTOS POR TRIBUTOS"]
[9141,"","Gobierno central"]
[91411,91411,"Impuesto general a las ventas y selectivo al consumo",64110,79100,2]
[91412,91412,"Impuesto a las transacciones financieras",64120,79100,2]
[91413,91413,"Impuesto temporal a los activos netos",64130,79100,2]
[91414,91414,"Impuesto a los juegos de casino y máquinas tragamonedas",64140,79100,2]
[91415,91415,"Regalías mineras",64150,79100,2]
[91416,91416,"Cánones",64160,79100,2]
[91419,91419,"Otros",64190,79100,2]
[91420,91420,"Gobierno regional",64200,79100,2]
[9143,"","Gobierno local"]
[91431,91431,"Impuesto predial",64310,79100,2]
[91432,91432,"Arbitrios municipales y seguridad ciudadana",64320,79100,2]
[91433,91433,"Impuesto al patrimonio vehicular",64330,79100,2]
[91434,91434,"Licencia de funcionamiento",64340,79100,2]
[91439,91439,"Otros",64390,79100,2]
[9144,"","Otros gastos por tributos"]
[91441,91441,"Contribución al SENATI",64410,79100,2]
[91442,91442,"Contribución al SENCICO",64420,79100,2]
[91443,91443,"Otros",64430,79100,2]
[915,"","OTROS GASTOS DE GESTIÓN"]
[91510,91510,"Seguros",65100,79100,2]
[91520,91520,"Regalías",65200,79100,2]
[91530,91530,"Suscripciones",65300,79100,2]
[91540,91540,"Licencias y derechos de vigencia",65400,79100,2]
[9155,"","Costo neto de enajenación de activos inmovilizados y operaciones discontinuadas"]
[91551,"","Costo neto de enajenación de activos inmovilizados"]
[91551,91551,"Inversiones inmobiliarias",65511,79100,2]
[91551,91551,"Activos adquiridos en arrendamiento financiero",65512,79100,2]
[91551,91551,"Inmuebles, maquinaria y equipo",65513,79100,2]
[91551,91551,"Intangibles",65514,79100,2]
[91551,91551,"Activos biológicos",65515,79100,2]
[91552,"","Operaciones discontinuadas - Abandono de activos"]
[91552,91552,"Inversiones inmobiliarias",65521,79100,2]
[91552,91552,"Activos adquiridos en arrendamiento financiero",65522,79100,2]
[91552,91552,"Inmuebles, maquinaria y equipo",65523,79100,2]
[91552,91552,"Intangibles",65524,79100,2]
[91552,91552,"Activos biológicos",65525,79100,2]
[91560,91560,"Suministros",65600,79100,2]
[91580,91580,"Gestión medioambiental",65800,79100,2]
[9159,"","Otros gastos de gestión"]
[91591,91591,"Donaciones",65910,79100,2]
[91592,91592,"Sanciones administrativas",65920,79100,2]
[917,"","GASTOS FINANCIEROS"]
[9171,"","Gastos en operaciones de endeudamiento y otros"]
[91711,91711,"Préstamos de instituciones financieras y otras entidades",67110,79100,2]
[91712,91712,"Contratos de arrendamiento financiero",67120,79100,2]
[91713,91713,"Emisión y colocación de instrumentos representativos de deuda y patrimonio",67130,79100,2]
[91714,91714,"Documentos vendidos o descontados",67140,79100,2]
[9172,91720,"Pérdida por instrumentos financieros derivados",67200,79100,2]
[9173,"","Intereses por préstamos y otras obligaciones"]
[91731,"","Préstamos de instituciones financieras y otras entidades"]
[91731,91731,"Instituciones financieras",67311,79100,2]
[91731,91731,"Otras entidades",67312,79100,2]
[91732,91732,"Contratos de arrendamiento financiero",67320,79100,2]
[91733,91733,"Otros instrumentos financieros por pagar",67330,79100,2]
[91734,91734,"Documentos vendidos o descontados",67340,79100,2]
[91735,91735,"Obligaciones emitidas",67350,79100,2]
[91736,91736,"Obligaciones comerciales",67360,79100,2]
[91737,91737,"Obligaciones tributarias",67370,79100,2]
[9174,"","Gastos en operaciones de factoraje (factoring)"]
[91741,91741,"Gastos por menor valor",67410,79100,2]
[9175,91750,"Descuentos concedidos por pronto pago",67500,79100,2]
[9176,91760,"Diferencia de cambio",67600,79100,2]
[9177,"","Pérdida por medición de activos y pasivos financieros al valor razonable"]
[91771,91771,"Inversiones para negociación",67710,79100,2]
[91772,91772,"Inversiones disponibles para la venta",67720,79100,2]
[91773,91773,"Otros",67730,79100,2]
[9178,"","Participación en resultados de entidades relacionadas"]
[91781,91781,"Participación en los resultados de subsidiarias y asociadas bajo el método del valor patrimonial",67810,79100,2]
[91782,91782,"Participaciones en negocios conjuntos",67820,79100,2]
[9179,"","Otros gastos financieros"]
[91791,91791,"Primas por opciones",67910,79100,2]
[91792,91792,"Gastos financieros en medición a valor descontado",67920,79100,2]
[918,"","VALUACIÓN Y DETERIORO DE ACTIVOS Y PROVISIONES"]
[9181,"","Depreciación"]
[91811,"","Depreciación de inversiones inmobiliarias"]
[91811,91811,"Edificaciones - Costo",68111,79100,2]
[91811,91811,"Edificaciones - Revaluación",68112,79100,2]
[91811,91811,"Edificaciones – Costo de financiación",68113,79100,2]
[91812,"","Depreciación de activos adquiridos en arrendamiento financiero – Inversiones inmobiliarias"]
[91812,91812,"Edificaciones",68121,79100,2]
[91813,"","Depreciación de activos adquiridos en arrendamiento financiero - Inmuebles, maquinaria y equipo"]
[91813,91813,"Edificaciones",68131,79100,2]
[91813,91813,"Maquinarias y equipos de explotación",68132,79100,2]
[91813,91813,"Equipo de transporte",68133,79100,2]
[91813,91813,"Equipos diversos",68134,79100,2]
[91814,"","Depreciación de inmuebles, maquinaria y equipo – Costo"]
[91814,91814,"Edificaciones",68141,79100,2]
[91814,91814,"Maquinarias y equipos de explotación",68142,79100,2]
[91814,91814,"Equipo de transporte",68143,79100,2]
[91814,91814,"Muebles y enseres",68144,79100,2]
[91814,91814,"Equipos diversos",68145,79100,2]
[91814,91814,"Herramientas y unidades de reemplazo",68146,79100,2]
[91815,"","Depreciación de inmuebles, maquinaria y equipo – Revaluación"]
[91815,91815,"Edificaciones",68151,79100,2]
[91815,91815,"Maquinarias y equipos de explotación",68152,79100,2]
[91815,91815,"Equipo de transporte",68153,79100,2]
[91815,91815,"Muebles y enseres",68154,79100,2]
[91815,91815,"Equipos diversos",68155,79100,2]
[91815,91815,"Herramientas y unidades de reemplazo",68156,79100,2]
[91816,"","Depreciación de inmuebles, maquinaria y equipo – Costos de financiación"]
[91816,91816,"Edificaciones",68161,79100,2]
[91816,91816,"Maquinarias y equipos de explotación",68162,79100,2]
[91817,"","Depreciación de activos biológicos en producción – Costo"]
[91817,91817,"Activos biológicos de origen animal",68171,79100,2]
[91817,91817,"Activos biológicos de origen vegetal",68172,79100,2]
[91818,"","Depreciación de activos biológicos en producción – Costo de financiación"]
[91818,91818,"Activos biológicos de origen animal",68181,79100,2]
[91818,91818,"Activos biológicos de origen vegetal",68182,79100,2]
[9182,"","Amortización de intangibles"]
[91821,"","Amortización de intangibles - Costo"]
[91821,91821,"Concesiones, licencias y otros derechos",68211,79100,2]
[91821,91821,"Patentes y propiedad industrial",68212,79100,2]
[91821,91821,"Programas de computadora (software)",68213,79100,2]
[91821,91821,"Costos de exploración y desarrollo",68214,79100,2]
[91821,91821,"Fórmulas, diseños y prototipos",68215,79100,2]
[91821,91821,"Otros activos intangibles",68219,79100,2]
[91822,"","Amortización de intangibles - Revaluación"]
[91822,91822,"Concesiones, licencias y otros derechos",68221,79100,2]
[91822,91822,"Patentes y propiedad industrial",68222,79100,2]
[91822,91822,"Programas de computadora (software)",68223,79100,2]
[91822,91822,"Costos de exploración y desarrollo",68224,79100,2]
[91822,91822,"Fórmulas, diseños y prototipos",68225,79100,2]
[91822,91822,"Otros activos intangibles",68229,79100,2]
[9183,"","Agotamiento"]
[91831,91831,"Agotamiento de recursos naturales adquiridos",68310,79100,2]
[9184,"","Valuación de activos"]
[91841,"","Estimación de cuentas de cobranza dudosa"]
[91841,91841,"Cuentas por cobrar comerciales – Terceros",68411,79100,2]
[91841,91841,"Cuentas por cobrar comerciales – Relacionadas",68412,79100,2]
[91841,91841,"Cuentas por cobrar al personal, a los accionistas (socios), directores y gerentes",68413,79100,2]
[91841,91841,"Cuentas por cobrar diversas – Terceros",68414,79100,2]
[91841,91841,"Cuentas por cobrar diversas – Relacionadas",68415,79100,2]
[91843,"","Desvalorización de inversiones mobiliarias"]
[91843,91843,"Inversiones a ser mantenidas hasta el vencimiento",68431,79100,2]
[91843,91843,"Instrumentos financieros representativos de derecho patrimonial",68432,79100,2]
[9185,"","Deterioro del valor de los activos"]
[91851,"","Desvalorización de inversiones inmobiliarias"]
[91851,91851,"Edificaciones",68511,79100,2]
[91852,"","Desvalorización de inmuebles maquinaria y equipo"]
[91852,91852,"Edificaciones",68521,79100,2]
[91852,91852,"Maquinarias y equipos de explotación",68522,79100,2]
[91852,91852,"Equipo de transporte",68523,79100,2]
[91852,91852,"Muebles y enseres",68524,79100,2]
[91852,91852,"Equipos diversos",68525,79100,2]
[91852,91852,"Herramientas y unidades de reemplazo",68526,79100,2]
[91853,"","Desvalorización de intangibles"]
[91853,91853,"Concesiones, licencias y otros derechos",68531,79100,2]
[91853,91853,"Patentes y propiedad industrial",68532,79100,2]
[91853,91853,"Programas de computadora (software)",68533,79100,2]
[91853,91853,"Costos de exploración y desarrollo",68534,79100,2]
[91853,91853,"Fórmulas, diseños y prototipos",68535,79100,2]
[91853,91853,"Otros activos intangibles",68536,79100,2]
[91853,91853,"Plusvalía mercantil",68537,79100,2]
[91854,"","Desvalorización de activos biológicos en producción"]
[91854,91854,"Activos biológicos de origen animal",68541,79100,2]
[91854,91854,"Activos biológicos de origen vegetal",68542,79100,2]
[9186,"","Provisiones"]
[91861,"","Provisión para litigios"]
[91861,91861,"Provisión para litigios – Costo",68611,79100,2]
[91861,91861,"Provisión para litigios – Actualización financiera",68612,79100,2]
[91862,"","Provisión por desmantelamiento, retiro o rehabilitación del inmovilizado"]
[91862,91862,"Provisión por desmantelamiento, retiro o rehabilitación del inmovilizado – Costo",68621,79100,2]
[91862,91862,"Provisión por desmantelamiento, retiro o rehabilitación del inmovilizado – Actualización financiera",68622,79100,2]
[91863,91863,"Provisión para reestructuraciones",68630,79100,2]
[91864,"","Provisión para protección y remediación del medio ambiente"]
[91864,91864,"Provisión para protección y remediación del medio ambiente – Costo",68641,79100,2]
[91864,91864,"Provisión para protección y remediación del medio ambiente – Actualización financiera",68642,79100,2]
[91866,"","Provisión para garantías"]
[91866,91866,"Provisión para garantías – Costo",68661,79100,2]
[91866,91866,"Provisión para garantías – Actualización financiera",68662,79100,2]
[91869,91869,"Otras provisiones",68690,79100,2]
[94,null,"GASTOS DE ADMINISTRACIÓN"]
[940,"","COMPRAS"]
[9401,"","Mercaderías"]
[94011,94011,"Mercaderías manufacturadas",60110,79100,2]
[94012,94012,"Mercaderías de extracción",60120,79100,2]
[94013,94013,"Mercaderías agropecuarias y piscícolas",60130,79100,2]
[94014,94014,"Mercaderías inmuebles",60140,79100,2]
[94018,94018,"Otras mercaderías",60180,79100,2]
[9402,"","Materias primas"]
[94021,94021,"Materias primas para productos manufacturados",60210,79100,2]
[94022,94022,"Materias primas para productos de extracción",60220,79100,2]
[94023,94023,"Materias primas para productos agropecuarios y piscícolas",60230,79100,2]
[94024,94024,"Materias primas para productos inmuebles",60240,79100,2]
[9403,"","Materiales auxiliares, suministros y repuestos"]
[94031,94031,"Materiales auxiliares",60310,79100,2]
[94032,94032,"Suministros",60320,79100,2]
[94033,94033,"Repuestos",60330,79100,2]
[9404,"","Envases y embalajes"]
[94041,94041,"Envases",60410,79100,2]
[94042,94042,"Embalajes",60420,79100,2]
[9409,"","Costos vinculados con las compras"]
[94091,"","Costos vinculados con las compras de mercaderías"]
[94091,94091,"Transporte",60911,79100,2]
[94091,94091,"Seguros",60912,79100,2]
[94091,94091,"Derechos aduaneros",60913,79100,2]
[94091,94091,"Comisiones",60914,79100,2]
[94091,94091,"Otros costos vinculados con las compras de mercaderías",60919,79100,2]
[94092,"","Costos vinculados con las compras de materias primas"]
[94092,94092,"Transporte",60921,79100,2]
[94092,94092,"Seguros",60922,79100,2]
[94092,94092,"Derechos aduaneros",60923,79100,2]
[94092,94092,"Comisiones",60924,79100,2]
[94092,94092,"Otros costos vinculados con las compras de materias primas",60925,79100,2]
[94093,"","Costos vinculados con las compras de materiales, suministros y repuestos"]
[94093,94093,"Transporte",60931,79100,2]
[94093,94093,"Seguros",60932,79100,2]
[94093,94093,"Derechos aduaneros",60933,79100,2]
[94093,94093,"Comisiones",60934,79100,2]
[94093,94093,"Otros costos vinculados con las compras de materiales, suministros y repuestos",60935,79100,2]
[94094,"","Costos vinculados con las compras de envases y embalajes"]
[94094,94094,"Transporte",60941,79100,2]
[94094,94094,"Seguros",60942,79100,2]
[94094,94094,"Derechos aduaneros",60943,79100,2]
[94094,94094,"Comisiones",60944,79100,2]
[94094,94094,"Otros costos vinculados con las compras de envases y embalajes",60945,79100,2]
[941,"","VARIACIÓN DE EXISTENCIAS"]
[9411,"","Mercaderías"]
[94111,94111,"Mercaderías manufacturadas",61110,79100,2]
[94112,94112,"Mercaderías de extracción",61120,79100,2]
[94113,94113,"Mercaderías agropecuarias y piscícolas",61130,79100,2]
[94114,94114,"Mercaderías inmuebles",61140,79100,2]
[94115,94115,"Otras mercaderías",61150,79100,2]
[9412,"","Materias primas"]
[94121,94121,"Materias primas para productos manufacturados",61210,79100,2]
[94122,94122,"Materias primas para productos de extracción",61220,79100,2]
[94123,94123,"Materias primas para productos agropecuarios y piscícolas",61230,79100,2]
[94124,94124,"Materias primas para productos inmuebles",61240,79100,2]
[9413,"","Materiales auxiliares, suministros y repuestos"]
[94131,94131,"Materiales auxiliares",61310,79100,2]
[94132,94132,"Suministros",61320,79100,2]
[94133,94133,"Repuestos",61330,79100,2]
[9414,"","Envases y embalajes"]
[94141,94141,"Envases",61410,79100,2]
[94142,94142,"Embalajes",61420,79100,2]
[942,"","GASTOS DE PERSONAL, DIRECTORES Y GERENTES"]
[9421,"","Remuneraciones"]
[94211,94211,"Sueldos y salarios",62110,79100,2]
[94212,94212,"Comisiones",62120,79100,2]
[94213,94213,"Remuneraciones en especie",62130,79100,2]
[94214,94214,"Gratificaciones",62140,79100,2]
[94215,94215,"Vacaciones",62150,79100,2]
[94220,94220,"Otras remuneraciones",62200,79100,2]
[94230,94230,"Indemnizaciones al personal",62300,79100,2]
[94240,94240,"Capacitación",62400,79100,2]
[94250,94250,"Atención al personal",62500,79100,2]
[94260,94260,"Gerentes",62600,79100,2]
[9427,"","Seguridad, previsión social y otras contribuciones"]
[94271,94271,"Régimen de prestaciones de salud",62710,79100,2]
[94272,94272,"Régimen de pensiones",62720,79100,2]
[94273,94273,"Seguro complementario de trabajo de riesgo, accidentes de trabajo y enfermedades profesionales",62730,79100,2]
[94274,94274,"Seguro de vida",62740,79100,2]
[94275,94275,"Seguros particulares de prestaciones de salud - EPS y otros particulares",62750,79100,2]
[94276,94276,"Caja de beneficios de seguridad social del pescador",62760,79100,2]
[94277,94277,"Contribuciones al SENCICO y el SENATI",62770,79100,2]
[94280,94280,"Retribuciones al directorio",62800,79100,2]
[9429,"","Beneficios sociales de los trabajadores"]
[94291,94291,"Compensación por tiempo de servicio",62910,79100,2]
[94292,94292,"Pensiones y jubilaciones",62920,79100,2]
[94293,94293,"Otros beneficios post-empleo",62930,79100,2]
[943,"","GASTOS DE SERVICIOS PRESTADOS POR TERCEROS"]
[9431,"","Transporte, correos y gastos de viaje"]
[94311,"","Transporte"]
[94311,94311,"De carga",63111,79100,2]
[94311,94311,"De pasajeros",63112,79100,2]
[94312,94312,"Correos",63120,79100,2]
[94313,94313,"Alojamiento",63130,79100,2]
[94314,94314,"Alimentación",63140,79100,2]
[94315,94315,"Otros gastos de viaje",63150,79100,2]
[9432,"","Asesoría y consultoría"]
[94321,94321,"Administrativa",63210,79100,2]
[94322,94322,"Legal y tributaria",63220,79100,2]
[94323,94323,"Auditoría y contable",63230,79100,2]
[94324,94324,"Mercadotecnia",63240,79100,2]
[94325,94325,"Medioambiental",63250,79100,2]
[94326,94326,"Investigación y desarrollo",63260,79100,2]
[94327,94327,"Producción",63270,79100,2]
[94329,94329,"Otros",63290,79100,2]
[94330,94330,"Producción encargada a terceros",63300,79100,2]
[9434,"","Mantenimiento y reparaciones"]
[94341,94341,"Inversión inmobiliaria",63410,79100,2]
[94342,94342,"Activos adquiridos en arrendamiento financiero",63420,79100,2]
[94343,94343,"Inmuebles, maquinaria y equipo",63430,79100,2]
[94344,94344,"Intangibles",63440,79100,2]
[94345,94345,"Activos biológicos",63450,79100,2]
[9435,"","Alquileres"]
[94351,94351,"Terrenos",63510,79100,2]
[94352,94352,"Edificaciones",63520,79100,2]
[94353,94353,"Maquinarias y equipos de explotación",63530,79100,2]
[94354,94354,"Equipo de transporte",63540,79100,2]
[94356,94356,"Equipos diversos",63560,79100,2]
[9436,"","Servicios básicos"]
[94361,94361,"Energía eléctrica",63610,79100,2]
[94362,94362,"Gas",63620,79100,2]
[94363,94363,"Agua",63630,79100,2]
[94364,94364,"Teléfono",63640,79100,2]
[94365,94365,"Internet",63650,79100,2]
[94366,94366,"Radio",63660,79100,2]
[94367,94367,"Cable",63670,79100,2]
[9437,"","Publicidad, publicaciones, relaciones públicas"]
[94371,94371,"Publicidad",63710,79100,2]
[94372,94372,"Publicaciones",63720,79100,2]
[94372,94372,"Relaciones públicas",63730,79100,2]
[94380,94380,"Servicios de contratistas",63800,79100,2]
[9439,"","Otros servicios prestados por terceros"]
[94391,94391,"Gastos bancarios",63910,79100,2]
[94392,94392,"Gastos de laboratorio",63920,79100,2]
[944,"","GASTOS POR TRIBUTOS"]
[9441,"","Gobierno central"]
[94411,94411,"Impuesto general a las ventas y selectivo al consumo",64110,79100,2]
[94412,94412,"Impuesto a las transacciones financieras",64120,79100,2]
[94413,94413,"Impuesto temporal a los activos netos",64130,79100,2]
[94414,94414,"Impuesto a los juegos de casino y máquinas tragamonedas",64140,79100,2]
[94415,94415,"Regalías mineras",64150,79100,2]
[94416,94416,"Cánones",64160,79100,2]
[94419,94419,"Otros",64190,79100,2]
[94420,94420,"Gobierno regional",64200,79100,2]
[9443,"","Gobierno local"]
[94431,94431,"Impuesto predial",64310,79100,2]
[94432,94432,"Arbitrios municipales y seguridad ciudadana",64320,79100,2]
[94433,94433,"Impuesto al patrimonio vehicular",64330,79100,2]
[94434,94434,"Licencia de funcionamiento",64340,79100,2]
[94439,94439,"Otros",64390,79100,2]
[9444,"","Otros gastos por tributos"]
[94441,94441,"Contribución al SENATI",64410,79100,2]
[94442,94442,"Contribución al SENCICO",64420,79100,2]
[94443,94443,"Otros",64430,79100,2]
[945,"","OTROS GASTOS DE GESTIÓN"]
[94510,94510,"Seguros",65100,79100,2]
[94520,94520,"Regalías",65200,79100,2]
[94530,94530,"Suscripciones",65300,79100,2]
[94540,94540,"Licencias y derechos de vigencia",65400,79100,2]
[9455,"","Costo neto de enajenación de activos inmovilizados y operaciones discontinuadas"]
[94551,"","Costo neto de enajenación de activos inmovilizados"]
[94551,94551,"Inversiones inmobiliarias",65511,79100,2]
[94551,94551,"Activos adquiridos en arrendamiento financiero",65512,79100,2]
[94551,94551,"Inmuebles, maquinaria y equipo",65513,79100,2]
[94551,94551,"Intangibles",65514,79100,2]
[94551,94551,"Activos biológicos",65515,79100,2]
[94552,"","Operaciones discontinuadas - Abandono de activos"]
[94552,94552,"Inversiones inmobiliarias",65521,79100,2]
[94552,94552,"Activos adquiridos en arrendamiento financiero",65522,79100,2]
[94552,94552,"Inmuebles, maquinaria y equipo",65523,79100,2]
[94552,94552,"Intangibles",65524,79100,2]
[94552,94552,"Activos biológicos",65525,79100,2]
[94560,94560,"Suministros",65600,79100,2]
[94580,94580,"Gestión medioambiental",65800,79100,2]
[9459,"","Otros gastos de gestión"]
[94591,94591,"Donaciones",65910,79100,2]
[94592,94592,"Sanciones administrativas",65920,79100,2]
[947,"","GASTOS FINANCIEROS"]
[9471,"","Gastos en operaciones de endeudamiento y otros"]
[94711,94711,"Préstamos de instituciones financieras y otras entidades",67110,79100,2]
[94712,94712,"Contratos de arrendamiento financiero",67120,79100,2]
[94713,94713,"Emisión y colocación de instrumentos representativos de deuda y patrimonio",67130,79100,2]
[94714,94714,"Documentos vendidos o descontados",67140,79100,2]
[9472,94720,"Pérdida por instrumentos financieros derivados",67200,79100,2]
[9473,"","Intereses por préstamos y otras obligaciones"]
[94731,"","Préstamos de instituciones financieras y otras entidades"]
[94731,94731,"Instituciones financieras",67311,79100,2]
[94731,94731,"Otras entidades",67312,79100,2]
[94732,94732,"Contratos de arrendamiento financiero",67320,79100,2]
[94733,94733,"Otros instrumentos financieros por pagar",67330,79100,2]
[94734,94734,"Documentos vendidos o descontados",67340,79100,2]
[94735,94735,"Obligaciones emitidas",67350,79100,2]
[94736,94736,"Obligaciones comerciales",67360,79100,2]
[94737,94737,"Obligaciones tributarias",67370,79100,2]
[9474,"","Gastos en operaciones de factoraje (factoring)"]
[94741,94741,"Gastos por menor valor",67410,79100,2]
[9475,94750,"Descuentos concedidos por pronto pago",67500,79100,2]
[9476,94760,"Diferencia de cambio",67600,79100,2]
[9477,"","Pérdida por medición de activos y pasivos financieros al valor razonable"]
[94771,94771,"Inversiones para negociación",67710,79100,2]
[94772,94772,"Inversiones disponibles para la venta",67720,79100,2]
[94773,94773,"Otros",67730,79100,2]
[9478,"","Participación en resultados de entidades relacionadas"]
[94781,94781,"Participación en los resultados de subsidiarias y asociadas bajo el método del valor patrimonial",67810,79100,2]
[94782,94782,"Participaciones en negocios conjuntos",67820,79100,2]
[9479,"","Otros gastos financieros"]
[94791,94791,"Primas por opciones",67910,79100,2]
[94792,94792,"Gastos financieros en medición a valor descontado",67920,79100,2]
[948,"","VALUACIÓN Y DETERIORO DE ACTIVOS Y PROVISIONES"]
[9481,"","Depreciación"]
[94811,"","Depreciación de inversiones inmobiliarias"]
[94811,94811,"Edificaciones - Costo",68111,79100,2]
[94811,94811,"Edificaciones - Revaluación",68112,79100,2]
[94811,94811,"Edificaciones – Costo de financiación",68113,79100,2]
[94812,"","Depreciación de activos adquiridos en arrendamiento financiero – Inversiones inmobiliarias"]
[94812,94812,"Edificaciones",68121,79100,2]
[94813,"","Depreciación de activos adquiridos en arrendamiento financiero - Inmuebles, maquinaria y equipo"]
[94813,94813,"Edificaciones",68131,79100,2]
[94813,94813,"Maquinarias y equipos de explotación",68132,79100,2]
[94813,94813,"Equipo de transporte",68133,79100,2]
[94813,94813,"Equipos diversos",68134,79100,2]
[94814,"","Depreciación de inmuebles, maquinaria y equipo – Costo"]
[94814,94814,"Edificaciones",68141,79100,2]
[94814,94814,"Maquinarias y equipos de explotación",68142,79100,2]
[94814,94814,"Equipo de transporte",68143,79100,2]
[94814,94814,"Muebles y enseres",68144,79100,2]
[94814,94814,"Equipos diversos",68145,79100,2]
[94814,94814,"Herramientas y unidades de reemplazo",68146,79100,2]
[94815,"","Depreciación de inmuebles, maquinaria y equipo – Revaluación"]
[94815,94815,"Edificaciones",68151,79100,2]
[94815,94815,"Maquinarias y equipos de explotación",68152,79100,2]
[94815,94815,"Equipo de transporte",68153,79100,2]
[94815,94815,"Muebles y enseres",68154,79100,2]
[94815,94815,"Equipos diversos",68155,79100,2]
[94815,94815,"Herramientas y unidades de reemplazo",68156,79100,2]
[94816,"","Depreciación de inmuebles, maquinaria y equipo – Costos de financiación"]
[94816,94816,"Edificaciones",68161,79100,2]
[94816,94816,"Maquinarias y equipos de explotación",68162,79100,2]
[94817,"","Depreciación de activos biológicos en producción – Costo"]
[94817,94817,"Activos biológicos de origen animal",68171,79100,2]
[94817,94817,"Activos biológicos de origen vegetal",68172,79100,2]
[94818,"","Depreciación de activos biológicos en producción – Costo de financiación"]
[94818,94818,"Activos biológicos de origen animal",68181,79100,2]
[94818,94818,"Activos biológicos de origen vegetal",68182,79100,2]
[9482,"","Amortización de intangibles"]
[94821,"","Amortización de intangibles - Costo"]
[94821,94821,"Concesiones, licencias y otros derechos",68211,79100,2]
[94821,94821,"Patentes y propiedad industrial",68212,79100,2]
[94821,94821,"Programas de computadora (software)",68213,79100,2]
[94821,94821,"Costos de exploración y desarrollo",68214,79100,2]
[94821,94821,"Fórmulas, diseños y prototipos",68215,79100,2]
[94821,94821,"Otros activos intangibles",68219,79100,2]
[94822,"","Amortización de intangibles - Revaluación"]
[94822,94822,"Concesiones, licencias y otros derechos",68221,79100,2]
[94822,94822,"Patentes y propiedad industrial",68222,79100,2]
[94822,94822,"Programas de computadora (software)",68223,79100,2]
[94822,94822,"Costos de exploración y desarrollo",68224,79100,2]
[94822,94822,"Fórmulas, diseños y prototipos",68225,79100,2]
[94822,94822,"Otros activos intangibles",68229,79100,2]
[9483,"","Agotamiento"]
[94831,94831,"Agotamiento de recursos naturales adquiridos",68310,79100,2]
[9484,"","Valuación de activos"]
[94841,"","Estimación de cuentas de cobranza dudosa"]
[94841,94841,"Cuentas por cobrar comerciales – Terceros",68411,79100,2]
[94841,94841,"Cuentas por cobrar comerciales – Relacionadas",68412,79100,2]
[94841,94841,"Cuentas por cobrar al personal, a los accionistas (socios), directores y gerentes",68413,79100,2]
[94841,94841,"Cuentas por cobrar diversas – Terceros",68414,79100,2]
[94841,94841,"Cuentas por cobrar diversas – Relacionadas",68415,79100,2]
[94843,"","Desvalorización de inversiones mobiliarias"]
[94843,94843,"Inversiones a ser mantenidas hasta el vencimiento",68431,79100,2]
[94843,94843,"Instrumentos financieros representativos de derecho patrimonial",68432,79100,2]
[9485,"","Deterioro del valor de los activos"]
[94851,"","Desvalorización de inversiones inmobiliarias"]
[94851,94851,"Edificaciones",68511,79100,2]
[94852,"","Desvalorización de inmuebles maquinaria y equipo"]
[94852,94852,"Edificaciones",68521,79100,2]
[94852,94852,"Maquinarias y equipos de explotación",68522,79100,2]
[94852,94852,"Equipo de transporte",68523,79100,2]
[94852,94852,"Muebles y enseres",68524,79100,2]
[94852,94852,"Equipos diversos",68525,79100,2]
[94852,94852,"Herramientas y unidades de reemplazo",68526,79100,2]
[94853,"","Desvalorización de intangibles"]
[94853,94853,"Concesiones, licencias y otros derechos",68531,79100,2]
[94853,94853,"Patentes y propiedad industrial",68532,79100,2]
[94853,94853,"Programas de computadora (software)",68533,79100,2]
[94853,94853,"Costos de exploración y desarrollo",68534,79100,2]
[94853,94853,"Fórmulas, diseños y prototipos",68535,79100,2]
[94853,94853,"Otros activos intangibles",68536,79100,2]
[94853,94853,"Plusvalía mercantil",68537,79100,2]
[94854,"","Desvalorización de activos biológicos en producción"]
[94854,94854,"Activos biológicos de origen animal",68541,79100,2]
[94854,94854,"Activos biológicos de origen vegetal",68542,79100,2]
[9486,"","Provisiones"]
[94861,"","Provisión para litigios"]
[94861,94861,"Provisión para litigios – Costo",68611,79100,2]
[94861,94861,"Provisión para litigios – Actualización financiera",68612,79100,2]
[94862,"","Provisión por desmantelamiento, retiro o rehabilitación del inmovilizado"]
[94862,94862,"Provisión por desmantelamiento, retiro o rehabilitación del inmovilizado – Costo",68621,79100,2]
[94862,94862,"Provisión por desmantelamiento, retiro o rehabilitación del inmovilizado – Actualización financiera",68622,79100,2]
[94863,94863,"Provisión para reestructuraciones",68630,79100,2]
[94864,"","Provisión para protección y remediación del medio ambiente"]
[94864,94864,"Provisión para protección y remediación del medio ambiente – Costo",68641,79100,2]
[94864,94864,"Provisión para protección y remediación del medio ambiente – Actualización financiera",68642,79100,2]
[94866,"","Provisión para garantías"]
[94866,94866,"Provisión para garantías – Costo",68661,79100,2]
[94866,94866,"Provisión para garantías – Actualización financiera",68662,79100,2]
[94869,94869,"Otras provisiones",68690,79100,2]
[95,null,"GASTOS DE VENTA"]
[950,"","COMPRAS"]
[9501,"","Mercaderías"]
[95011,95011,"Mercaderías manufacturadas",60110,79100,2]
[95012,95012,"Mercaderías de extracción",60120,79100,2]
[95013,95013,"Mercaderías agropecuarias y piscícolas",60130,79100,2]
[95014,95014,"Mercaderías inmuebles",60140,79100,2]
[95018,95018,"Otras mercaderías",60180,79100,2]
[9502,"","Materias primas"]
[95021,95021,"Materias primas para productos manufacturados",60210,79100,2]
[95022,95022,"Materias primas para productos de extracción",60220,79100,2]
[95023,95023,"Materias primas para productos agropecuarios y piscícolas",60230,79100,2]
[95024,95024,"Materias primas para productos inmuebles",60240,79100,2]
[9503,"","Materiales auxiliares, suministros y repuestos"]
[95031,95031,"Materiales auxiliares",60310,79100,2]
[95032,95032,"Suministros",60320,79100,2]
[95033,95033,"Repuestos",60330,79100,2]
[9504,"","Envases y embalajes"]
[95041,95041,"Envases",60410,79100,2]
[95042,95042,"Embalajes",60420,79100,2]
[9509,"","Costos vinculados con las compras"]
[95091,"","Costos vinculados con las compras de mercaderías"]
[95091,95091,"Transporte",60911,79100,2]
[95091,95091,"Seguros",60912,79100,2]
[95091,95091,"Derechos aduaneros",60913,79100,2]
[95091,95091,"Comisiones",60914,79100,2]
[95091,95091,"Otros costos vinculados con las compras de mercaderías",60919,79100,2]
[95092,"","Costos vinculados con las compras de materias primas"]
[95092,95092,"Transporte",60921,79100,2]
[95092,95092,"Seguros",60922,79100,2]
[95092,95092,"Derechos aduaneros",60923,79100,2]
[95092,95092,"Comisiones",60924,79100,2]
[95092,95092,"Otros costos vinculados con las compras de materias primas",60925,79100,2]
[95093,"","Costos vinculados con las compras de materiales, suministros y repuestos"]
[95093,95093,"Transporte",60931,79100,2]
[95093,95093,"Seguros",60932,79100,2]
[95093,95093,"Derechos aduaneros",60933,79100,2]
[95093,95093,"Comisiones",60934,79100,2]
[95093,95093,"Otros costos vinculados con las compras de materiales, suministros y repuestos",60935,79100,2]
[95094,"","Costos vinculados con las compras de envases y embalajes"]
[95094,95094,"Transporte",60941,79100,2]
[95094,95094,"Seguros",60942,79100,2]
[95094,95094,"Derechos aduaneros",60943,79100,2]
[95094,95094,"Comisiones",60944,79100,2]
[95094,95094,"Otros costos vinculados con las compras de envases y embalajes",60945,79100,2]
[951,"","VARIACIÓN DE EXISTENCIAS"]
[9511,"","Mercaderías"]
[95111,95111,"Mercaderías manufacturadas",61110,79100,2]
[95112,95112,"Mercaderías de extracción",61120,79100,2]
[95113,95113,"Mercaderías agropecuarias y piscícolas",61130,79100,2]
[95114,95114,"Mercaderías inmuebles",61140,79100,2]
[95115,95115,"Otras mercaderías",61150,79100,2]
[9512,"","Materias primas"]
[95121,95121,"Materias primas para productos manufacturados",61210,79100,2]
[95122,95122,"Materias primas para productos de extracción",61220,79100,2]
[95123,95123,"Materias primas para productos agropecuarios y piscícolas",61230,79100,2]
[95124,95124,"Materias primas para productos inmuebles",61240,79100,2]
[9513,"","Materiales auxiliares, suministros y repuestos"]
[95131,95131,"Materiales auxiliares",61310,79100,2]
[95132,95132,"Suministros",61320,79100,2]
[95133,95133,"Repuestos",61330,79100,2]
[9514,"","Envases y embalajes"]
[95141,95141,"Envases",61410,79100,2]
[95142,95142,"Embalajes",61420,79100,2]
[952,"","GASTOS DE PERSONAL, DIRECTORES Y GERENTES"]
[9521,"","Remuneraciones"]
[95211,95211,"Sueldos y salarios",62110,79100,2]
[95212,95212,"Comisiones",62120,79100,2]
[95213,95213,"Remuneraciones en especie",62130,79100,2]
[95214,95214,"Gratificaciones",62140,79100,2]
[95215,95215,"Vacaciones",62150,79100,2]
[95220,95220,"Otras remuneraciones",62200,79100,2]
[95230,95230,"Indemnizaciones al personal",62300,79100,2]
[95240,95240,"Capacitación",62400,79100,2]
[95250,95250,"Atención al personal",62500,79100,2]
[95260,95260,"Gerentes",62600,79100,2]
[9527,"","Seguridad, previsión social y otras contribuciones"]
[95271,95271,"Régimen de prestaciones de salud",62710,79100,2]
[95272,95272,"Régimen de pensiones",62720,79100,2]
[95273,95273,"Seguro complementario de trabajo de riesgo, accidentes de trabajo y enfermedades profesionales",62730,79100,2]
[95274,95274,"Seguro de vida",62740,79100,2]
[95275,95275,"Seguros particulares de prestaciones de salud - EPS y otros particulares",62750,79100,2]
[95276,95276,"Caja de beneficios de seguridad social del pescador",62760,79100,2]
[95277,95277,"Contribuciones al SENCICO y el SENATI",62770,79100,2]
[95280,95280,"Retribuciones al directorio",62800,79100,2]
[9529,"","Beneficios sociales de los trabajadores"]
[95291,95291,"Compensación por tiempo de servicio",62910,79100,2]
[95292,95292,"Pensiones y jubilaciones",62920,79100,2]
[95293,95293,"Otros beneficios post-empleo",62930,79100,2]
[953,"","GASTOS DE SERVICIOS PRESTADOS POR TERCEROS"]
[9531,"","Transporte, correos y gastos de viaje"]
[95311,"","Transporte"]
[95311,95311,"De carga",63111,79100,2]
[95311,95311,"De pasajeros",63112,79100,2]
[95312,95312,"Correos",63120,79100,2]
[95313,95313,"Alojamiento",63130,79100,2]
[95314,95314,"Alimentación",63140,79100,2]
[95315,95315,"Otros gastos de viaje",63150,79100,2]
[9532,"","Asesoría y consultoría"]
[95321,95321,"Administrativa",63210,79100,2]
[95322,95322,"Legal y tributaria",63220,79100,2]
[95323,95323,"Auditoría y contable",63230,79100,2]
[95324,95324,"Mercadotecnia",63240,79100,2]
[95325,95325,"Medioambiental",63250,79100,2]
[95326,95326,"Investigación y desarrollo",63260,79100,2]
[95327,95327,"Producción",63270,79100,2]
[95329,95329,"Otros",63290,79100,2]
[95330,95330,"Producción encargada a terceros",63300,79100,2]
[9534,"","Mantenimiento y reparaciones"]
[95341,95341,"Inversión inmobiliaria",63410,79100,2]
[95342,95342,"Activos adquiridos en arrendamiento financiero",63420,79100,2]
[95343,95343,"Inmuebles, maquinaria y equipo",63430,79100,2]
[95344,95344,"Intangibles",63440,79100,2]
[95345,95345,"Activos biológicos",63450,79100,2]
[9535,"","Alquileres"]
[95351,95351,"Terrenos",63510,79100,2]
[95352,95352,"Edificaciones",63520,79100,2]
[95353,95353,"Maquinarias y equipos de explotación",63530,79100,2]
[95354,95354,"Equipo de transporte",63540,79100,2]
[95356,95356,"Equipos diversos",63560,79100,2]
[9536,"","Servicios básicos"]
[95361,95361,"Energía eléctrica",63610,79100,2]
[95362,95362,"Gas",63620,79100,2]
[95363,95363,"Agua",63630,79100,2]
[95364,95364,"Teléfono",63640,79100,2]
[95365,95365,"Internet",63650,79100,2]
[95366,95366,"Radio",63660,79100,2]
[95367,95367,"Cable",63670,79100,2]
[9537,"","Publicidad, publicaciones, relaciones públicas"]
[95371,95371,"Publicidad",63710,79100,2]
[95372,95372,"Publicaciones",63720,79100,2]
[95372,95372,"Relaciones públicas",63730,79100,2]
[95380,95380,"Servicios de contratistas",63800,79100,2]
[9539,"","Otros servicios prestados por terceros"]
[95391,95391,"Gastos bancarios",63910,79100,2]
[95392,95392,"Gastos de laboratorio",63920,79100,2]
[954,"","GASTOS POR TRIBUTOS"]
[9541,"","Gobierno central"]
[95411,95411,"Impuesto general a las ventas y selectivo al consumo",64110,79100,2]
[95412,95412,"Impuesto a las transacciones financieras",64120,79100,2]
[95413,95413,"Impuesto temporal a los activos netos",64130,79100,2]
[95414,95414,"Impuesto a los juegos de casino y máquinas tragamonedas",64140,79100,2]
[95415,95415,"Regalías mineras",64150,79100,2]
[95416,95416,"Cánones",64160,79100,2]
[95419,95419,"Otros",64190,79100,2]
[95420,95420,"Gobierno regional",64200,79100,2]
[9543,"","Gobierno local"]
[95431,95431,"Impuesto predial",64310,79100,2]
[95432,95432,"Arbitrios municipales y seguridad ciudadana",64320,79100,2]
[95433,95433,"Impuesto al patrimonio vehicular",64330,79100,2]
[95434,95434,"Licencia de funcionamiento",64340,79100,2]
[95439,95439,"Otros",64390,79100,2]
[9544,"","Otros gastos por tributos"]
[95441,95441,"Contribución al SENATI",64410,79100,2]
[95442,95442,"Contribución al SENCICO",64420,79100,2]
[95443,95443,"Otros",64430,79100,2]
[955,"","OTROS GASTOS DE GESTIÓN"]
[95510,95510,"Seguros",65100,79100,2]
[95520,95520,"Regalías",65200,79100,2]
[95530,95530,"Suscripciones",65300,79100,2]
[95540,95540,"Licencias y derechos de vigencia",65400,79100,2]
[9555,"","Costo neto de enajenación de activos inmovilizados y operaciones discontinuadas"]
[95551,"","Costo neto de enajenación de activos inmovilizados"]
[95551,95551,"Inversiones inmobiliarias",65511,79100,2]
[95551,95551,"Activos adquiridos en arrendamiento financiero",65512,79100,2]
[95551,95551,"Inmuebles, maquinaria y equipo",65513,79100,2]
[95551,95551,"Intangibles",65514,79100,2]
[95551,95551,"Activos biológicos",65515,79100,2]
[95552,"","Operaciones discontinuadas - Abandono de activos"]
[95552,95552,"Inversiones inmobiliarias",65521,79100,2]
[95552,95552,"Activos adquiridos en arrendamiento financiero",65522,79100,2]
[95552,95552,"Inmuebles, maquinaria y equipo",65523,79100,2]
[95552,95552,"Intangibles",65524,79100,2]
[95552,95552,"Activos biológicos",65525,79100,2]
[95560,95560,"Suministros",65600,79100,2]
[95580,95580,"Gestión medioambiental",65800,79100,2]
[9559,"","Otros gastos de gestión"]
[95591,95591,"Donaciones",65910,79100,2]
[95592,95592,"Sanciones administrativas",65920,79100,2]
[957,"","GASTOS FINANCIEROS"]
[9571,"","Gastos en operaciones de endeudamiento y otros"]
[95711,95711,"Préstamos de instituciones financieras y otras entidades",67110,79100,2]
[95712,95712,"Contratos de arrendamiento financiero",67120,79100,2]
[95713,95713,"Emisión y colocación de instrumentos representativos de deuda y patrimonio",67130,79100,2]
[95714,95714,"Documentos vendidos o descontados",67140,79100,2]
[9572,95720,"Pérdida por instrumentos financieros derivados",67200,79100,2]
[9573,"","Intereses por préstamos y otras obligaciones"]
[95731,"","Préstamos de instituciones financieras y otras entidades"]
[95731,95731,"Instituciones financieras",67311,79100,2]
[95731,95731,"Otras entidades",67312,79100,2]
[95732,95732,"Contratos de arrendamiento financiero",67320,79100,2]
[95733,95733,"Otros instrumentos financieros por pagar",67330,79100,2]
[95734,95734,"Documentos vendidos o descontados",67340,79100,2]
[95735,95735,"Obligaciones emitidas",67350,79100,2]
[95736,95736,"Obligaciones comerciales",67360,79100,2]
[95737,95737,"Obligaciones tributarias",67370,79100,2]
[9574,"","Gastos en operaciones de factoraje (factoring)"]
[95741,95741,"Gastos por menor valor",67410,79100,2]
[9575,95750,"Descuentos concedidos por pronto pago",67500,79100,2]
[9576,95760,"Diferencia de cambio",67600,79100,2]
[9577,"","Pérdida por medición de activos y pasivos financieros al valor razonable"]
[95771,95771,"Inversiones para negociación",67710,79100,2]
[95772,95772,"Inversiones disponibles para la venta",67720,79100,2]
[95773,95773,"Otros",67730,79100,2]
[9578,"","Participación en resultados de entidades relacionadas"]
[95781,95781,"Participación en los resultados de subsidiarias y asociadas bajo el método del valor patrimonial",67810,79100,2]
[95782,95782,"Participaciones en negocios conjuntos",67820,79100,2]
[9579,"","Otros gastos financieros"]
[95791,95791,"Primas por opciones",67910,79100,2]
[95792,95792,"Gastos financieros en medición a valor descontado",67920,79100,2]
[958,"","VALUACIÓN Y DETERIORO DE ACTIVOS Y PROVISIONES"]
[9581,"","Depreciación"]
[95811,"","Depreciación de inversiones inmobiliarias"]
[95811,95811,"Edificaciones - Costo",68111,79100,2]
[95811,95811,"Edificaciones - Revaluación",68112,79100,2]
[95811,95811,"Edificaciones – Costo de financiación",68113,79100,2]
[95812,"","Depreciación de activos adquiridos en arrendamiento financiero – Inversiones inmobiliarias"]
[95812,95812,"Edificaciones",68121,79100,2]
[95813,"","Depreciación de activos adquiridos en arrendamiento financiero - Inmuebles, maquinaria y equipo"]
[95813,95813,"Edificaciones",68131,79100,2]
[95813,95813,"Maquinarias y equipos de explotación",68132,79100,2]
[95813,95813,"Equipo de transporte",68133,79100,2]
[95813,95813,"Equipos diversos",68134,79100,2]
[95814,"","Depreciación de inmuebles, maquinaria y equipo – Costo"]
[95814,95814,"Edificaciones",68141,79100,2]
[95814,95814,"Maquinarias y equipos de explotación",68142,79100,2]
[95814,95814,"Equipo de transporte",68143,79100,2]
[95814,95814,"Muebles y enseres",68144,79100,2]
[95814,95814,"Equipos diversos",68145,79100,2]
[95814,95814,"Herramientas y unidades de reemplazo",68146,79100,2]
[95815,"","Depreciación de inmuebles, maquinaria y equipo – Revaluación"]
[95815,95815,"Edificaciones",68151,79100,2]
[95815,95815,"Maquinarias y equipos de explotación",68152,79100,2]
[95815,95815,"Equipo de transporte",68153,79100,2]
[95815,95815,"Muebles y enseres",68154,79100,2]
[95815,95815,"Equipos diversos",68155,79100,2]
[95815,95815,"Herramientas y unidades de reemplazo",68156,79100,2]
[95816,"","Depreciación de inmuebles, maquinaria y equipo – Costos de financiación"]
[95816,95816,"Edificaciones",68161,79100,2]
[95816,95816,"Maquinarias y equipos de explotación",68162,79100,2]
[95817,"","Depreciación de activos biológicos en producción – Costo"]
[95817,95817,"Activos biológicos de origen animal",68171,79100,2]
[95817,95817,"Activos biológicos de origen vegetal",68172,79100,2]
[95818,"","Depreciación de activos biológicos en producción – Costo de financiación"]
[95818,95818,"Activos biológicos de origen animal",68181,79100,2]
[95818,95818,"Activos biológicos de origen vegetal",68182,79100,2]
[9582,"","Amortización de intangibles"]
[95821,"","Amortización de intangibles - Costo"]
[95821,95821,"Concesiones, licencias y otros derechos",68211,79100,2]
[95821,95821,"Patentes y propiedad industrial",68212,79100,2]
[95821,95821,"Programas de computadora (software)",68213,79100,2]
[95821,95821,"Costos de exploración y desarrollo",68214,79100,2]
[95821,95821,"Fórmulas, diseños y prototipos",68215,79100,2]
[95821,95821,"Otros activos intangibles",68219,79100,2]
[95822,"","Amortización de intangibles - Revaluación"]
[95822,95822,"Concesiones, licencias y otros derechos",68221,79100,2]
[95822,95822,"Patentes y propiedad industrial",68222,79100,2]
[95822,95822,"Programas de computadora (software)",68223,79100,2]
[95822,95822,"Costos de exploración y desarrollo",68224,79100,2]
[95822,95822,"Fórmulas, diseños y prototipos",68225,79100,2]
[95822,95822,"Otros activos intangibles",68229,79100,2]
[9583,"","Agotamiento"]
[95831,95831,"Agotamiento de recursos naturales adquiridos",68310,79100,2]
[9584,"","Valuación de activos"]
[95841,"","Estimación de cuentas de cobranza dudosa"]
[95841,95841,"Cuentas por cobrar comerciales – Terceros",68411,79100,2]
[95841,95841,"Cuentas por cobrar comerciales – Relacionadas",68412,79100,2]
[95841,95841,"Cuentas por cobrar al personal, a los accionistas (socios), directores y gerentes",68413,79100,2]
[95841,95841,"Cuentas por cobrar diversas – Terceros",68414,79100,2]
[95841,95841,"Cuentas por cobrar diversas – Relacionadas",68415,79100,2]
[95843,"","Desvalorización de inversiones mobiliarias"]
[95843,95843,"Inversiones a ser mantenidas hasta el vencimiento",68431,79100,2]
[95843,95843,"Instrumentos financieros representativos de derecho patrimonial",68432,79100,2]
[9585,"","Deterioro del valor de los activos"]
[95851,"","Desvalorización de inversiones inmobiliarias"]
[95851,95851,"Edificaciones",68511,79100,2]
[95852,"","Desvalorización de inmuebles maquinaria y equipo"]
[95852,95852,"Edificaciones",68521,79100,2]
[95852,95852,"Maquinarias y equipos de explotación",68522,79100,2]
[95852,95852,"Equipo de transporte",68523,79100,2]
[95852,95852,"Muebles y enseres",68524,79100,2]
[95852,95852,"Equipos diversos",68525,79100,2]
[95852,95852,"Herramientas y unidades de reemplazo",68526,79100,2]
[95853,"","Desvalorización de intangibles"]
[95853,95853,"Concesiones, licencias y otros derechos",68531,79100,2]
[95853,95853,"Patentes y propiedad industrial",68532,79100,2]
[95853,95853,"Programas de computadora (software)",68533,79100,2]
[95853,95853,"Costos de exploración y desarrollo",68534,79100,2]
[95853,95853,"Fórmulas, diseños y prototipos",68535,79100,2]
[95853,95853,"Otros activos intangibles",68536,79100,2]
[95853,95853,"Plusvalía mercantil",68537,79100,2]
[95854,"","Desvalorización de activos biológicos en producción"]
[95854,95854,"Activos biológicos de origen animal",68541,79100,2]
[95854,95854,"Activos biológicos de origen vegetal",68542,79100,2]
[9586,"","Provisiones"]
[95861,"","Provisión para litigios"]
[95861,95861,"Provisión para litigios – Costo",68611,79100,2]
[95861,95861,"Provisión para litigios – Actualización financiera",68612,79100,2]
[95862,"","Provisión por desmantelamiento, retiro o rehabilitación del inmovilizado"]
[95862,95862,"Provisión por desmantelamiento, retiro o rehabilitación del inmovilizado – Costo",68621,79100,2]
[95862,95862,"Provisión por desmantelamiento, retiro o rehabilitación del inmovilizado – Actualización financiera",68622,79100,2]
[95863,95863,"Provisión para reestructuraciones",68630,79100,2]
[95864,"","Provisión para protección y remediación del medio ambiente"]
[95864,95864,"Provisión para protección y remediación del medio ambiente – Costo",68641,79100,2]
[95864,95864,"Provisión para protección y remediación del medio ambiente – Actualización financiera",68642,79100,2]
[95866,"","Provisión para garantías"]
[95866,95866,"Provisión para garantías – Costo",68661,79100,2]
[95866,95866,"Provisión para garantías – Actualización financiera",68662,79100,2]
[95869,95869,"Otras provisiones",68690,79100,2]
[97,null,"GASTOS FINANCIEROS"]
[9707,"","GASTOS FINANCIEROS"]
[97071,"","Gastos en operaciones de endeudamiento y otros"]
[970711,97711,"Préstamos de instituciones financieras y otras entidades",67110,79100,2]
[970712,97712,"Contratos de arrendamiento financiero",67120,79100,2]
[970713,97713,"Emisión y colocación de instrumentos representativos de deuda y patrimonio",67130,79100,2]
[970714,97714,"Documentos vendidos o descontados",67140,79100,2]
[97072,97720,"Pérdida por instrumentos financieros derivados",67200,79100,2]
[97073,"","Intereses por préstamos y otras obligaciones"]
[970731,"","Préstamos de instituciones financieras y otras entidades"]
[970731,97731,"Instituciones financieras",67311,79100,2]
[970731,97731,"Otras entidades",67312,79100,2]
[970732,97732,"Contratos de arrendamiento financiero",67320,79100,2]
[970733,97733,"Otros instrumentos financieros por pagar",67330,79100,2]
[970734,97734,"Documentos vendidos o descontados",67340,79100,2]
[970735,97735,"Obligaciones emitidas",67350,79100,2]
[970736,97736,"Obligaciones comerciales",67360,79100,2]
[970737,97737,"Obligaciones tributarias",67370,79100,2]
[97074,"","Gastos en operaciones de factoraje (factoring)"]
[970741,97741,"Gastos por menor valor",67410,79100,2]
[97075,97750,"Descuentos concedidos por pronto pago",67500,79100,2]
[97076,97760,"Diferencia de cambio",67600,79100,2]
[97077,"","Pérdida por medición de activos y pasivos financieros al valor razonable"]
[970771,97771,"Inversiones para negociación",67710,79100,2]
[970772,97772,"Inversiones disponibles para la venta",67720,79100,2]
[970773,97773,"Otros",67730,79100,2]
[97078,"","Participación en resultados de entidades relacionadas"]
[970781,97781,"Participación en los resultados de subsidiarias y asociadas bajo el método del valor patrimonial",67810,79100,2]
[970782,97782,"Participaciones en negocios conjuntos",67820,79100,2]
[97079,"","Otros gastos financieros"]
[970791,97791,"Primas por opciones",67910,79100,2]
[970792,97792,"Gastos financieros en medición a valor descontado",67920,79100,2]
["01",null,"BIENES Y VALORES ENTREGADOS"]
["011",null,"Bienes en préstamo, custodia y no capitalizables"]
["0111","01110","Bienes en préstamo"]
["0112","01120","Bienes en custodia"]
["012",null,"Valores y bienes entregados en garantía"]
["0121","01210","Cartas fianza"]
["0122","01220","Cuentas por cobrar"]
["0123","01230","Existencias"]
["0124","01240","Inversión mobiliaria"]
["0125","01250","Inversión inmobiliaria"]
["0126","01260","Inmuebles, maquinaria y equipo"]
["0127","01270","Intangibles"]
["0128","01280","Activos biológicos"]
["013","01300","Activos realizables entregados en consignación"]
["02",null,"DERECHOS SOBRE INSTRUMENTOS FINANCIEROS"]
["021",null,"Primarios"]
["0211","02110","Inversiones mantenidas para negociación"]
["0212","02120","Inversiones disponibles para la venta"]
["0213","02130","Inversiones a ser mantenidas hasta el vencimiento"]
["022",null,"Derivados"]
["0221","02210","Contratos a futuro"]
["0222","02220","Contratos a término (forward)"]
["0223","02230","Permutas financieras (swap)"]
["0224","02240","Contratos de opción"]
["03",null,"OTRAS CUENTAS DE ORDEN DEUDORAS"]
["031",null,"Contratos aprobados"]
["0311","03110","Contratos en ejecución"]
["0312","03120","Contratos en trámite"]
["032",null,"Bienes dados de baja"]
["0321","03210","Suministros"]
["0322","03220","Inmuebles, maquinaria y equipo"]
["039","03900","Diversas"]
["04","04000","DEUDORAS POR CONTRA CUENTAS DE ORDEN ACREEDORAS"]
["06",null,"BIENES Y VALORES RECIBIDOS"]
["061",null,"Bienes recibidos en préstamo y custodia"]
["0611","06110","Bienes recibidos en préstamo"]
["0612","06120","Bienes recibidos en custodia"]
["062",null,"Valores y bienes recibidos en garantía"]
["0621","06210","Cartas fianza"]
["0622","06220","Cuentas por cobrar"]
["0623","06230","Existencias"]
["0624","06240","Inversión mobiliaria"]
["0625","06250","Inversión inmobiliaria"]
["0626","06260","Inmuebles, maquinaria y equipo"]
["0627","06270","Intangibles"]
["0628","06280","Activos biológicos"]
["063","06300","Activos realizables recibidos en consignación"]
["07",null,"COMPROMISOS SOBRE INSTRUMENTOS FINANCIEROS"]
["071",null,"Primarios"]
["0711","07110","Inversiones mantenidas para negociación"]
["0712","07120","Inversiones disponibles para la venta"]
["0713","07130","Inversiones a ser mantenidas hasta el vencimiento"]
["072",null,"Derivados"]
["0721","07210","Contratos a futuro"]
["0722","07220","Contratos a término (forward)"]
["0723","07230","Permutas financieras (swap)"]
["0724","07240","Contratos de opción"]
["08",null,"OTRAS CUENTAS DE ORDEN ACREEDORAS"]
["089","08900","Diversas"]
["09","09000","ACREEDORAS POR CONTRA"]

{"sheet":"TVOU","index":2,"n_rows":9,"n_cols":14,"rows_kept":9,"cut":false,"hidden":true,"merged":[]}
["TIPO DE VOUCHERS"]
["CÓDIGO","DETALLE",1,2,3,4,5,6,7,8,9,10,11,12]
[1,"APERTURA",1,0,0,0,0,0,0,0,0,0,0,0]
[2,"VENTAS",1,0,0,0,0,0,0,0,0,0,0,0]
[3,"COMPRAS",2,0,0,0,0,0,0,0,0,0,0,0]
[4,"CAJA",1,0,0,0,0,0,0,0,0,0,0,0]
[5,"BANCOS",0,0,0,0,0,0,0,0,0,0,0,0]
[6,"DIARIO",1,0,0,0,0,0,0,0,0,0,0,0]
[7,"PLANILLA",0,0,0,0,0,0,0,0,0,0,0,0]

{"sheet":"TLIBROS","index":3,"n_rows":33,"n_cols":2,"rows_kept":33,"cut":false,"hidden":true,"merged":[]}
["TIPOS DE LIBROS"]
["CÓDIGO","                                                                          NOMBRE O DESCRIPCIÓN"]
[1,"LIBRO CAJA Y BANCOS"]
[2,"LIBRO DE INGRESOS Y GASTOS"]
[3,"LIBRO DE INVENTARIOS Y BALANCES"]
[4,"LIBRO DE RETENCIONES INCISOS E) Y F) DEL ARTICULO 34° DE LA LEY DEL IMPUESTO A LA RENTA"]
[5,"LIBRO DIARIO"]
[6,"LIBRO MAYOR"]
[7,"REGISTRO DE ACTIVOS FIJOS"]
[8,"REGISTRO DE COMPRAS"]
[9,"REGISTRO DE CONSIGNACIONES"]
[10,"REGISTRO DE COSTOS"]
[11,"REGISTRO DE HUÉSPEDES"]
[12,"REGISTRO DE INVENTARIO PERMANENTE EN UNIDADES FÍSICAS"]
[13,"REGISTRO DE INVENTARIO PERMANENTE VALORIZADO"]
[14,"REGISTRO DE VENTAS E INGRESOS"]
[15,"REGISTRO DE VENTAS E INGRESOS - ARTÍCULO 23° RESOLUCIÓN DE SUPERINTENDENCIA N° 266-2004/SUNAT"]
[16,"REGISTRO DEL RÉGIMEN DE PERCEPCIONES"]
[17,"REGISTRO DEL RÉGIMEN DE RETENCIONES"]
[18,"REGISTRO DE RETENCIONES ARTÍCULO 77-A DE LA LEY DE IMPUESTO A LA RENTA"]
[19,"REGISTRO IVAP"]
[20,"REGISTRO(S) AUXILIAR(ES) DE ADQUISICIONES - ARTÍCULO 8° RESOLUCIÓN DE SUPERINTENDENCIA N° 022-98/SUNAT"]
[21,"REGISTRO(S) AUXILIAR(ES) DE ADQUISICIONES - INCISO A) PRIMER PÁRRAFO ARTÍCULO 5° RESOLUCIÓN DE SUPERINTENDENCIA N° 021-99/SUNAT"]
[22,"REGISTRO(S) AUXILIAR(ES) DE ADQUISICIONES - INCISO A) PRIMER PÁRRAFO ARTÍCULO 5° RESOLUCIÓN DE SUPERINTENDENCIA N° 142-2001/SUNAT"]
[23,"REGISTRO(S) AUXILIAR(ES) DE ADQUISICIONES - INCISO C) PRIMER PÁRRAFO ARTÍCULO 5° RESOLUCIÓN DE SUPERINTENDENCIA N° 256-2004/SUNAT"]
[24,"REGISTRO(S) AUXILIAR(ES) DE ADQUISICIONES - INCISO A) PRIMER PÁRRAFO ARTÍCULO 5° RESOLUCIÓN DE SUPERINTENDENCIA N° 257-2004/SUNAT"]
[25,"REGISTRO(S) AUXILIAR(ES) DE ADQUISICIONES - INCISO C) PRIMER PÁRRAFO ARTÍCULO 5° RESOLUCIÓN DE SUPERINTENDENCIA N° 258-2004/SUNAT"]
[26,"REGISTRO(S) AUXILIAR(ES) DE ADQUISICIONES - INCISO A) PRIMER PÁRRAFO ARTÍCULO 5° RESOLUCIÓN DE SUPERINTENDENCIA N° 259-2004/SUNAT"]
[27,"LIBRO DE ACTAS DE LA EMPRESA INDIVIDUAL DE RESPONSABILIDAD LIMITADA"]
[28,"LIBRO DE ACTAS DE LA JUNTA GENERAL DE ACCIONISTAS"]
[29,"LIBRO DE ACTAS DEL DIRECTORIO"]
[30,"LIBRO DE MATRÍCULA DE ACCIONES"]
[31,"LIBRO DE PLANILLAS"]

{"sheet":"TCOMPROB","index":4,"n_rows":50,"n_cols":2,"rows_kept":50,"cut":false,"hidden":true,"merged":[]}
["TIPOS DE COMPROBANTES"]
["N°","                                                        DESCRIPCIÓN"]
["00","OTROS (ESPECIFICAR)"]
["01","FACTURA"]
["02","RECIBO POR HONORARIOS"]
["03","BOLETA DE VENTA"]
["04","LIQUIDACIÓN DE COMPRA"]
["05","BOLETO DE COMPAÑÍA DE AVIACIÓN COMERCIAL POR EL SERVICIO DE TRANSPORTE AÉREO DE PASAJEROS"]
["06","CARTA DE PORTE AÉREO POR EL SERVICIO DE TRANSPORTE DE CARGA AÉREA"]
["07","NOTA DE CRÉDITO"]
["08","NOTA DE DÉBITO"]
["09","GUÍA DE REMISIÓN - REMITENTE"]
["10","RECIBO POR ARRENDAMIENTO"]
["11","PÓLIZA EMITIDA POR LAS BOLSAS DE VALORES, BOLSAS DE PRODUCTOS O AGENTES DE INTERMEDIACIÓN POR OPERACIONES REALIZADAS EN LAS BOLSAS DE VALORES O PRODUCTOS O FUERA DE LAS MISMAS, AUTORIZADAS POR CONASEV"]
["12","TICKET O CINTA EMITIDO POR MÁQUINA REGISTRADORA"]
["13","DOCUMENTO EMITIDO POR BANCOS, INSTITUCIONES FINANCIERAS, CREDITICIAS Y DE SEGUROS QUE SE ENCUENTREN BAJO EL CONTROL DE LA SUPERINTENDENCIA DE BANCA Y SEGUROS"]
["14","RECIBO POR SERVICIOS PÚBLICOS DE SUMINISTRO DE ENERGÍA ELÉCTRICA, AGUA, TELÉFONO, TELEX Y TELEGRÁFICOS Y OTROS SERVICIOS COMPLEMENTARIOS QUE SE INCLUYAN EN EL RECIBO DE SERVICIO PÚBLICO"]
["15","BOLETO EMITIDO POR LAS EMPRESAS DE TRANSPORTE PÚBLICO URBANO DE PASAJEROS"]
["16","BOLETO DE VIAJE EMITIDO POR LAS EMPRESAS DE TRANSPORTE PÚBLICO INTERPROVINCIAL DE PASAJEROS DENTRO DEL PAÍS"]
["17","DOCUMENTO EMITIDO POR LA IGLESIA CATÓLICA POR EL ARRENDAMIENTO DE BIENES INMUEBLES"]
["18","DOCUMENTO EMITIDO POR LAS ADMINISTRADORAS PRIVADAS DE FONDO DE PENSIONES QUE SE ENCUENTRAN BAJO LA SUPERVISIÓN DE LA SUPERINTENDENCIA DE ADMINISTRADORAS PRIVADAS DE FONDOS DE PENSIONES"]
["19","BOLETO O ENTRADA POR ATRACCIONES Y ESPECTÁCULOS PÚBLICOS"]
["20","COMPROBANTE DE RETENCIÓN"]
["21","CONOCIMIENTO DE EMBARQUE POR EL SERVICIO DE TRANSPORTE DE CARGA MARÍTIMA"]
["22","COMPROBANTE POR OPERACIONES NO HABITUALES"]
["23","PÓLIZAS DE ADJUDICACIÓN EMITIDAS CON OCASIÓN DEL REMATE O ADJUDICACIÓN DE BIENES POR VENTA FORZADA, POR LOS MARTILLEROS O LAS ENTIDADES QUE REMATEN O SUBASTEN BIENES POR CUENTA DE TERCEROS"]
["24","CERTIFICADO DE PAGO DE REGALÍAS EMITIDAS POR PERUPETRO S.A"]
["25","DOCUMENTO DE ATRIBUCIÓN (LEY DEL IMPUESTO GENERAL A LAS VENTAS E IMPUESTO SELECTIVO AL CONSUMO, ART. 19º, ÚLTIMO PÁRRAFO, R.S. N° 022-98-SUNAT)."]
["26","RECIBO POR EL PAGO DE LA TARIFA POR USO DE AGUA SUPERFICIAL CON FINES AGRARIOS Y POR EL PAGO DE LA CUOTA PARA LA EJECUCIÓN DE UNA DETERMINADA OBRA O ACTIVIDAD ACORDADA POR LA ASAMBLEA GENERAL DE LA COMISIÓN DE REGANTES O RESOLUCIÓN EXPEDIDA POR EL JEFE DE LA UNIDAD DE AGUAS Y DE RIEGO (DECRETO SUPREMO N° 003-90-AG, ARTS. 28 Y 48)"]
["27","SEGURO COMPLEMENTARIO DE TRABAJO DE RIESGO"]
["28","TARIFA UNIFICADA DE USO DE AEROPUERTO"]
["29","DOCUMENTOS EMITIDOS POR LA COFOPRI EN CALIDAD DE OFERTA DE VENTA DE TERRENOS, LOS CORRESPONDIENTES A LAS SUBASTAS PÚBLICAS Y A LA RETRIBUCIÓN DE LOS SERVICIOS QUE PRESTA"]
["30","DOCUMENTOS EMITIDOS POR LAS EMPRESAS QUE DESEMPEÑAN EL ROL ADQUIRENTE EN LOS SISTEMAS DE PAGO MEDIANTE TARJETAS DE CRÉDITO Y DÉBITO"]
["31","GUÍA DE REMISIÓN - TRANSPORTISTA"]
["32","DOCUMENTOS EMITIDOS POR LAS EMPRESAS RECAUDADORAS DE LA DENOMINADA GARANTÍA DE RED PRINCIPAL A LA QUE HACE REFERENCIA EL NUMERAL 7.6 DEL ARTÍCULO 7° DE LA LEY N° 27133 – LEY DE PROMOCIÓN DEL DESARROLLO DE LA INDUSTRIA DEL GAS NATURAL"]
["34","DOCUMENTO DEL OPERADOR"]
["35","DOCUMENTO DEL PARTÍCIPE"]
["36","RECIBO DE DISTRIBUCIÓN DE GAS NATURAL"]
["37","DOCUMENTOS QUE EMITAN LOS CONCESIONARIOS DEL SERVICIO DE REVISIONES TÉCNICAS VEHICULARES, POR LA PRESTACIÓN DE DICHO SERVICIO"]
["50","DECLARACIÓN ÚNICA DE ADUANAS - IMPORTACIÓN DEFINITIVA                 "]
["52","DESPACHO SIMPLIFICADO - IMPORTACIÓN SIMPLIFICADA                        "]
["53","DECLARACIÓN DE MENSAJERÍA O COURIER                                         "]
["54","LIQUIDACIÓN DE COBRANZA                                                     "]
["87","NOTA DE CRÉDITO ESPECIAL"]
["88","NOTA DE DÉBITO ESPECIAL"]
["91","COMPROBANTE DE NO DOMICILIADO                                                 "]
["96","EXCESO DE CRÉDITO FISCAL POR RETIRO DE BIENES                           "]
["97","NOTA DE CRÉDITO - NO DOMICILIADO"]
["98","NOTA DE DÉBITO - NO DOMICILIADO"]
["99","OTROS -CONSOLIDADO DE BOLETAS DE VENTA"]

{"sheet":"TDOC","index":5,"n_rows":7,"n_cols":2,"rows_kept":7,"cut":false,"hidden":true,"merged":[]}
["TIPOS DE DOCUMENTOS"]
["N°","                                   DESCRIPCIÓN"]
["0","OTROS TIPOS DE DOCUMENTOS"]
["1","DOCUMENTO NACIONAL DE IDENTIDAD (DNI)"]
[4,"CARNET DE EXTRANJERIA"]
[6,"REGISTRO ÚNICO DE CONTRIBUYENTES"]
[7,"PASAPORTE"]

{"sheet":"TPAGO","index":6,"n_rows":22,"n_cols":2,"rows_kept":22,"cut":false,"hidden":true,"merged":[]}
["TIPO DE MEDIO DE PAGO"]
["N°","                                                             DESCRIPCIÓN"]
["001","DEPÓSITO EN CUENTA"]
["002","GIRO"]
["003","TRANSFERENCIA DE FONDOS"]
["004","ORDEN DE PAGO"]
["005","TARJETA DE DÉBITO"]
["006","TARJETA DE CRÉDITO"]
["007","CHEQUES CON LA CLÁUSULA DE \"NO NEGOCIABLE\", \"INTRANSFERIBLES\", \"NO A LA ORDEN\" U OTRA EQUIVALENTE, A QUE SE REFIERE EL INCISO F) DEL ARTICULO 5° DEL DECRETO LEGISLATIVO."]
["008","EFECTIVO, POR OPERACIONES EN LAS QUE NO EXISTE OBLIGACIÓN DE UTILIZAR MEDIOS DE PAGO"]
["009","EFECTIVO, EN LOS DEMÁS CASOS"]
["010","MEDIOS DE PAGO DE COMERCIO EXTERIOR"]
["011","LETRAS DE CAMBIO"]
["101","TRANSFERENCIAS - COMERCIO EXTERIOR"]
["102","CHEQUES BANCARIOS  - COMERCIO EXTERIOR"]
["103","ORDEN DE PAGO SIMPLE  - COMERCIO EXTERIOR"]
["104","ORDEN DE PAGO DOCUMENTARIO  - COMERCIO EXTERIOR"]
["105","REMESA SIMPLE  - COMERCIO EXTERIOR"]
["106","REMESA DOCUMENTARIA  - COMERCIO EXTERIOR"]
["107","CARTA DE CRÉDITO SIMPLE  - COMERCIO EXTERIOR"]
["108","CARTA DE CRÉDITO DOCUMENTARIO  - COMERCIO EXTERIOR"]
["999","OTROS MEDIOS DE PAGO (ESPECIFICAR)"]

{"sheet":"TCLIEN","index":7,"n_rows":8,"n_cols":3,"rows_kept":8,"cut":false,"hidden":true,"merged":[]}
["CLIENTES"]
["NÚMERO","NOMBRE O RAZÓN SOCIAL","TIPO"]
["10101010101","SONIDO DIGITAL EIRL",6]
["10123456789","EL NATURAL",6]
["10987654321","EL PREFERIDO SAC",6]
["20123456789","EL JURIDICO",6]
["20134567890","A1 EIRL",6]
[20556622331,"SISTEMAS SAC",6]

{"sheet":"TPROVEE","index":8,"n_rows":4,"n_cols":3,"rows_kept":4,"cut":false,"hidden":true,"merged":[]}
["PROVEEDORES"]
["NÚMERO","NOMBRE O RAZÓN SOCIAL","TIPO"]
["10663322112","AM AP NOMB",6]
["20445566778","EL QUE TODO LO TIENE SAC",6]

{"sheet":"TBCOS","index":9,"n_rows":66,"n_cols":2,"rows_kept":66,"cut":false,"hidden":true,"merged":[]}
["ENTIDADES FINANCIERAS"]
["N°","DESCRIPCIÓN"]
["00","OTROS (ESPECIFICAR)"]
["02","DE CRÉDITO DEL PERÚ                "]
["03","INTERBANK                          "]
["05","LATINO                             "]
["07","CITYBANK N.A.                      "]
["08","STANDARD CHARTERED                 "]
["09","WIESE SUDAMERIS                    "]
["11","CONTINENTAL                        "]
["12","DE LIMA                            "]
["16","MERCANTIL                          "]
["18","NACIÓN                             "]
["22","SANTANDER CENTRAL HISPANO - PERÚ   "]
["23","DE COMERCIO                        "]
["25","REPUBLICA                          "]
["26","NBK BANK                           "]
["29","BANCOSUR                           "]
["35","FINANCIERO DEL PERÚ                "]
["37","DEL PROGRESO                       "]
["38","INTERAMERICANO FINANZAS            "]
["39","BANEX                              "]
["40","NUEVO MUNDO                        "]
["41","SUDAMERICANO                       "]
["42","DEL LIBERTADOR                     "]
["43","DEL TRABAJO                        "]
["44","SOLVENTA                           "]
["45","SERBANCO                           "]
["46","BANK OF BOSTON                     "]
["47","ORIÓN                              "]
["48","DEL PAÍS                           "]
["49","MI BANCO                           "]
["50","DE PARIS                           "]
["51","BANQUE BNP PARIBAS - ANDES"]
["52","MIBANCO BANCO DE LA MICROEMPRESA - MIBANCO"]
["53","BANCO DE LA NACIÓN"]
["54","CORPORACIÓN FINANCIERA DE DESARROLLO - COFIDE"]
["55","FINANCIERA CMR"]
["56","FINANCIERA VOLVO FINANCE DEL PERÚ"]
["57","CAJA MUNICIPAL DE AHORRO Y CRÉDITO AREQUIPA"]
["58","CAJA MUNICIPAL DE AHORRO Y CRÉDITO CHINCHA"]
["59","CAJA MUNICIPAL DE AHORRO Y CRÉDITO CUSCO"]
["60","CAJA MUNICIPAL DE AHORRO Y CRÉDITO DEL SANTA"]
["61","CAJA MUNICIPAL DE AHORRO Y CRÉDITO HUANCAYO"]
["62","CAJA MUNICIPAL DE AHORRO Y CRÉDITO ICA"]
["63","CAJA MUNICIPAL DE AHORRO Y CRÉDITO MAYNAS"]
["64","CAJA MUNICIPAL DE AHORRO Y CRÉDITO PAITA"]
["65","CAJA MUNICIPAL DE AHORRO Y CRÉDITO PISCO"]
["66","CAJA MUNICIPAL DE AHORRO Y CRÉDITO PIURA"]
["67","CAJA MUNICIPAL DE AHORRO Y CRÉDITO SULLANA"]
["68","CAJA MUNICIPAL DE AHORRO Y CRÉDITO TACNA"]
["69","CAJA MUNICIPAL DE AHORRO Y CRÉDITO TRUJILLO"]
["70","CAJA MUNICIPAL DE CRÉDITO POPULAR LIMA"]
["71","CAJA RURAL DE AHORRO Y CRÉDITO CAJAMARCA"]
["72","CAJA RURAL DE AHORRO Y CRÉDITO DEL SUR"]
["73","CAJA RURAL DE AHORRO Y CRÉDITO CHAVÍN"]
["74","CAJA RURAL DE AHORRO Y CRÉDITO CRUZ DE CHALPÓN"]
["75","CAJA RURAL DE AHORRO Y CRÉDITO LOS LIBERTADORES DE AYACUCHO"]
["76","CAJA RURAL DE AHORRO Y CRÉDITO LOS ANDES"]
["77","CAJA RURAL DE AHORRO Y CRÉDITO NOR PERÚ"]
["78","CAJA RURAL DE AHORRO Y CRÉDITO PROFINANZAS"]
["79","CAJA RURAL DE AHORRO Y CRÉDITO PRYMERA"]
["80","CAJA RURAL DE AHORRO Y CRÉDITO QUILLABAMBA - CREDINKA"]
["81","CAJA RURAL DE AHORRO Y CRÉDITO DE LA REGIÓN DE SAN MARTÍN"]
["82","CAJA RURAL DE AHORRO Y CRÉDITO SEÑOR DE LUREN"]
["99","BANCOS DEL EXTERIOR                "]

{"sheet":"TBCOSCIA","index":10,"n_rows":4,"n_cols":4,"rows_kept":4,"cut":false,"hidden":true,"merged":[]}
["BANCOS EMPRESA"]
["N° CUENTA","MONEDA","CÓDIGO","DESCRIPCIÓN"]
["1944578958965","DÓLARES AMERICANOS",2,"DE CRÉDITO DEL PERÚ                "]
["19123456789524","NUEVOS SOLES",2,"DE CRÉDITO DEL PERÚ                "]

{"sheet":"TOTROS","index":11,"n_rows":5,"n_cols":2,"rows_kept":5,"cut":false,"hidden":true,"merged":[]}
["OTRAS ENTIDADES"]
["CÓDIGO","                                        DESCRIPCIÓN"]
["E001","SOCIO"]
["E002","EMPLEADO"]
["E003","OBRERO"]

{"sheet":"VOUDIARIO","index":12,"n_rows":18,"n_cols":12,"rows_kept":18,"cut":false,"hidden":true,"merged":[]}
[null,"VOUCHER -DIARIO",null,null,null,null,null,null,null,null,null,"REGISTRO"]
[null,"MES",1,"ENERO","VOUCHER",3,"Nº VOU.",{"$f":"IF(AND(C2>0,F2>0),INDEX(TVOU!B3:N24,MATCH(F2,TVOU!A3:A24,0),MATCH(C2,TVOU!B2:N2,0)),0)+1","v":3},null,null,null,132]
[null,"x",null,null,null,null,null,null,null,null,null,46001]
[null,"FECHA","31/01/2013",null,null,"DOCUMENTO:","TIPO",14]
[null,"LIBRO",8,"REGISTRO DE COMPRAS",null,null,"SERIE","T004"]
[null,"OPERAC.",2,null,null,null,"NÚM. o TRANS.",15234889]
[null,"x"]
[null,"BANCO",null,null,null,"CTA. CTE."]
[null,"MEDIO PAG.",null,null,null,"ENTIDAD",10663322112,"AM AP NOMB"]
[null,"x"]
[null,"GLOSA","LUZ"]
[null,"x",null,null,{"$f":"IF(H12<>I12,\"NO CUADRA\",\"\")","v":""},{"$f":"H12-I12","v":0},"TOTALES",{"$f":"SUM(H14:H499958)","v":218},{"$f":"SUM(I14:I499958)","v":218}]
[null,"ITEM","CUENTA","NOMBRE","-","--","---","DEBE","HABER","REGISTRO","MES"]
[null,1,63610,"Energía eléctrica",null,null,null,100,0,132,1]
[null,1,79100,"Cargas imputables a cuentas de costos y gastos",null,null,null,0,100,132,1]
[null,1,94361,"Energía eléctrica",null,null,null,100,0,132,1]
[null,2,40111,"IGV - Cuenta propia",null,null,null,18,0,132,1]
[null,3,42120,"Emitidas",null,null,null,0,118,132,1]

{"sheet":"BDDIARIO","index":13,"n_rows":7,"n_cols":12,"rows_kept":7,"cut":false,"hidden":true,"merged":[]}
["REGISTRO","MES","TVOUCHER","VOUCHER","FECHA","LIBRO","OPERACIÓN","TIPO","SERIE","NUMERO","ENTIDAD","GLOSA"]
[111,1,1,1,"2013-01-02",3,1,null,null,null,null,"POR EL INICIO DE OPERACIONES"]
[121,1,2,1,"15/01/2013",14,1,1,1,1,20134567890,"VENTA DE MERCADERÍA"]
[131,1,3,1,"2013-01-05",8,1,1,10,1524,20445566778,"COMPRA DE MERCDERÍA"]
[132,1,3,2,"31/01/2013",8,2,14,"T004",15234889,10663322112,"LUZ"]
[141,1,4,1,"31/01/2013",1,1,1,1,1,20134567890,"COBRO DEL MES"]
[161,1,6,1,"31/01/2013",null,null,null,null,null,null,"COSTO DE VENTA DEL MES"]

{"sheet":"BDASTODIARIO","index":14,"n_rows":22,"n_cols":10,"rows_kept":22,"cut":false,"hidden":true,"merged":[]}
["REGISTRO","MES","ITEM","CUENTA","NOMBRE","DEBE","HABER","-","--","---"]
[111,1,1,10100,"Caja",50000,0]
[111,1,2,50110,"Acciones",0,50000]
[131,1,1,20111,"Costo",20000,0]
[131,1,1,61110,"Mercaderías manufacturadas",0,20000]
[131,1,1,60110,"Costo",20000,0]
[131,1,2,40111,"IGV - Cuenta propia",3600,0]
[131,1,3,42120,"Emitidas",0,23600]
[121,1,1,12120,"Emitidas en cartera",23600,0]
[121,1,2,40111,"IGV - Cuenta propia",0,3600]
[121,1,3,70111,"Terceros",0,20000]
[161,1,1,69111,"Terceros",10000,0]
[161,1,2,20111,"Costo",0,10000]
[161,1,3,61110,"Mercaderías manufacturadas",10000,0]
[161,1,4,79100,"Cargas imputables a cuentas de costos y gastos",0,10000]
[141,1,1,10100,"Caja",23600,0]
[141,1,2,12120,"Emitidas en cartera",0,23600]
[132,1,1,63610,"Energía eléctrica",100,0]
[132,1,1,79100,"Cargas imputables a cuentas de costos y gastos",0,100]
[132,1,1,94361,"Energía eléctrica",100,0]
[132,1,2,40111,"IGV - Cuenta propia",18,0]
[132,1,3,42120,"Emitidas",0,118]

{"sheet":"CONSDIARIO1","index":15,"n_rows":17,"n_cols":34,"rows_kept":17,"cut":false,"hidden":true,"merged":[]}
["MES","REGISTRO","MES","CUENTA","NOMBRE","DEBE","HABER","TVOUCHER","VOUCHER","FECHA","GLOSA","LIBRO","OPERACIÓN","TIPO","SERIE","NUMERO","ENTIDAD","MES","REGISTRO","MES","TVOUCHER","VOUCHER","FECHA","GLOSA","LIBRO","OPERACIÓN","TIPO","SERIE","NUMERO","CUENTA","NOMBRE","DEBE","HABER","ENTIDAD"]
["<1",null,null,null,null,null,null,null,null,null,null,null,null,null,null,null,null,1,111,1,1,1,41276,"POR EL INICIO DE OPERACIONES",3,1,0,0,0,10100,"Caja",50000,0,0]
[null,null,null,null,null,null,null,null,null,null,null,null,null,null,null,null,null,null,111,1,1,1,41276,"POR EL INICIO DE OPERACIONES",3,1,0,0,0,50110,"Acciones",0,50000,0]
[null,null,null,null,null,null,null,null,null,null,null,null,null,null,null,null,null,null,131,1,3,1,41279,"COMPRA DE MERCDERÍA",8,1,1,10,1524,20111,"Costo",20000,0,20445566778]
[null,null,null,null,null,null,null,null,null,null,null,null,null,null,null,null,null,null,131,1,3,1,41279,"COMPRA DE MERCDERÍA",8,1,1,10,1524,61110,"Mercaderías manufacturadas",0,20000,20445566778]
[null,null,null,null,null,null,null,null,null,null,null,null,null,null,null,null,null,null,131,1,3,1,41279,"COMPRA DE MERCDERÍA",8,1,1,10,1524,60111,"Costo",20000,0,20445566778]
[null,null,null,null,null,null,null,null,null,null,null,null,null,null,null,null,null,null,131,1,3,1,41279,"COMPRA DE MERCDERÍA",8,1,1,10,1524,40111,"IGV - Cuenta propia",3600,0,20445566778]
[null,null,null,null,null,null,null,null,null,null,null,null,null,null,null,null,null,null,131,1,3,1,41279,"COMPRA DE MERCDERÍA",8,1,1,10,1524,42120,"Emitidas",0,23600,20445566778]
[null,null,null,null,null,null,null,null,null,null,null,null,null,null,null,null,null,null,121,1,2,1,"15/01/2013","VENTA DE MERCADERÍA",14,1,1,1,1,12120,"Emitidas en cartera",23600,0,20134567890]
[null,null,null,null,null,null,null,null,null,null,null,null,null,null,null,null,null,null,121,1,2,1,"15/01/2013","VENTA DE MERCADERÍA",14,1,1,1,1,40111,"IGV - Cuenta propia",0,3600,20134567890]
[null,null,null,null,null,null,null,null,null,null,null,null,null,null,null,null,null,null,121,1,2,1,"15/01/2013","VENTA DE MERCADERÍA",14,1,1,1,1,70111,"Terceros",0,20000,20134567890]
[null,null,null,null,null,null,null,null,null,null,null,null,null,null,null,null,null,null,161,1,6,1,"31/01/2013","COSTO DE VENTA DEL MES",0,0,0,0,0,69111,"Terceros",10000,0,0]
[null,null,null,null,null,null,null,null,null,null,null,null,null,null,null,null,null,null,161,1,6,1,"31/01/2013","COSTO DE VENTA DEL MES",0,0,0,0,0,20111,"Costo",0,10000,0]
[null,null,null,null,null,null,null,null,null,null,null,null,null,null,null,null,null,null,161,1,6,1,"31/01/2013","COSTO DE VENTA DEL MES",0,0,0,0,0,61110,"Mercaderías manufacturadas",10000,0,0]
[null,null,null,null,null,null,null,null,null,null,null,null,null,null,null,null,null,null,161,1,6,1,"31/01/2013","COSTO DE VENTA DEL MES",0,0,0,0,0,79100,"Cargas imputables a cuentas de costos y gastos",0,10000,0]
[null,null,null,null,null,null,null,null,null,null,null,null,null,null,null,null,null,null,141,1,4,1,"31/01/2013","COBRO DEL MES",1,1,1,1,1,10100,"Caja",23600,0,20134567890]
[null,null,null,null,null,null,null,null,null,null,null,null,null,null,null,null,null,null,141,1,4,1,"31/01/2013","COBRO DEL MES",1,1,1,1,1,12120,"Emitidas en cartera",0,23600,20134567890]

{"sheet":"LDIARIO","index":16,"n_rows":27,"n_cols":14,"rows_kept":27,"cut":false,"hidden":true,"merged":[[7,9,8,9],[7,10,8,10],[7,11,8,11],[7,12,8,12],[6,13,8,13],[6,2,8,2],[6,3,8,3],[7,4,8,4],[7,5,8,5],[6,0,7,1]]}
["LIBRO DIARIO",null,null,null,null,null,null,null,null,null,null,null,"ENERO"]
["X"]
[{"$f":"CONCATENATE(\"PERÍODO: \",mesconsulta,\" - \",periodo)","v":"PERÍODO: ENERO - 2013"}]
[{"$f":"CONCATENATE(\"RUC: \",ruc)","v":"RUC: 20123456789"}]
[{"$f":"IF(razon>\"\",razon,\"\")","v":"ARCHIVO EXCEL EIRL"}]
["X"]
["NÚMERO CORREL. DE LA OPERAC.",null,"FECHA OPERAC.","GLOSA O DESCRIPCIÓN DE LA OPERACIÓN","REFERENCIA DE LA OPERACIÓN",null,null,null,null,"CUENTA CONTABLE ASOCIADA A LA OPERACIÓN",null,"MOVIMIENTO",null,"ENTIDAD"]
[null,null,null,null,"CÓDIGO DEL LIBRO","NÚMERO CORREL.","NÚMERO DEL DOCUMENTO",null,null,"CÓDIGO","DENOMINACIÓN","DEBE","HABER"]
["T. VOU.","NÚM.",null,null,null,null,"TIPO","SERIE","NÚMERO"]
["-",null,null,"SALDO INICIAL",null,null,null,null,null,null,null,{"$f":"SUM(CONSDIARIO1!F2:F800000)","v":0},{"$f":"SUM(CONSDIARIO1!G2:G800000)","v":0}]
[1,1,"2013-01-02","POR EL INICIO DE OPERACIONES",3,1,0,0,0,10100,"Caja",50000,0,0]
[1,1,"2013-01-02","POR EL INICIO DE OPERACIONES",3,1,0,0,0,50110,"Acciones",0,50000,0]
[2,1,"15/01/2013","VENTA DE MERCADERÍA",14,1,1,1,1,12120,"Emitidas en cartera",23600,0,20134567890]
[2,1,"15/01/2013","VENTA DE MERCADERÍA",14,1,1,1,1,40111,"IGV - Cuenta propia",0,3600,20134567890]
[2,1,"15/01/2013","VENTA DE MERCADERÍA",14,1,1,1,1,70111,"Terceros",0,20000,20134567890]
[3,1,"2013-01-05","COMPRA DE MERCDERÍA",8,1,1,10,1524,20111,"Costo",20000,0,20445566778]
[3,1,"2013-01-05","COMPRA DE MERCDERÍA",8,1,1,10,1524,61110,"Mercaderías manufacturadas",0,20000,20445566778]
[3,1,"2013-01-05","COMPRA DE MERCDERÍA",8,1,1,10,1524,60111,"Costo",20000,0,20445566778]
[3,1,"2013-01-05","COMPRA DE MERCDERÍA",8,1,1,10,1524,40111,"IGV - Cuenta propia",3600,0,20445566778]
[3,1,"2013-01-05","COMPRA DE MERCDERÍA",8,1,1,10,1524,42120,"Emitidas",0,23600,20445566778]
[4,1,"31/01/2013","COBRO DEL MES",1,1,1,1,1,10100,"Caja",23600,0,20134567890]
[4,1,"31/01/2013","COBRO DEL MES",1,1,1,1,1,12120,"Emitidas en cartera",0,23600,20134567890]
[6,1,"31/01/2013","COSTO DE VENTA DEL MES",0,0,0,0,0,69111,"Terceros",10000,0,0]
[6,1,"31/01/2013","COSTO DE VENTA DEL MES",0,0,0,0,0,20111,"Costo",0,10000,0]
[6,1,"31/01/2013","COSTO DE VENTA DEL MES",0,0,0,0,0,61110,"Mercaderías manufacturadas",10000,0,0]
[6,1,"31/01/2013","COSTO DE VENTA DEL MES",0,0,0,0,0,79100,"Cargas imputables a cuentas de costos y gastos",0,10000,0]
[null,null,null,null,null,null,null,null,null,null,"TOTALES",160800,160800]

{"sheet":"CONSULMAYOR","index":17,"n_rows":9,"n_cols":14,"rows_kept":9,"cut":false,"hidden":true,"merged":[]}
["CUENTA",null,"FECHA","TVOUCHER","VOUCHER","GLOSA","DEBE","HABER","ENTIDAD","TIPO","SERIE","NUMERO","=SI(SUMAR.SI(CONSDIARIO1!D2:D800000,D2,CONSDIARIO1!F2:F800000)>SUMAR.SI(CONSDIARIO1!D2:D800000,D2,CONSDIARIO1!G2:G800000),SUMAR.SI(CONSDIARIO1!D2:D800000,D2,CONSDIARIO1!F2:F800000)-SUMAR.SI(CONSDIARIO1!D2:D800000,D2,CONSDIARIO1!G2:G800000),0)","=SI(SUMAR.SI(CONSDIARIO1!D2:D800000,D2,CONSDIARIO1!G2:G800000)>SUMAR.SI(CONSDIARIO1!D2:D800000,D2,CONSDIARIO1!F2:F800000),SUMAR.SI(CONSDIARIO1!D2:D800000,D2,CONSDIARIO1!G2:G800000)-SUMAR.SI(CONSDIARIO1!D2:D800000,D2,CONSDIARIO1!F2:F800000),0)"]
[10100,null,"CUENTA",79100,{"$f":"IF(ISERROR(VLOOKUP(D2,TPC!B4:C2502,1,0))=FALSE,VLOOKUP(D2,TPC!B4:C2502,2,0),0)","v":"Cargas imputables a cuentas de costos y gastos"}]
[12120,null,"-",null,null,"SALDO INICIAL",{"$f":"IF(SUMIF(CONSDIARIO1!D2:D800000,D2,CONSDIARIO1!F2:F800000)>SUMIF(CONSDIARIO1!D2:D800000,D2,CONSDIARIO1!G2:G800000),SUMIF(CONSDIARIO1!D2:D800000,D2,CONSDIARIO1!F2:F800000)-SUMIF(CONSDIARIO1!D2:D800000,D2,CONSDIARIO1!G2:G800000),0)","v":0},{"$f":"IF(SUMIF(CONSDIARIO1!D2:D800000,D2,CONSDIARIO1!G2:G800000)>SUMIF(CONSDIARIO1!D2:D800000,D2,CONSDIARIO1!F2:F800000),SUMIF(CONSDIARIO1!D2:D800000,D2,CONSDIARIO1!G2:G800000)-SUMIF(CONSDIARIO1!D2:D800000,D2,CONSDIARIO1!F2:F800000),0)","v":0}]
[20111,null,"31/01/2013",6,1,"COSTO DE VENTA DEL MES",0,10000,0,0,0,0]
[40111,null,"-",null,null,"SUBTOTALES",0,10000]
[42120,null,"-",null,null,"SALDO FINAL",{"$f":"IF(H5>G5,H5-G5,0)","v":10000},{"$f":"IF(G5>H5,G5-H5,0)","v":0}]
[50110,null,"-",null,null,"TOTALES",10000,10000]
[60111,null,"-"]
[61110]

{"sheet":"LMAYOR","index":18,"n_rows":90,"n_cols":10,"rows_kept":90,"cut":false,"hidden":true,"merged":[[6,6,7,6],[6,3,7,3],[6,4,6,5]]}
["LIBRO MAYOR",null,null,null,null,"ENERO"]
["X",null,null,"X"]
[{"$f":"CONCATENATE(\"PERÍODO: \",mesconsultamayor,\" - \",periodo)","v":"PERÍODO: ENERO - 2013"}]
[{"$f":"CONCATENATE(\"RUC: \",ruc)","v":"RUC: 20123456789"}]
[{"$f":"IF(razon>\"\",razon,\"\")","v":"ARCHIVO EXCEL EIRL"}]
["X"]
["FECHA","NÚM. CORR. L. D.",null,"DESCRIPCION O GLOSA DE LA OPERACIÓN","SALDOS Y MOVIMIENTOS",null,"ENTIDAD","NÚMERO DEL DOCUMENTO"]
["OPERAC.","T. VOU.","NÚM.",null,"DEUDOR","ACREEDOR",null,"TIPO","SERIE","NÚMERO"]
["CUENTA",10100,"Caja"]
["-",null,null,"SALDO INICIAL",0,0]
["2013-01-02",1,1,"POR EL INICIO DE OPERACIONES",50000,0,0,0,0,0]
["31/01/2013",4,1,"COBRO DEL MES",23600,0,20134567890,1,1,1]
["-",null,null,"SUBTOTALES",73600,0]
["-",null,null,"SALDO FINAL",0,73600]
["-",null,null,"TOTALES",73600,73600]
["-"]
["CUENTA",12120,"Emitidas en cartera"]
["-",null,null,"SALDO INICIAL",0,0]
["15/01/2013",2,1,"VENTA DE MERCADERÍA",23600,0,20134567890,1,1,1]
["31/01/2013",4,1,"COBRO DEL MES",0,23600,20134567890,1,1,1]
["-",null,null,"SUBTOTALES",23600,23600]
["-",null,null,"SALDO FINAL",0,0]
["-",null,null,"TOTALES",23600,23600]
["-"]
["CUENTA",20111,"Costo"]
["-",null,null,"SALDO INICIAL",0,0]
["2013-01-05",3,1,"COMPRA DE MERCDERÍA",20000,0,20445566778,1,10,1524]
["31/01/2013",6,1,"COSTO DE VENTA DEL MES",0,10000,0,0,0,0]
["-",null,null,"SUBTOTALES",20000,10000]
["-",null,null,"SALDO FINAL",0,10000]
["-",null,null,"TOTALES",20000,20000]
["-"]
["CUENTA",40111,"IGV - Cuenta propia"]
["-",null,null,"SALDO INICIAL",0,0]
["2013-01-05",3,1,"COMPRA DE MERCDERÍA",3600,0,20445566778,1,10,1524]
["15/01/2013",2,1,"VENTA DE MERCADERÍA",0,3600,20134567890,1,1,1]
["-",null,null,"SUBTOTALES",3600,3600]
["-",null,null,"SALDO FINAL",0,0]
["-",null,null,"TOTALES",3600,3600]
["-"]
["CUENTA",42120,"Emitidas"]
["-",null,null,"SALDO INICIAL",0,0]
["2013-01-05",3,1,"COMPRA DE MERCDERÍA",0,23600,20445566778,1,10,1524]
["-",null,null,"SUBTOTALES",0,23600]
["-",null,null,"SALDO FINAL",23600,0]
["-",null,null,"TOTALES",23600,23600]
["-"]
["CUENTA",50110,"Acciones"]
["-",null,null,"SALDO INICIAL",0,0]
["2013-01-02",1,1,"POR EL INICIO DE OPERACIONES",0,50000,0,0,0,0]
["-",null,null,"SUBTOTALES",0,50000]
["-",null,null,"SALDO FINAL",50000,0]
["-",null,null,"TOTALES",50000,50000]
["-"]
["CUENTA",60111,"Costo"]
["-",null,null,"SALDO INICIAL",0,0]
["2013-01-05",3,1,"COMPRA DE MERCDERÍA",20000,0,20445566778,1,10,1524]
["-",null,null,"SUBTOTALES",20000,0]
["-",null,null,"SALDO FINAL",0,20000]
["-",null,null,"TOTALES",20000,20000]
["-"]
["CUENTA",61110,"Mercaderías manufacturadas"]
["-",null,null,"SALDO INICIAL",0,0]
["2013-01-05",3,1,"COMPRA DE MERCDERÍA",0,20000,20445566778,1,10,1524]
["31/01/2013",6,1,"COSTO DE VENTA DEL MES",10000,0,0,0,0,0]
["-",null,null,"SUBTOTALES",10000,20000]
["-",null,null,"SALDO FINAL",10000,0]
["-",null,null,"TOTALES",20000,20000]
["-"]
["CUENTA",69111,"Terceros"]
["-",null,null,"SALDO INICIAL",0,0]
["31/01/2013",6,1,"COSTO DE VENTA DEL MES",10000,0,0,0,0,0]
["-",null,null,"SUBTOTALES",10000,0]
["-",null,null,"SALDO FINAL",0,10000]
["-",null,null,"TOTALES",10000,10000]
["-"]
["CUENTA",70111,"Terceros"]
["-",null,null,"SALDO INICIAL",0,0]
["15/01/2013",2,1,"VENTA DE MERCADERÍA",0,20000,20134567890,1,1,1]
["-",null,null,"SUBTOTALES",0,20000]
["-",null,null,"SALDO FINAL",20000,0]
["-",null,null,"TOTALES",20000,20000]
["-"]
["CUENTA",79100,"Cargas imputables a cuentas de costos y gastos"]
["-",null,null,"SALDO INICIAL",0,0]
["31/01/2013",6,1,"COSTO DE VENTA DEL MES",0,10000,0,0,0,0]
["-",null,null,"SUBTOTALES",0,10000]
["-",null,null,"SALDO FINAL",10000,0]
["-",null,null,"TOTALES",10000,10000]
["-"]

{"sheet":"BDRVENTA","index":19,"n_rows":5,"n_cols":3,"rows_kept":5,"cut":false,"hidden":true,"merged":[]}
["MES","VOUCHER"]
[]
[]
[]
[null,null,"Grabar y ordenar"]

{"sheet":"BDASTOVENTA","index":20,"n_rows":7,"n_cols":4,"rows_kept":7,"cut":false,"hidden":true,"merged":[]}
["MES","VOUCHER"]
[null,"01001"]
[]
[]
[null,"02001"]
[]
[null,null,null,"Grabar y ordenar"]

{"sheet":"BDRCOMPRA","index":21,"n_rows":3,"n_cols":3,"rows_kept":3,"cut":false,"hidden":true,"merged":[]}
["MES","VOUCHER"]
[]
[null,null,"Grabar y ordenar"]

{"sheet":"BDASTOCOMPRA","index":22,"n_rows":4,"n_cols":3,"rows_kept":4,"cut":false,"hidden":true,"merged":[]}
["MES","VOUCHER"]
[]
[]
[null,null,"Grabar y ordenar"]

{"sheet":"BDCAJA","index":23,"n_rows":8,"n_cols":3,"rows_kept":8,"cut":false,"hidden":true,"merged":[]}
["MES","VOUCHER"]
[]
[]
[null,null,"Grabar y ordenar"]
[]
[]
[]
[null,null,"NO VA"]

{"sheet":"BDASTOCAJA","index":24,"n_rows":4,"n_cols":15,"rows_kept":4,"cut":false,"hidden":true,"merged":[]}
["REGISTRO","MES","TVOUCHER","VOUCHER","FECHA","LIBRO","OPERACIÓN","TIPO","SERIE","NUMERO","BANCO","CUENTA","PAGO","ENTIDAD","GLOSA"]
[]
[]
[null,null,"Grabar y ordenar"]

{"sheet":"BDBANCO","index":25,"n_rows":8,"n_cols":3,"rows_kept":8,"cut":false,"hidden":true,"merged":[]}
["MES","VOUCHER"]
[]
[]
[]
[null,null,"Grabar y ordenar"]
[]
[]
[null,null,"NO VA"]

{"sheet":"BDASTOBANCO","index":26,"n_rows":5,"n_cols":3,"rows_kept":5,"cut":false,"hidden":true,"merged":[]}
["MES","VOUCHER"]
[]
[]
[]
[null,null,"Grabar y ordenar"]

{"sheet":"CONSULHT","index":27,"n_rows":22,"n_cols":7,"rows_kept":22,"cut":false,"hidden":true,"merged":[]}
["MES","REGISTRO","MES","CUENTA","NOMBRE","DEBE","HABER"]
["<2",111,1,10100,"Caja",50000,0]
[null,111,1,50110,"Acciones",0,50000]
[null,131,1,20111,"Costo",20000,0]
[null,131,1,61110,"Mercaderías manufacturadas",0,20000]
[null,131,1,60110,"Costo",20000,0]
[null,131,1,40111,"IGV - Cuenta propia",3600,0]
[null,131,1,42120,"Emitidas",0,23600]
[null,121,1,12120,"Emitidas en cartera",23600,0]
[null,121,1,40111,"IGV - Cuenta propia",0,3600]
[null,121,1,70111,"Terceros",0,20000]
[null,161,1,69111,"Terceros",10000,0]
[null,161,1,20111,"Costo",0,10000]
[null,161,1,61110,"Mercaderías manufacturadas",10000,0]
[null,161,1,79100,"Cargas imputables a cuentas de costos y gastos",0,10000]
[null,141,1,10100,"Caja",23600,0]
[null,141,1,12120,"Emitidas en cartera",0,23600]
[null,132,1,63610,"Energía eléctrica",100,0]
[null,132,1,79100,"Cargas imputables a cuentas de costos y gastos",0,100]
[null,132,1,94361,"Energía eléctrica",100,0]
[null,132,1,40111,"IGV - Cuenta propia",18,0]
[null,132,1,42120,"Emitidas",0,118]

{"sheet":"HT","index":28,"n_rows":22,"n_cols":24,"rows_kept":22,"cut":false,"hidden":true,"merged":[[4,2,5,2]]}
[null,{"$f":"CONCATENATE(\"RUC: \",ruc)","v":"RUC: 20123456789"},null,null,null,null,null,null,null,null,null,null,"ENERO",null,"=SUMAR.SI(CONSULHT!D:D,HT!B7,CONSULHT!F:F)","=SUMAR.SI(CONSULHT!D:D,HT!B7,CONSULHT!G:G)","=SI(D7>E7,D7-E7,0)","=SI(E7>D7,E7-D7,0)","=SI(A7=1,F7,0)","=SI(A7=1,G7,0)","=SI(O(A7=3,A7=4),F7,0)","=SI(O(A7=3,A7=4),G7,0)","=SI(O(A7=2,A7=4),F7,0)","=SI(O(A7=2,A7=4),G7,0)"]
[null,{"$f":"IF(razon>\"\",razon,\"\")","v":"ARCHIVO EXCEL EIRL"}]
[null,{"$f":"CONCATENATE(\"HOJA DE TRABAJO A \",mesconsultaht,\" DEL \",periodo)","v":"HOJA DE TRABAJO A ENERO DEL 2013"}]
[null,"x"]
[null,"CTA","NOMBRE","SUMAS",null,"SALDO",null,"INVENTARIO",null,"RESULTA. POR NATUR.",null,"RESULTA. POR FUNC."]
[null,"X",null,"DEBE","HABER","DEUDOR","ACREEDOR","ACTIVO","PASIVO","PERDIDA","GANANCIA","PERDIDA","GANANCIA"]
[1,10100,"Caja",73600,0,73600,0,73600,0,0,0,0,0,null,null,{"$f":"MID(B7,1,2)","v":"10"}]
[1,12120,"Emitidas en cartera",23600,23600,0,0,0,0,0,0,0,0,null,null,"12"]
[1,20111,"Costo",20000,10000,10000,0,10000,0,0,0,0,0,null,null,"20"]
[1,40111,"IGV - Cuenta propia",3618,3600,18,0,18,0,0,0,0,0,null,null,"40"]
[1,42120,"Emitidas",0,23718,0,23718,0,23718,0,0,0,0,null,null,"42"]
[1,50110,"Acciones",0,50000,0,50000,0,50000,0,0,0,0,null,null,"50"]
[3,60110,"Mercaderías manufacturadas",20000,0,20000,0,0,0,20000,0,0,0,null,null,"60"]
[3,61110,"Mercaderías manufacturadas",10000,20000,0,10000,0,0,0,10000,0,0,null,null,"61"]
[3,63610,"Energía eléctrica",100,0,100,0,0,0,100,0,0,0,null,null,"63"]
[2,69111,"Terceros",10000,0,10000,0,0,0,0,0,10000,0,null,null,"69"]
[4,70111,"Terceros",0,20000,0,20000,0,0,0,20000,0,20000,null,null,"70"]
[0,79100,"Cargas imputables a cuentas de costos y gastos",0,10100,0,10100,0,0,0,0,0,0,null,null,"79"]
[2,94361,"Energía eléctrica",100,0,100,0,0,0,0,0,100,0,null,null,"94"]
[null,"-","SUBTOTALES",161018,161018,113818,113818,83618,73718,20100,30000,10100,20000]
[null,"-","SALDOS",null,null,null,null,{"$f":"IF(I20>H20,I20-H20,0)","v":0},{"$f":"IF(H20>I20,H20-I20,0)","v":9900},{"$f":"IF(K20>J20,K20-J20,0)","v":9900},{"$f":"IF(J20>K20,J20-K20,0)","v":0},{"$f":"IF(M20>L20,M20-L20,0)","v":9900},{"$f":"IF(L20>M20,L20-M20,0)","v":0}]
[null,"-","TOTALES",null,null,null,null,83618,83618,30000,30000,20000,20000]

{"sheet":"BG","index":29,"n_rows":43,"n_cols":6,"rows_kept":43,"cut":false,"hidden":true,"merged":[]}
[{"$f":"IF(razon>\"\",razon,\"\")","v":"ARCHIVO EXCEL EIRL"}]
[{"$f":"CONCATENATE(\"RUC: \",ruc)","v":"RUC: 20123456789"}]
["BALANCE GENERAL"]
[{"$f":"CONCATENATE(\"A \",mesconsultaht,\" DEL \",periodo)","v":"A ENERO DEL 2013"}]
["(Expresado en Nuevos Soles)"]
[]
["COD","ACTIVO","S/.","COD","PASIVO Y PATRIMONIO","S/."]
[null,"ACTIVO CORRIENTE",null,null,"PASIVO CORRIENTE"]
[10,"EFECTIVO Y EQUIVALENTES DE EFECTIVO",{"$f":"SUMIF(HT!P:P,A9,HT!H:H)-SUMIF(HT!P:P,A9,HT!I:I)","v":73600},40,"TRIBUTOS, CONTRAPRESTACIONES Y APORTES AL SISTEMA DE PENSIONES Y DE SALUD POR PAGAR",{"$f":"SUMIF(HT!P:P,D9,HT!I:I)-SUMIF(HT!P:P,D9,HT!H:H)","v":-18}]
[11,"INVERSIONES FINANCIERAS",{"$f":"SUMIF(HT!P:P,A10,HT!H:H)-SUMIF(HT!P:P,A10,HT!I:I)","v":0},41,"REMUNERACIONES Y PARTICIPACIONES POR PAGAR",{"$f":"SUMIF(HT!P:P,D10,HT!I:I)-SUMIF(HT!P:P,D10,HT!H:H)","v":0}]
[12,"CUENTAS POR COBRAR COMERCIALES – TERCEROS",{"$f":"SUMIF(HT!P:P,A11,HT!H:H)-SUMIF(HT!P:P,A11,HT!I:I)","v":0},42,"CUENTAS POR PAGAR COMERCIALES – TERCEROS",{"$f":"SUMIF(HT!P:P,D11,HT!I:I)-SUMIF(HT!P:P,D11,HT!H:H)","v":23718}]
[13,"CUENTAS POR COBRAR COMERCIALES – RELACIONADAS",{"$f":"SUMIF(HT!P:P,A12,HT!H:H)-SUMIF(HT!P:P,A12,HT!I:I)","v":0},43,"CUENTAS POR PAGAR COMERCIALES – RELACIONADAS",{"$f":"SUMIF(HT!P:P,D12,HT!I:I)-SUMIF(HT!P:P,D12,HT!H:H)","v":0}]
[14,"CUENTAS POR COBRAR AL PERSONAL, A LOS ACCIONISTAS (SOCIOS), DIRECTORES Y GERENTES",{"$f":"SUMIF(HT!P:P,A13,HT!H:H)-SUMIF(HT!P:P,A13,HT!I:I)","v":0},44,"CUENTAS POR PAGAR A LOS ACCIONISTAS (SOCIOS), DIRECTORES Y GERENTES",{"$f":"SUMIF(HT!P:P,D13,HT!I:I)-SUMIF(HT!P:P,D13,HT!H:H)","v":0}]
[16,"CUENTAS POR COBRAR DIVERSAS - TERCEROS",{"$f":"SUMIF(HT!P:P,A14,HT!H:H)-SUMIF(HT!P:P,A14,HT!I:I)","v":0},null,"Total Pasivo Corriente",{"$f":"SUM(F9:F13)","v":23700}]
[17,"CUENTAS POR COBRAR DIVERSAS - RELACIONADAS",{"$f":"SUMIF(HT!P:P,A15,HT!H:H)-SUMIF(HT!P:P,A15,HT!I:I)","v":0}]
[18,"SERVICIOS Y OTROS CONTRATADOS POR ANTICIPADO",{"$f":"SUMIF(HT!P:P,A16,HT!H:H)-SUMIF(HT!P:P,A16,HT!I:I)","v":0}]
[19,"ESTIMACIÓN DE CUENTAS DE COBRANZA DUDOSA",{"$f":"SUMIF(HT!P:P,A17,HT!H:H)-SUMIF(HT!P:P,A17,HT!I:I)","v":0},null,"PASIVO NO CORRIENTE"]
[20,"MERCADERÍAS",{"$f":"SUMIF(HT!P:P,A18,HT!H:H)-SUMIF(HT!P:P,A18,HT!I:I)","v":10000},45,"OBLIGACIONES FINANCIERAS",{"$f":"SUMIF(HT!P:P,D18,HT!I:I)-SUMIF(HT!P:P,D18,HT!H:H)","v":0}]
[21,"PRODUCTOS TERMINADOS",{"$f":"SUMIF(HT!P:P,A19,HT!H:H)-SUMIF(HT!P:P,A19,HT!I:I)","v":0},46,"CUENTAS POR PAGAR DIVERSAS – TERCEROS",{"$f":"SUMIF(HT!P:P,D19,HT!I:I)-SUMIF(HT!P:P,D19,HT!H:H)","v":0}]
[22,"SUBPRODUCTOS, DESECHOS Y DESPERDICIOS",{"$f":"SUMIF(HT!P:P,A20,HT!H:H)-SUMIF(HT!P:P,A20,HT!I:I)","v":0},47,"CUENTAS POR PAGAR DIVERSAS – RELACIONADAS",{"$f":"SUMIF(HT!P:P,D20,HT!I:I)-SUMIF(HT!P:P,D20,HT!H:H)","v":0}]
[23,"PRODUCTOS EN PROCESO",{"$f":"SUMIF(HT!P:P,A21,HT!H:H)-SUMIF(HT!P:P,A21,HT!I:I)","v":0},48,"PROVISIONES",{"$f":"SUMIF(HT!P:P,D21,HT!I:I)-SUMIF(HT!P:P,D21,HT!H:H)","v":0}]
[24,"MATERIAS PRIMAS",{"$f":"SUMIF(HT!P:P,A22,HT!H:H)-SUMIF(HT!P:P,A22,HT!I:I)","v":0},49,"PASIVO DIFERIDO",{"$f":"SUMIF(HT!P:P,D22,HT!I:I)-SUMIF(HT!P:P,D22,HT!H:H)","v":0}]
[25,"MATERIALES AUXILIARES, SUMINISTROS Y REPUESTOS",{"$f":"SUMIF(HT!P:P,A23,HT!H:H)-SUMIF(HT!P:P,A23,HT!I:I)","v":0},null,"Total Pasivo No Corriente",{"$f":"SUM(F18:F22)","v":0}]
[26,"ENVASES Y EMBALAJES",{"$f":"SUMIF(HT!P:P,A24,HT!H:H)-SUMIF(HT!P:P,A24,HT!I:I)","v":0}]
[27,"ACTIVOS NO CORRIENTES MANTENIDOS PARA LA VENTA",{"$f":"SUMIF(HT!P:P,A25,HT!H:H)-SUMIF(HT!P:P,A25,HT!I:I)","v":0},null,"Total Pasivo",{"$f":"F14+F23","v":23700}]
[28,"EXISTENCIAS POR RECIBIR",{"$f":"SUMIF(HT!P:P,A26,HT!H:H)-SUMIF(HT!P:P,A26,HT!I:I)","v":0}]
[29,"DESVALORIZACIÓN DE EXISTENCIAS",{"$f":"SUMIF(HT!P:P,A27,HT!H:H)-SUMIF(HT!P:P,A27,HT!I:I)","v":0}]
[null,"Total Activo Corriente",{"$f":"SUM(C9:C27)","v":83600}]
[]
[null,"ACTIVO NO CORRIENTE",null,null,"PATRIMONIO NETO"]
[30,"INVERSIONES MOBILIARIAS",{"$f":"SUMIF(HT!P:P,A31,HT!H:H)-SUMIF(HT!P:P,A31,HT!I:I)","v":0},50,"CAPITAL",{"$f":"SUMIF(HT!P:P,D31,HT!I:I)-SUMIF(HT!P:P,D31,HT!H:H)","v":50000}]
[31,"INVERSIONES INMOBILIARIAS",{"$f":"SUMIF(HT!P:P,A32,HT!H:H)-SUMIF(HT!P:P,A32,HT!I:I)","v":0},51,"ACCIONES DE INVERSIÓN",{"$f":"SUMIF(HT!P:P,D32,HT!I:I)-SUMIF(HT!P:P,D32,HT!H:H)","v":0}]
[32,"ACTIVOS ADQUIRIDOS EN ARRENDAMIENTO FINANCIERO",{"$f":"SUMIF(HT!P:P,A33,HT!H:H)-SUMIF(HT!P:P,A33,HT!I:I)","v":0},52,"CAPITAL ADICIONAL",{"$f":"SUMIF(HT!P:P,D33,HT!I:I)-SUMIF(HT!P:P,D33,HT!H:H)","v":0}]
[33,"INMUEBLES, MAQUINARIA Y EQUIPO",{"$f":"SUMIF(HT!P:P,A34,HT!H:H)-SUMIF(HT!P:P,A34,HT!I:I)","v":0},56,"RESULTADOS NO REALIZADOS",{"$f":"SUMIF(HT!P:P,D34,HT!I:I)-SUMIF(HT!P:P,D34,HT!H:H)","v":0}]
[34,"INTANGIBLES",{"$f":"SUMIF(HT!P:P,A35,HT!H:H)-SUMIF(HT!P:P,A35,HT!I:I)","v":0},57,"EXCEDENTE DE REVALUACIÓN",{"$f":"SUMIF(HT!P:P,D35,HT!I:I)-SUMIF(HT!P:P,D35,HT!H:H)","v":0}]
[35,"ACTIVOS BIOLÓGICOS",{"$f":"SUMIF(HT!P:P,A36,HT!H:H)-SUMIF(HT!P:P,A36,HT!I:I)","v":0},58,"RESERVAS",{"$f":"SUMIF(HT!P:P,D36,HT!I:I)-SUMIF(HT!P:P,D36,HT!H:H)","v":0}]
[36,"DESVALORIZACIÓN DE ACTIVO INMOVILIZADO",{"$f":"SUMIF(HT!P:P,A37,HT!H:H)-SUMIF(HT!P:P,A37,HT!I:I)","v":0},59,"RESULTADOS ACUMULADOS",{"$f":"SUMIF(HT!P:P,D37,HT!I:I)-SUMIF(HT!P:P,D37,HT!H:H)","v":0}]
[37,"ACTIVO DIFERIDO",{"$f":"SUMIF(HT!P:P,A38,HT!H:H)-SUMIF(HT!P:P,A38,HT!I:I)","v":0},null,"RESULTADO DEL EJERCICIO",{"$f":"ER!C27","v":9900}]
[38,"OTROS ACTIVOS",{"$f":"SUMIF(HT!P:P,A39,HT!H:H)-SUMIF(HT!P:P,A39,HT!I:I)","v":0},null,"Total Patrimonio  Neto",{"$f":"SUM(F31:F38)","v":59900}]
[39,"DEPRECIACIÓN, AMORTIZACIÓN Y AGOTAMIENTO ACUMULADOS",{"$f":"SUMIF(HT!P:P,A40,HT!H:H)-SUMIF(HT!P:P,A40,HT!I:I)","v":0}]
[null,"Total Activo No Corriente",{"$f":"SUM(C31:C40)","v":0}]
[]
[null,"TOTAL ACTIVO",{"$f":"C28+C41","v":83600},null,"TOTAL PASIVO Y PATRIMONIO",{"$f":"F25+F39","v":83600}]

{"sheet":"ER","index":30,"n_rows":60,"n_cols":3,"rows_kept":60,"cut":false,"hidden":true,"merged":[]}
[{"$f":"IF(razon>\"\",razon,\"\")","v":"ARCHIVO EXCEL EIRL"}]
[{"$f":"CONCATENATE(\"RUC: \",ruc)","v":"RUC: 20123456789"}]
["ESTADO DE GANANCIAS Y PERDIDAS POR FUNCIÓN"]
[{"$f":"CONCATENATE(\"A \",mesconsultaht,\" DEL \",periodo)","v":"A ENERO DEL 2013"}]
["(Expresado en Nuevos Soles)"]
[]
["COD","CUENTA","S/."]
[70,"VENTAS",{"$f":"SUMIF(HT!P:P,A8,HT!M:M)-SUMIF(HT!P:P,A8,HT!L:L)","v":20000}]
[74,"DESCUENTOS, REBAJAS Y BONIFICACIONES CONCEDIDOS",{"$f":"SUMIF(HT!P:P,A9,HT!M:M)-SUMIF(HT!P:P,A9,HT!L:L)","v":0}]
[null,"VENTAS NETAS",{"$f":"SUM(C8:C9)","v":20000}]
[]
[69,"COSTO DE VENTAS",{"$f":"SUMIF(HT!P:P,A12,HT!M:M)-SUMIF(HT!P:P,A12,HT!L:L)","v":-10000}]
[null,"UTILIDAD BRUTA",{"$f":"SUM(C10:C12)","v":10000}]
[]
[null,"Gastos de Operación"]
[91,"COSTO DEL SERVICIO",{"$f":"SUMIF(HT!P:P,A16,HT!M:M)-SUMIF(HT!P:P,A16,HT!L:L)","v":0}]
[94,"GASTOS DE ADMINISTRACIÓN",{"$f":"SUMIF(HT!P:P,A17,HT!M:M)-SUMIF(HT!P:P,A17,HT!L:L)","v":-100}]
[95,"GASTOS DE VENTA",{"$f":"SUMIF(HT!P:P,A18,HT!M:M)-SUMIF(HT!P:P,A18,HT!L:L)","v":0}]
[97,"GASTOS FINANCIEROS",{"$f":"SUMIF(HT!P:P,A19,HT!M:M)-SUMIF(HT!P:P,A19,HT!L:L)","v":0}]
[null,"UTILIDAD DE OPERACIÓN",{"$f":"SUM(C13:C19)","v":9900}]
[]
[73,"DESCUENTOS, REBAJAS Y BONIFICACIONES OBTENIDOS",{"$f":"SUMIF(HT!P:P,A22,HT!M:M)-SUMIF(HT!P:P,A22,HT!L:L)","v":0}]
[75,"OTROS INGRESOS DE GESTIÓN",{"$f":"SUMIF(HT!P:P,A23,HT!M:M)-SUMIF(HT!P:P,A23,HT!L:L)","v":0}]
[76,"GANANCIA POR MEDICIÓN DE ACTIVOS NO FINANCIEROS AL VALOR RAZONABLE",{"$f":"SUMIF(HT!P:P,A24,HT!M:M)-SUMIF(HT!P:P,A24,HT!L:L)","v":0}]
[77,"INGRESOS FINANCIEROS",{"$f":"SUMIF(HT!P:P,A25,HT!M:M)-SUMIF(HT!P:P,A25,HT!L:L)","v":0}]
[66,"PÉRDIDA POR MEDICIÓN DE ACTIVOS NO FINANCIEROS AL VALOR RAZONABLE",{"$f":"SUMIF(HT!P:P,A26,HT!M:M)-SUMIF(HT!P:P,A26,HT!L:L)","v":0}]
[null,"UTILIDAD ANTES DE PARTICIPACIONES E IMPUESTOS",{"$f":"SUM(C20:C26)","v":9900}]
[]
[]
["ESTADO DE GANANCIAS Y PERDIDAS POR NATURALEZA"]
[]
[70,"VENTAS",{"$f":"SUMIF(HT!P:P,A32,HT!K:K)-SUMIF(HT!P:P,A32,HT!J:J)","v":20000}]
[74,"DESCUENTOS, REBAJAS Y BONIFICACIONES CONCEDIDOS",{"$f":"SUMIF(HT!P:P,A33,HT!K:K)-SUMIF(HT!P:P,A33,HT!J:J)","v":0}]
[null,"MARGEN COMERCIAL",{"$f":"SUM(C32:C33)","v":20000}]
[]
[71,"VARIACIÓN DE LA PRODUCCIÓN ALMACENADA",{"$f":"SUMIF(HT!P:P,A36,HT!K:K)-SUMIF(HT!P:P,A36,HT!J:J)","v":0}]
[72,"PRODUCCIÓN DE ACTIVO INMOVILIZADO",{"$f":"SUMIF(HT!P:P,A37,HT!K:K)-SUMIF(HT!P:P,A37,HT!J:J)","v":0}]
[null,"PRODUCCIÓN DEL EJERCICIO",{"$f":"SUM(C34:C37)","v":20000}]
[]
[60,"COMPRAS",{"$f":"SUMIF(HT!P:P,A40,HT!K:K)-SUMIF(HT!P:P,A40,HT!J:J)","v":-20000}]
[61,"VARIACIÓN DE EXISTENCIAS",{"$f":"SUMIF(HT!P:P,A41,HT!K:K)-SUMIF(HT!P:P,A41,HT!J:J)","v":10000}]
[63,"GASTOS DE SERVICIOS PRESTADOS POR TERCEROS",{"$f":"SUMIF(HT!P:P,A42,HT!K:K)-SUMIF(HT!P:P,A42,HT!J:J)","v":-100}]
[null,"VALOR AGREGADO",{"$f":"SUM(C38:C42)","v":9900}]
[]
[62,"GASTOS DE PERSONAL, DIRECTORES Y GERENTES",{"$f":"SUMIF(HT!P:P,A45,HT!K:K)-SUMIF(HT!P:P,A45,HT!J:J)","v":0}]
[64,"GASTOS POR TRIBUTOS",{"$f":"SUMIF(HT!P:P,A46,HT!K:K)-SUMIF(HT!P:P,A46,HT!J:J)","v":0}]
[null,"EXCEDENTE BRUTO DE EXPLOTACIÓN",{"$f":"SUM(C43:C46)","v":9900}]
[]
[65,"OTROS GASTOS DE GESTIÓN",{"$f":"SUMIF(HT!P:P,A49,HT!K:K)-SUMIF(HT!P:P,A49,HT!J:J)","v":0}]
[68,"VALUACIÓN Y DETERIORO DE ACTIVOS Y PROVISIONES",{"$f":"SUMIF(HT!P:P,A50,HT!K:K)-SUMIF(HT!P:P,A50,HT!J:J)","v":0}]
[73,"DESCUENTOS, REBAJAS Y BONIFICACIONES OBTENIDOS",{"$f":"SUMIF(HT!P:P,A51,HT!K:K)-SUMIF(HT!P:P,A51,HT!J:J)","v":0}]
[75,"OTROS INGRESOS DE GESTIÓN",{"$f":"SUMIF(HT!P:P,A52,HT!K:K)-SUMIF(HT!P:P,A52,HT!J:J)","v":0}]
[78,"CARGAS CUBIERTAS POR PROVISIONES",{"$f":"SUMIF(HT!P:P,A53,HT!K:K)-SUMIF(HT!P:P,A53,HT!J:J)","v":0}]
[null,"RESULTADO DE EXPLOTACION",{"$f":"SUM(C47:C53)","v":9900}]
[]
[76,"GANANCIA POR MEDICIÓN DE ACTIVOS NO FINANCIEROS AL VALOR RAZONABLE",{"$f":"SUMIF(HT!P:P,A56,HT!K:K)-SUMIF(HT!P:P,A56,HT!J:J)","v":0}]
[77,"INGRESOS FINANCIEROS",{"$f":"SUMIF(HT!P:P,A57,HT!K:K)-SUMIF(HT!P:P,A57,HT!J:J)","v":0}]
[66,"PÉRDIDA POR MEDICIÓN DE ACTIVOS NO FINANCIEROS AL VALOR RAZONABLE",{"$f":"SUMIF(HT!P:P,A58,HT!K:K)-SUMIF(HT!P:P,A58,HT!J:J)","v":0}]
[67,"GASTOS FINANCIEROS",{"$f":"SUMIF(HT!P:P,A59,HT!K:K)-SUMIF(HT!P:P,A59,HT!J:J)","v":0}]
[null,"UTILIDAD ANTES DE PARTICIPACIONES E IMPUESTOS",{"$f":"SUM(C54:C59)","v":9900}]

{"sheet":"Hoja1","index":31,"n_rows":13,"n_cols":10,"rows_kept":13,"cut":false,"hidden":true,"merged":[]}
[]
["ENERO",null,null,"NUEVOS SOLES",null,null,"INGRESO",null,1,"BALANCE GENERAL"]
["FEBRERO",null,null,"DÓLARES AMERICANOS",null,null,"EGRESO",null,2,"E. R. FUNCIÓN"]
["MARZO",null,null,null,null,null,null,null,3,"E. R. NATURALEZA"]
["ABRIL",null,null,null,null,null,null,null,4,"E. R. FUNC. Y NATUR."]
["MAYO"]
["JUNIO"]
["JULIO"]
["AGOSTO"]
["SEPTIEMBRE"]
["OCTUBRE"]
["NOVIEMBRE"]
["DICIEMBRE"]

{"sheet":"ae","index":32,"n_rows":5,"n_cols":12,"rows_kept":5,"cut":false,"hidden":false,"merged":[]}
["SISTEMA CONTABLE AExcel"]
["HECHO POR:",null,1,"ENERO",null,1,null,null,null,null,null,11]
["www.archivoexcel.com"]
[null,null,null,null,null,null,null,10]
[null,null,14,"REGISTRO DE VENTAS E INGRESOS"]